Workbook

Sheet 1. ENTER DATA
A1: Row | D1: STORMWATER LOAD ANALYSIS TOOL 2.1
A2: 2 | T2: Internal Lists
A3: =A2+1 -> 3
A4: 4 | T4: BMP 1 Options | U4: BMP 2 Options | V4: Conveyance Options | W4: WQV Options | X4: Drainage areas | Y4: Infiltration Field Options
A5: 5 | L5: Simplified Schematic | T5: None | U5: None | V5: Pumped | W5: Yes | X5: 1 | Y5: Irrigation
A6: 6 | T6: Biofiltration | U6: Infiltration Field | V6: Gravity Drained | W6: No | X6: 2 | Y6: Level spread
A7: 7 | T7: Retention Basin | U7: Beneficial Use | X7: 3 | Y7: N/A
A8: 8 | T8: Rainwater Harvesting | U8: Alternative | X8: 4
A9: 9 | C9: KEY | D9: Required User Input | E9: Key User Input | F9: Internal Calculation | G9: Error | H9: Calculator Output | I9: Does Not Apply | T9: Sedimentation/Filtration | V9: Drawdown options | W9: Splitter Options
A10: 10 | T10: Alternative | V10: Drawdown Time | W10: Yes (Off-Line)
A11: 11 | C11: Step 1: Input site characteristics in yellow highlighted cells | V11: Flow Rate | W11: No (On-Line)
A12: 12 | C12: Site Name | F12: Editor Name | H12: Date | I12: SLAT 2.1 - 08/2022
A13: 13 | T13: FOR PLOTTING | W13: Infiltration Options | X13: Infiltration Field Options
A14: 14 | C14: Is your site within the Barton Springs Zone (BSZ)? | F14: Yes | T14: Captions | W14: No; infiltrate all routed water | X14: Yes | Y14: max rate
A15: 15 | C15: How many drainage areas, nmax, does your site have? | F15: 1 | T15: =IF(F14="Yes","Existing","Sed/Fil Equiv") -> Existing | U15: Developed, Untreated | V15: Proposed | W15: Yes | X15: No; calculate area | Y15: =IF(F14="Yes",0.2,2) -> 0.2
A16: 16 | F16: Drainage Area A | G16: Drainage Area B | H16: Drainage Area C | I16: Drainage Area D
A17: 17 | C17: Drainage area to the control, An (acres) | F17: 1 | G17: 1 | H17: 1 | I17: 1 | T17: Baseline Loads | W17: Compliance Factor
A18: 18 | C18: Base impervious cover of the drainage area, ICB (%) | F18: 0 | G18: 0 | H18: 0 | I18: 0 | W18: Compliance Factor (Compare to Baseline)
A19: 19 | C19: Developed impervious cover of the drainage area, ICD (%) | F19: 50 | G19: 50 | H19: 50 | I19: 50 | W19: Compliance Factor (Compare to Sed/Fil)
A20: 20 | T20: Read in for conditional formatting
A21: 21 | C21: Step 2: Input SCM characteristics in yellow highlighted cells | N21: ='2. RESULTS'!C40 ->  | T21: Error checking condition
A22: 22 | F22: Drainage Area A | G22: Drainage Area B | H22: Drainage Area C | I22: Drainage Area D | L22: ='2. RESULTS'!C16 -> ERROR CHECK PASSED | T22: ='6. Error Checking'!$G$29 -> 2
A23: 23 | C23: SCM 1 (First in Series) | F23: SCM A1 | G23: SCM B1 | H23: SCM C1 | I23: SCM D1
A24: 24 | C24: SCM Type | F24: Retention Basin | G24: Retention Basin | H24: Retention Basin | I24: Retention Basin | L24: ='2. RESULTS'!C18 -> COMPLIANT | N24: Results subject to review and approval
A25: 25 | C25: Is SCM 1 off-line? | F25: Yes (Off-Line) | G25: Yes (Off-Line) | H25: Yes (Off-Line) | I25: Yes (Off-Line) | N25: by COA Development Services Department.
A26: 26 | C26: What is the Water Quality Volume, WQV (inches) [aka Capture Depth] | F26: 2.5 | G26: 2.5 | H26: 2.5 | I26: 2.5
A27: 27 | C27: Minimum water quality volume allowed (in) | F27: =IF($F$14="Yes",'3. CALCS_Loads'!C71,0) -> 0.8 | G27: =IF($F$14="Yes",'3. CALCS_Loads'!D71,0) -> 0.8 | H27: =IF($F$14="Yes",'3. CALCS_Loads'!E71,0) -> 0.8 | I27: =IF($F$14="Yes",'3. CALCS_Loads'!F71,0) -> 0.8
A28: 28 | C28: SCM 1 Actual Volume (ft3) | F28: =WQV_A1*DA_A*3630 -> 9075 | G28: =WQV_B1*DA_B*3630 -> 9075 | H28: =WQV_C1*DA_C*3630 -> 9075 | I28: =WQV_D1*DA_D*3630 -> 9075
A29: 29 | C29: Do you know the drawdown time or the flow rate? | F29: Drawdown Time | G29: Drawdown Time | H29: Drawdown Time | I29: Drawdown Time
A30: 30 | C30: Drawdown Time, DDT (hrs) [tot. time to empty full SCM 1] | F30: 60 | G30: 60 | H30: 60 | I30: 60
A31: 31 | C31: Flow Rate (gpm) [use only for "alternative" controls] | F31: 15.08 | G31: 15.08 | H31: 15.08 | I31: 15.08
A32: 32 | C32: Treatment Rate, Ω (in/hr) | F32: ='5.CALCS_Adams&Papa'!B28 -> 0.04166666667 | G32: ='5.CALCS_Adams&Papa'!C28 -> 0.04166666667 | H32: ='5.CALCS_Adams&Papa'!D28 -> 0.04166666667 | I32: ='5.CALCS_Adams&Papa'!E28 -> 0.04166666667
A33: 33 | C33: Do you already know the runoff capture efficiency? | F33: No | G33: No | H33: No | I33: No
A34: 34 | C34: User Entered Runoff Capture Efficiency, RCE (%) | F34: 0 | G34: 0 | H34: 0 | I34: 0
A35: 35 | C35: Runoff Capture Efficiency, RCE (%) | F35: =RCE_A1 -> 0.9810534515 | G35: =RCE_B1 -> 0 | H35: =RCE_C1 -> 0 | I35: =RCE_D1 -> 0
A36: 36 | C36: Conveyance
A37: 37 | C37: How is effluent from SCM 1 discharged? | F37: Pumped | G37: Pumped | H37: Pumped | I37: Pumped
A38: 38 | C38: Delay after end of rainfall before discharging SCM 1 (hrs) | F38: =IF(F37="Pumped",12,0) -> 12 | G38: =IF(G37="Pumped",12,0) -> 12 | H38: 12 | I38: 12
A39: 39
A40: 40 | C40: SCM 2 (Second in Series) | F40: SCM A2 | G40: SCM B2 | H40: SCM C2 | I40: SCM D2
A41: 41 | C41: SCM Type | F41: Infiltration Field | G41: Infiltration Field | H41: Infiltration Field | I41: Infiltration Field | N41: =N21 -> 
A42: 42 | C42: Do you know the infiltrated or reused water quantity? | F42: No; infiltrate all routed water | G42: No; infiltrate all routed water | H42: No; infiltrate all routed water | I42: No; infiltrate all routed water | L42: ='2. RESULTS'!C16 -> ERROR CHECK PASSED
A43: 43 | C43: User-entered infilt. water quality volume, WQVinf (in) | F43: 2.5 | G43: 2.5 | H43: 2.5 | I43: 2.5
A44: 44 | C44: -OR- Percent of yearly runoff infiltrated, RCEinf (%) | F44: 0 | G44: 0 | H44: 0 | I44: 0 | L44: =L24 -> COMPLIANT | N44: Results subject to review and approval
A45: 45 | C45: Soil infiltration rate (in/hr) | F45: 0.1 | G45: 0.1 | H45: 0.1 | I45: 0.1 | N45: by COA Development Services Department.
A46: 46 | C46: Ratio of drawdown time / irrigation time, for any zone | F46: =IF(F37="Pumped",2,1) -> 2 | G46: =IF(G37="Pumped",2,1) -> 2 | H46: =IF(H37="Pumped",2,1) -> 2 | I46: =IF(I37="Pumped",2,1) -> 2
A47: 47 | C47: Approximate Minimum Field Area (Ac) | F47: ='4. CALCS_Infiltration'!C25 -> 0.8333333333 | G47: ='4. CALCS_Infiltration'!D25 -> 0 | H47: ='4. CALCS_Infiltration'!E25 -> 0 | I47: ='4. CALCS_Infiltration'!F25 -> 0
A48: 48
A49: 49 | C49: Step 3: Input Effluent Data for Alternative SCMs
A50: 50
A51: 51 | F51: Drainage Area A | G51: Drainage Area B | H51: Drainage Area C | I51: Drainage Area D
A52: 52 | D52: Pollutant | E52: Units | F52: =F24 -> Retention Basin | G52: =G24 -> Retention Basin | H52: =H24 -> Retention Basin | I52: =I24 -> Retention Basin
A53: 53 | D53: COD | E53: mg/L
A54: 54 | D54: E. coli | E54: CFU/100mL
A55: 55 | D55: Pb | E55: mg/L
A56: 56 | D56: TN | E56: mg/L
A57: 57 | D57: TP | E57: mg/L
A58: 58 | D58: TSS | E58: mg/L
A59: 59 | D59: Zn | E59: mg/L
A60: 60 | N60: ='2. RESULTS'!C40 -> 
A61: 61 | D61: Pollutant | E61: Units | F61: =F41 -> Infiltration Field | G61: =G41 -> Infiltration Field | H61: =H41 -> Infiltration Field | I61: =I41 -> Infiltration Field
A62: 62 | D62: COD | E62: mg/L | L62: ='2. RESULTS'!C16 -> ERROR CHECK PASSED
A63: 63 | D63: E. coli | E63: CFU/100mL
A64: 64 | D64: Pb | E64: mg/L | L64: =L44 -> COMPLIANT | N64: Results subject to review and approval
A65: 65 | D65: TN | E65: mg/L | N65: by COA Development Services Department.
A66: =A65+1 -> 66 | D66: TP | E66: mg/L
A67: 67 | D67: TSS | E67: mg/L
A68: 68 | D68: Zn | E68: mg/L
A69: 69

Sheet 2. RESULTS
C1: ='1. ENTER DATA'!D1 -> STORMWATER LOAD ANALYSIS TOOL 2.1 | J1: 1/2 | M1: =C1 -> STORMWATER LOAD ANALYSIS TOOL 2.1 | S1: 2/2
A2: Site Name: | B2: ='1. ENTER DATA'!C12 -> Site Name | E2: By: | F2: ='1. ENTER DATA'!F12 -> Editor Name | H2: Date: | I2: ='1. ENTER DATA'!H12 -> Date | K2: Site Name: | L2: =B2 -> Site Name | O2: By: | P2: =F2 -> Editor Name | R2: Date: | S2: =I2 -> Date
A3: RESULTS: COMPLIANCE TABLE | H3: ='1. ENTER DATA'!I12 -> SLAT 2.1 - 08/2022 | K3: RESULTS: PLOTS | Q3: ='1. ENTER DATA'!I12 -> SLAT 2.1 - 08/2022
Z4: Read in for conditional formatting
Z5: Error checking condition
A6: POLLUTANT | C6: DEVELOPED LOAD, WITH CONTROLS | H6: =IF('1. ENTER DATA'!F14="Yes","EXISTING LOAD","SED/FIL LOAD") -> EXISTING LOAD | I6: LOAD EQUIV. FACTOR, LEF | J6: COMPLIES? | Z6: ='6. Error Checking'!$G$29 -> 2
C7: Drainage Area A | D7: Drainage Area B | E7: Drainage Area C | F7: Drainage Area D | G7: TOTAL LOAD, Lout
A8: COD | B8: lbs/yr | C8: ='3. CALCS_Loads'!AD153 -> 1.251259307 | D8: ='3. CALCS_Loads'!AE153 -> 0 | E8: ='3. CALCS_Loads'!AF153 -> 0 | F8: ='3. CALCS_Loads'!AG153 -> 0 | G8: =SUM(C8:F8) -> 1.251259307 | H8: =IF('1. ENTER DATA'!$F$14="Yes",'3. CALCS_Loads'!AH153,'3. CALCS_Loads'!AI153) -> 11.48775151 | I8: =IF('1. ENTER DATA'!$F$14="Yes",'3. CALCS_Loads'!AL153,'3. CALCS_Loads'!AM153) -> 0.1089211675 | J8: =IF('1. ENTER DATA'!$F$14="Yes",'3. CALCS_Loads'!AN153,'3. CALCS_Loads'!AO153) -> YES
A9: E. coli | B9: 10^6 MPN/yr | C9: ='3. CALCS_Loads'!AD154 -> 1871.03325 | D9: ='3. CALCS_Loads'!AE154 -> 0 | E9: ='3. CALCS_Loads'!AF154 -> 0 | F9: ='3. CALCS_Loads'!AG154 -> 0 | G9: =SUM(C9:F9) -> 1871.03325 | H9: =IF('1. ENTER DATA'!$F$14="Yes",'3. CALCS_Loads'!AH154,'3. CALCS_Loads'!AI154) -> 11210.21643 | I9: =IF('1. ENTER DATA'!$F$14="Yes",'3. CALCS_Loads'!AL154,'3. CALCS_Loads'!AM154) -> 0.1669042932 | J9: =IF('1. ENTER DATA'!$F$14="Yes",'3. CALCS_Loads'!AN154,'3. CALCS_Loads'!AO154) -> YES
A10: Pb | B10: lbs/yr | C10: ='3. CALCS_Loads'!AD155 -> 0.0002634215942 | D10: ='3. CALCS_Loads'!AE155 -> 0 | E10: ='3. CALCS_Loads'!AF155 -> 0 | F10: ='3. CALCS_Loads'!AG155 -> 0 | G10: 0.0002634215942 | H10: =IF('1. ENTER DATA'!$F$14="Yes",'3. CALCS_Loads'!AH155,'3. CALCS_Loads'!AI155) -> 0.001264833926 | I10: =IF('1. ENTER DATA'!$F$14="Yes",'3. CALCS_Loads'!AL155,'3. CALCS_Loads'!AM155) -> 0.2082657563 | J10: =IF('1. ENTER DATA'!$F$14="Yes",'3. CALCS_Loads'!AN155,'3. CALCS_Loads'!AO155) -> YES
A11: TN | B11: lbs/yr | C11: ='3. CALCS_Loads'!AD156 -> 0.06700758142 | D11: ='3. CALCS_Loads'!AE156 -> 0 | E11: ='3. CALCS_Loads'!AF156 -> 0 | F11: ='3. CALCS_Loads'!AG156 -> 0 | G11: 0.06700758142 | H11: =IF('1. ENTER DATA'!$F$14="Yes",'3. CALCS_Loads'!AH156,'3. CALCS_Loads'!AI156) -> 0.3514247893 | I11: =IF('1. ENTER DATA'!$F$14="Yes",'3. CALCS_Loads'!AL156,'3. CALCS_Loads'!AM156) -> 0.1906740317 | J11: =IF('1. ENTER DATA'!$F$14="Yes",'3. CALCS_Loads'!AN156,'3. CALCS_Loads'!AO156) -> YES
A12: TP | B12: lbs/yr | C12: ='3. CALCS_Loads'!AD157 -> 0.008400202129 | D12: ='3. CALCS_Loads'!AE157 -> 0 | E12: ='3. CALCS_Loads'!AF157 -> 0 | F12: ='3. CALCS_Loads'!AG157 -> 0 | G12: 0.008400202129 | H12: =IF('1. ENTER DATA'!$F$14="Yes",'3. CALCS_Loads'!AH157,'3. CALCS_Loads'!AI157) -> 0.03661905367 | I12: =IF('1. ENTER DATA'!$F$14="Yes",'3. CALCS_Loads'!AL157,'3. CALCS_Loads'!AM157) -> 0.2293942985 | J12: =IF('1. ENTER DATA'!$F$14="Yes",'3. CALCS_Loads'!AN157,'3. CALCS_Loads'!AO157) -> YES
A13: TSS | B13: lbs/yr | C13: ='3. CALCS_Loads'!AD158 -> 0.9621359574 | D13: ='3. CALCS_Loads'!AE158 -> 0 | E13: ='3. CALCS_Loads'!AF158 -> 0 | F13: ='3. CALCS_Loads'!AG158 -> 0 | G13: 0.9621359574 | H13: =IF('1. ENTER DATA'!$F$14="Yes",'3. CALCS_Loads'!AH158,'3. CALCS_Loads'!AI158) -> 49.02228153 | I13: =IF('1. ENTER DATA'!$F$14="Yes",'3. CALCS_Loads'!AL158,'3. CALCS_Loads'!AM158) -> 0.01962650304 | J13: =IF('1. ENTER DATA'!$F$14="Yes",'3. CALCS_Loads'!AN158,'3. CALCS_Loads'!AO158) -> YES
A14: Zn | B14: lbs/yr | C14: ='3. CALCS_Loads'!AD159 -> 0.001667208198 | D14: ='3. CALCS_Loads'!AE159 -> 0 | E14: ='3. CALCS_Loads'!AF159 -> 0 | F14: ='3. CALCS_Loads'!AG159 -> 0 | G14: 0.001667208198 | H14: =IF('1. ENTER DATA'!$F$14="Yes",'3. CALCS_Loads'!AH159,'3. CALCS_Loads'!AI159) -> 0.006959096772 | I14: =IF('1. ENTER DATA'!$F$14="Yes",'3. CALCS_Loads'!AL159,'3. CALCS_Loads'!AM159) -> 0.239572498 | J14: =IF('1. ENTER DATA'!$F$14="Yes",'3. CALCS_Loads'!AN159,'3. CALCS_Loads'!AO159) -> YES
C16: ='6. Error Checking'!G33 -> ERROR CHECK PASSED
B18: Results subject to review and | C18: =IF('6. Error Checking'!G29=1,"NOT COMPLIANT",IF(I8<=1,IF(I9<=1,IF(I10<=1,IF(I11<=1,IF(I12<=1,IF(I13<=1,IF(I14<=1,"COMPLIANT","NOT COMPLIANT"),"NOT COMPLIANT"),"NOT COMPLIANT"),"NOT COMPLIANT"),"NOT COMPLIANT"),"NOT COMPLIANT"),"NOT COMPLIANT")) -> COMPLIANT
B19: approval by COA Develop-
B20: ment Services Department.
A22: SUMMARY OF INPUTS
A24: Site Location | D24: =IF('1. ENTER DATA'!F14="Yes", "Within Barton Springs Zone - Compare to Existing Loads","Outside Barton Springs Zone - Compare to Sed/Fil Loads") -> Within Barton Springs Zone - Compare to Existing Loads
D25: Drainage Area A | E25: Drainage Area B | F25: Drainage Area C | G25: Drainage Area D | H25: TOTALS
A26: Drainage Area, An (Ac) | D26: =DA_A -> 1 | E26: =IF(n_DA=1,"N/A",DA_B) -> N/A | F26: =IF(n_DA<3,"N/A",DA_C) -> N/A | G26: =IF(n_DA<4,"N/A",DA_D) -> N/A | H26: =SUM(D26:G26) -> 1
A27: Developed IC, ICD (%) | D27: =ICA_d -> 50 | E27: =IF(n_DA=1,"N/A",ICB_d) -> N/A | F27: =IF(n_DA<3,"N/A",ICC_d) -> N/A | G27: =IF(n_DA<4,"N/A",ICD_d) -> N/A | H27: =(D27*D26+IF(n_DA>1,E27*E26,0)+IF(n_DA>2,F27*F26,0)+IF(n_DA>3,G27*G26,0))/(100*H26) -> 0.5
A28: SCM 1 | D28: ='1. ENTER DATA'!F24 -> Retention Basin | E28: =IF(n_DA=1,"N/A",'1. ENTER DATA'!G24) -> N/A | F28: =IF(n_DA<3,"N/A",'1. ENTER DATA'!H24) -> N/A | G28: =IF(n_DA<4,"N/A",'1. ENTER DATA'!I24) -> N/A | H28: -
A30: Water Qual. Vol, WQV (in) | D30: =WQV_A1 -> 2.5 | E30: =IF(n_DA=1,"N/A",WQV_B1) -> N/A | F30: =IF(n_DA<3,"N/A",WQV_C1) -> N/A | G30: =IF(n_DA<4,"N/A",WQV_D1) -> N/A | H30: -
A31: Actual Volume (ft3) | D31: =D30*D26/12*43560 -> 9075 | E31: =IF(n_DA=1,"N/A",E30*E26/12*43560) -> N/A | F31: =IF(n_DA<3,"N/A",F30*F26/12*43560) -> N/A | G31: =IF(n_DA<4,"N/A",G30*G26/12*43560) -> N/A | H31: =SUM(D31:G31) -> 9075
A32: Drawdown Time, DDT (hrs) | D32: =IF('1. ENTER DATA'!F$29="Drawdown Time", DDT_A1, "N/A") -> 60 | E32: =IF(n_DA=1,"N/A",IF('1. ENTER DATA'!G$29="Drawdown Time", DDT_B1, "N/A")) -> N/A | F32: =IF(n_DA<3,"N/A",IF('1. ENTER DATA'!H$29="Drawdown Time", DDT_C1, "N/A")) -> N/A | G32: =IF(n_DA<4,"N/A",IF('1. ENTER DATA'!I$29="Drawdown Time", DDT_D1, "N/A")) -> N/A | H32: -
A33: Flowrate (gpm) | D33: ='5.CALCS_Adams&Papa'!B29 -> 18.85583333 | E33: =IF(n_DA=1,"N/A",'5.CALCS_Adams&Papa'!C29) -> N/A | F33: =IF(n_DA<3,"N/A",'5.CALCS_Adams&Papa'!D29) -> N/A | G33: =IF(n_DA<4,"N/A",'5.CALCS_Adams&Papa'!E29) -> N/A | H33: -
A34: SCM 2 | D34: ='3. CALCS_Loads'!C85 -> Infiltration Field | E34: =IF(n_DA=1,"N/A",'3. CALCS_Loads'!D85) -> N/A | F34: =IF(n_DA<3,"N/A",'3. CALCS_Loads'!E85) -> N/A | G34: =IF(n_DA<4,"N/A",'3. CALCS_Loads'!F85) -> N/A | H34: -
A36: Infiltration Rate (in/hr) | D36: =IF(D34<>"Infiltration Field","N/A",'1. ENTER DATA'!F45) -> 0.1 | E36: =IF(E34<>"Infiltration Field","N/A",IF(n_DA=1,"N/A",'1. ENTER DATA'!G45)) -> N/A | F36: =IF(F34<>"Infiltration Field","N/A",IF(n_DA<3,"N/A",'1. ENTER DATA'!H45)) -> N/A | G36: =IF(G34<>"Infiltration Field","N/A",IF(n_DA<4,"N/A",'1. ENTER DATA'!I45)) -> N/A | H36: -
A37: Appx. Min. Infilt. Field Area (Ac) | D37: =IF(D34<>"Infiltration Field","N/A",'4. CALCS_Infiltration'!C25) -> 0.8333333333 | E37: =IF(E34<>"Infiltration Field","N/A",IF(n_DA=1,"N/A",'4. CALCS_Infiltration'!D25)) -> N/A | F37: =IF(F34<>"Infiltration Field","N/A",IF(n_DA<3,"N/A",'4. CALCS_Infiltration'!E25)) -> N/A | G37: =IF(G34<>"Infiltration Field","N/A",IF(n_DA<4,"N/A",'4. CALCS_Infiltration'!F25)) -> N/A | H37: =SUM(D37:G37) -> 0.8333333333
A38: Irrigation Rate (gpm) | D38: =IF(D34<>"Infiltration Field","N/A",'4. CALCS_Infiltration'!C28) -> 18.85416667 | E38: =IF(E34<>"Infiltration Field","N/A",'4. CALCS_Infiltration'!D28) -> N/A | F38: =IF(F34<>"Infiltration Field","N/A",'4. CALCS_Infiltration'!E28) -> N/A | G38: =IF(G34<>"Infiltration Field","N/A",'4. CALCS_Infiltration'!F28) -> N/A | H38: -
A39: Error with Input Values? | D39: =IF('6. Error Checking'!G23>0,"YES",IF('6. Error Checking'!$D$2="No","Not Checked","NO")) -> NO | E39: =IF('6. Error Checking'!H23>0,"YES",IF('6. Error Checking'!$D$2="No","Not Checked","NO")) -> NO | F39: =IF('6. Error Checking'!I23>0,"YES",IF('6. Error Checking'!$D$2="No","Not Checked","NO")) -> NO | G39: =IF('6. Error Checking'!J23>0,"YES",IF('6. Error Checking'!$D$2="No","Not Checked","NO")) -> NO
C40: ='6. Error Checking'!G34 -> 
C43: Results subject to review and approval by COA Development Services Department.

Sheet 3. CALCS_Loads
A1: CALCULATIONS
A6: CONSTANTS
A7: 33.4 | B7: R, annual rainfall, in/yr | E7: Based on 2018 WPD Report CR-18-05 Updating the City of Austin Rainfall Period of Record Timeseries and Statistics. Uses 2004-2013 Camp Mabry rainfall data.
A8: 76.8 | B8: Annual no. rainfall events, θ, events/yr
A10: CONVERSION FACTORS
A11: CF_1 | B11: Pollutant in mg/L | C11: 0.2267 | D11: lb-L/(mg-Ac-in) | E11: Outputs to lb/Ac-yr
A12: CF_2 | B12: Pollutant in MPN/100 mL | C12: 1.0279 | D12: 100 mL/(Ac-in) | E12: Outputs to 10^6 MPN/Ac-yr
A14: ECM TABLE 1.10: Pollutant Concentrations
A15: From CM-09-04, Table 4.8
D16: EXISTING | I16: DEVELOPED
A17: Pollutant | B17: Units | C17: Conversion Factor | D17: Undeveloped (0% IC) Concentration | E17: Drainage Area A | F17: Drainage Area B | G17: Drainage Area C | H17: Drainage Area D | I17: Drainage Area A | J17: Drainage Area B | K17: Drainage Area C | L17: Drainage Area D
A18: COD | B18: mg/L | C18: CF_1 | D18: =38.9+66.6*0/100 -> 38.9 | E18: =38.9+66.6*ICA_b/100 -> 38.9 | F18: =38.9+66.6*ICB_b/100 -> 38.9 | G18: =38.9+66.6*ICC_b/100 -> 38.9 | H18: =38.9+66.6*ICD_b/100 -> 38.9 | I18: =38.9+66.6*ICA_d/100 -> 72.2 | J18: =38.9+66.6*ICB_d/100 -> 72.2 | K18: =38.9+66.6*ICC_d/100 -> 72.2 | L18: =38.9+66.6*ICD_d/100 -> 72.2 | M18: *Function of IC
A19: E. coli | B19: CFU/100mL | C19: CF_2 | D19: 8372 | E19: =IF(ICA_b=0,$D19,$I19) -> 8372 | F19: =IF(ICB_b=0,$D19,$I19) -> 8372 | G19: =IF(ICC_b=0,$D19,$I19) -> 8372 | H19: =IF(ICD_b=0,$D19,$I19) -> 8372 | I19: 24963 | J19: 24963 | K19: 24963 | L19: 24963
A20: Pb | B20: mg/L | C20: CF_1 | D20: =(4.283*EXP(2.424*0/100))/1000 -> 0.004283 | E20: =(4.283*EXP(2.424*ICA_b/100))/1000 -> 0.004283 | F20: =(4.283*EXP(2.424*ICB_b/100))/1000 -> 0.004283 | G20: =(4.283*EXP(2.424*ICC_b/100))/1000 -> 0.004283 | H20: =(4.283*EXP(2.424*ICD_b/100))/1000 -> 0.004283 | I20: =(4.283*EXP(2.424*ICA_d/100))/1000 -> 0.01439172946 | J20: =(4.283*EXP(2.424*ICB_d/100))/1000 -> 0.01439172946 | K20: =(4.283*EXP(2.424*ICC_d/100))/1000 -> 0.01439172946 | L20: =(4.283*EXP(2.424*ICD_d/100))/1000 -> 0.01439172946 | M20: *Function of IC
A21: TN | B21: mg/L | C21: CF_1 | D21: 1.19 | E21: =IF(ICA_b=0,$D21,$I21) -> 1.19 | F21: =IF(ICB_b=0,$D21,$I21) -> 1.19 | G21: =IF(ICC_b=0,$D21,$I21) -> 1.19 | H21: =IF(ICD_b=0,$D21,$I21) -> 1.19 | I21: 2.22 | J21: 2.22 | K21: 2.22 | L21: 2.22
A22: TP | B22: mg/L | C22: CF_1 | D22: 0.124 | E22: =IF(ICA_b=0,$D22,$I22) -> 0.124 | F22: =IF(ICB_b=0,$D22,$I22) -> 0.124 | G22: =IF(ICC_b=0,$D22,$I22) -> 0.124 | H22: =IF(ICD_b=0,$D22,$I22) -> 0.124 | I22: 0.396 | J22: 0.396 | K22: 0.396 | L22: 0.396
A23: TSS | B23: mg/L | C23: CF_1 | D23: 166 | E23: =$D23 -> 166 | F23: =$D23 -> 166 | G23: =$D23 -> 166 | H23: =$D23 -> 166 | I23: 166 | J23: 166 | K23: 166 | L23: 166
A24: Zn | B24: mg/L | C24: CF_1 | D24: =(23.565*EXP(2.179*0/100))/1000 -> 0.023565 | E24: =(23.565*EXP(2.179*ICA_b/100))/1000 -> 0.023565 | F24: =(23.565*EXP(2.179*ICB_b/100))/1000 -> 0.023565 | G24: =(23.565*EXP(2.179*ICC_b/100))/1000 -> 0.023565 | H24: =(23.565*EXP(2.179*ICD_b/100))/1000 -> 0.023565 | I24: =(23.565*EXP(2.179*ICA_d/100))/1000 -> 0.0700537329 | J24: =(23.565*EXP(2.179*ICB_d/100))/1000 -> 0.0700537329 | K24: =(23.565*EXP(2.179*ICC_d/100))/1000 -> 0.0700537329 | L24: =(23.565*EXP(2.179*ICD_d/100))/1000 -> 0.0700537329 | M24: *Function of IC
A26: ECM TABLE 1.11: Treated Surface Effluent Concentrations
A27: Source: Glick et all. Impacts of Stormwater Control Measures on Water Quality in Austin, TX. CM-13-02. City of Austin Watershed Protection Department: September 2013.
A28: Pollutant | B28: Units | C28: Biofiltration | D28: Rainwater Harvesting | E28: Retention Basin | F28: Sedimentation/Filtration | G28: Wet Pond
A29: COD | B29: mg/L | C29: 22.4 | D29: 43.79 | E29: 43.79 | F29: 22.4 | G29: 31.58
A30: E. coli | B30: CFU/100mL | C30: 4895 | D30: 11065 | E30: 11065 | F30: 4895 | G30: 12138
A31: Pb | B31: mg/L | C31: 0.00574 | D31: 0.00831 | E31: 0.00831 | F31: 0.00574 | G31: 0.00994
A32: TN | B32: mg/L | C32: 1.07 | D32: 1.42 | E32: 1.42 | F32: 1.07 | G32: 1.24
A33: TP | B33: mg/L | C33: 0.099 | D33: 0.224 | E33: 0.224 | F33: 0.099 | G33: 0.211
A34: TSS | B34: mg/L | C34: 20.62 | D34: 133.8 | E34: 133.8 | F34: 20.62 | G34: 44.6
A35: Zn | B35: mg/L | C35: 0.023 | D35: 0.0453 | E35: 0.0453 | F35: 0.023 | G35: 0.04388
C36: *Sand or bio, equal to sed/fil | D36: *Equal to Sedimentation | E36: *Equal to Sedimentation
A38: ECM TABLE 1.12: Bypass Concentrations As a Function of Runoff Captured
C40: Drainage Area A | D40: Drainage Area A | E40: Drainage Area B | F40: Drainage Area B | G40: Drainage Area C | H40: Drainage Area C | I40: Drainage Area D | J40: Drainage Area D | K40: Drainage Area A | L40: Drainage Area B | M40: Drainage Area C | N40: Drainage Area D
A41: Pollutant | C41: ='1. ENTER DATA'!F52 -> Retention Basin | D41: =C41 -> Retention Basin | E41: ='1. ENTER DATA'!G52 -> Retention Basin | F41: =E41 -> Retention Basin | G41: ='1. ENTER DATA'!H52 -> Retention Basin | H41: =G41 -> Retention Basin | I41: ='1. ENTER DATA'!I52 -> Retention Basin | J41: =I41 -> Retention Basin | K41: Sed/Fil Equivalent | L41: =K41 -> Sed/Fil Equivalent | M41: =K41 -> Sed/Fil Equivalent | N41: =K41 -> Sed/Fil Equivalent
B42: WQV | C42: =WQV_A1 -> 2.5 | D42: =WQV_A1 -> 2.5 | E42: =WQV_B1 -> 2.5 | F42: =WQV_B1 -> 2.5 | G42: =WQV_C1 -> 2.5 | H42: =WQV_C1 -> 2.5 | I42: =WQV_D1 -> 2.5 | J42: =WQV_D1 -> 2.5 | K42: =C71 -> 0.8 | L42: =D71 -> 0.8 | M42: 0.8 | N42: 0.8
B43: Method | C43: Yes (Off-Line) | D43: No (On-Line) | E43: =C43 -> Yes (Off-Line) | F43: =D43 -> No (On-Line) | G43: =C43 -> Yes (Off-Line) | H43: =D43 -> No (On-Line) | I43: =C43 -> Yes (Off-Line) | J43: =D43 -> No (On-Line) | K43: =$E$43 -> Yes (Off-Line) | L43: =$E$43 -> Yes (Off-Line) | M43: =$E$43 -> Yes (Off-Line) | N43: =$E$43 -> Yes (Off-Line)
A44: COD | B44: mg/L | C44: =IF(C$42>0.0053,EXP(4.493-0.5104*C$42),EXP(5.6158-212.362*C$42)) -> 24.95314833 | D44: =IF(D$42>0.0053,EXP(4.9161-0.5447*D$42),EXP(6.1257-228.771*D$42)) -> 34.96508527 | E44: =IF(E$42>0.0053,EXP(4.493-0.5104*E$42),EXP(5.6158-212.362*E$42)) -> 24.95314833 | F44: =IF(F$42>0.0053,EXP(4.9161-0.5447*F$42),EXP(6.1257-228.771*F$42)) -> 34.96508527 | G44: =IF(G$42>0.0053,EXP(4.493-0.5104*G$42),EXP(5.6158-212.362*G$42)) -> 24.95314833 | H44: =IF(H$42>0.0053,EXP(4.9161-0.5447*H$42),EXP(6.1257-228.771*H$42)) -> 34.96508527 | I44: =IF(I$42>0.0053,EXP(4.493-0.5104*I$42),EXP(5.6158-212.362*I$42)) -> 24.95314833 | J44: =IF(J$42>0.0053,EXP(4.9161-0.5447*J$42),EXP(6.1257-228.771*J$42)) -> 34.96508527 | K44: =IF(K$42>0.0053,EXP(4.493-0.5104*K$42),EXP(5.6158-212.362*K$42)) -> 59.42291937 | L44: =IF(L$42>0.0053,EXP(4.493-0.5104*L$42),EXP(5.6158-212.362*L$42)) -> 59.42291937 | M44: =IF(M$42>0.0053,EXP(4.493-0.5104*M$42),EXP(5.6158-212.362*M$42)) -> 59.42291937 | N44: =IF(N$42>0.0053,EXP(4.493-0.5104*N$42),EXP(5.6158-212.362*N$42)) -> 59.42291937
A45: E. coli | B45: CFU/100mL | C45: =IF(C$42>0.0091,EXP(10.1772-0.4647*C$42),EXP(10.4384-29.1718*C$42)) -> 8229.248687 | D45: =IF(D$42>0.0091,EXP(10.7915-0.6241*D$42),EXP(11.4771-75.97*D$42)) -> 10211.29766 | E45: =IF(E$42>0.0091,EXP(10.1772-0.4647*E$42),EXP(10.4384-29.1718*E$42)) -> 8229.248687 | F45: =IF(F$42>0.0091,EXP(10.7915-0.6241*F$42),EXP(11.4771-75.97*F$42)) -> 10211.29766 | G45: =IF(G$42>0.0091,EXP(10.1772-0.4647*G$42),EXP(10.4384-29.1718*G$42)) -> 8229.248687 | H45: =IF(H$42>0.0091,EXP(10.7915-0.6241*H$42),EXP(11.4771-75.97*H$42)) -> 10211.29766 | I45: =IF(I$42>0.0091,EXP(10.1772-0.4647*I$42),EXP(10.4384-29.1718*I$42)) -> 8229.248687 | J45: =IF(J$42>0.0091,EXP(10.7915-0.6241*J$42),EXP(11.4771-75.97*J$42)) -> 10211.29766 | K45: =IF(K$42>0.0091,EXP(10.1772-0.4647*K$42),EXP(10.4384-29.1718*K$42)) -> 18132.11583 | L45: =IF(L$42>0.0091,EXP(10.1772-0.4647*L$42),EXP(10.4384-29.1718*L$42)) -> 18132.11583 | M45: =IF(M$42>0.0091,EXP(10.1772-0.4647*M$42),EXP(10.4384-29.1718*M$42)) -> 18132.11583 | N45: =IF(N$42>0.0091,EXP(10.1772-0.4647*N$42),EXP(10.4384-29.1718*N$42)) -> 18132.11583
A46: Pb | B46: mg/L | C46: =IF(C$42>0.014,EXP(2.8821-0.4893*C$42),EXP(3.6322-54.0678*C$42))/1000 -> 0.005253266113 | D46: =IF(D$42>0.014,EXP(3.5221-0.5291*D$42),EXP(4.2534-52.7676*D$42))/1000 -> 0.009019149147 | E46: =IF(E$42>0.014,EXP(2.8821-0.4893*E$42),EXP(3.6322-54.0678*E$42))/1000 -> 0.005253266113 | F46: =IF(F$42>0.014,EXP(3.5221-0.5291*F$42),EXP(4.2534-52.7676*F$42))/1000 -> 0.009019149147 | G46: =IF(G$42>0.014,EXP(2.8821-0.4893*G$42),EXP(3.6322-54.0678*G$42))/1000 -> 0.005253266113 | H46: =IF(H$42>0.014,EXP(3.5221-0.5291*H$42),EXP(4.2534-52.7676*H$42))/1000 -> 0.009019149147 | I46: =IF(I$42>0.014,EXP(2.8821-0.4893*I$42),EXP(3.6322-54.0678*I$42))/1000 -> 0.005253266113 | J46: =IF(J$42>0.014,EXP(3.5221-0.5291*J$42),EXP(4.2534-52.7676*J$42))/1000 -> 0.009019149147 | K46: =IF(K$42>0.014,EXP(2.8821-0.4893*K$42),EXP(3.6322-54.0678*K$42))/1000 -> 0.01206923919 | L46: =IF(L$42>0.014,EXP(2.8821-0.4893*L$42),EXP(3.6322-54.0678*L$42))/1000 -> 0.01206923919 | M46: =IF(M$42>0.014,EXP(2.8821-0.4893*M$42),EXP(3.6322-54.0678*M$42))/1000 -> 0.01206923919 | N46: =IF(N$42>0.014,EXP(2.8821-0.4893*N$42),EXP(3.6322-54.0678*N$42))/1000 -> 0.01206923919
A47: TN | B47: mg/L | C47: =IF(C$42>0.0145,EXP(0.9574-0.267*C$42),EXP(1.8156-59.4508*C$42)) -> 1.336293852 | D47: =IF(D$42>0.0145,EXP(1.3219-0.2364*D$42),EXP(2.2217-62.2914*D$42)) -> 2.076949021 | E47: =IF(E$42>0.0145,EXP(0.9574-0.267*E$42),EXP(1.8156-59.4508*E$42)) -> 1.336293852 | F47: =IF(F$42>0.0145,EXP(1.3219-0.2364*F$42),EXP(2.2217-62.2914*F$42)) -> 2.076949021 | G47: =IF(G$42>0.0145,EXP(0.9574-0.267*G$42),EXP(1.8156-59.4508*G$42)) -> 1.336293852 | H47: =IF(H$42>0.0145,EXP(1.3219-0.2364*H$42),EXP(2.2217-62.2914*H$42)) -> 2.076949021 | I47: =IF(I$42>0.0145,EXP(0.9574-0.267*I$42),EXP(1.8156-59.4508*I$42)) -> 1.336293852 | J47: =IF(J$42>0.0145,EXP(1.3219-0.2364*J$42),EXP(2.2217-62.2914*J$42)) -> 2.076949021 | K47: =IF(K$42>0.0145,EXP(0.9574-0.267*K$42),EXP(1.8156-59.4508*K$42)) -> 2.103915221 | L47: =IF(L$42>0.0145,EXP(0.9574-0.267*L$42),EXP(1.8156-59.4508*L$42)) -> 2.103915221 | M47: =IF(M$42>0.0145,EXP(0.9574-0.267*M$42),EXP(1.8156-59.4508*M$42)) -> 2.103915221 | N47: =IF(N$42>0.0145,EXP(0.9574-0.267*N$42),EXP(1.8156-59.4508*N$42)) -> 2.103915221
A48: TP | B48: mg/L | C48: =IF(C$42>0.00426,EXP(-0.6134-0.4693*C$42),EXP(0.0336-152.341*C$42)) -> 0.1675204241 | D48: =IF(D$42>0.00426,EXP(-0.2231-0.4003*D$42),EXP(0.5338-178.08*D$42)) -> 0.294095716 | E48: =IF(E$42>0.00426,EXP(-0.6134-0.4693*E$42),EXP(0.0336-152.341*E$42)) -> 0.1675204241 | F48: =IF(F$42>0.00426,EXP(-0.2231-0.4003*F$42),EXP(0.5338-178.08*F$42)) -> 0.294095716 | G48: =IF(G$42>0.00426,EXP(-0.6134-0.4693*G$42),EXP(0.0336-152.341*G$42)) -> 0.1675204241 | H48: =IF(H$42>0.00426,EXP(-0.2231-0.4003*H$42),EXP(0.5338-178.08*H$42)) -> 0.294095716 | I48: =IF(I$42>0.00426,EXP(-0.6134-0.4693*I$42),EXP(0.0336-152.341*I$42)) -> 0.1675204241 | J48: =IF(J$42>0.00426,EXP(-0.2231-0.4003*J$42),EXP(0.5338-178.08*J$42)) -> 0.294095716 | K48: =IF(K$42>0.00426,EXP(-0.6134-0.4693*K$42),EXP(0.0336-152.341*K$42)) -> 0.3720079701 | L48: =IF(L$42>0.00426,EXP(-0.6134-0.4693*L$42),EXP(0.0336-152.341*L$42)) -> 0.3720079701 | M48: =IF(M$42>0.00426,EXP(-0.6134-0.4693*M$42),EXP(0.0336-152.341*M$42)) -> 0.3720079701 | N48: =IF(N$42>0.00426,EXP(-0.6134-0.4693*N$42),EXP(0.0336-152.341*N$42)) -> 0.3720079701
A49: TSS | B49: mg/L | C49: =IF(C$42>0.00399,EXP(5.2895-0.9341*C$42),EXP(6.3181-258.741*C$42)) -> 19.18732683 | D49: =IF(D$42>0.00399,EXP(5.8622-0.7645*D$42),EXP(6.8265-242.449*D$42)) -> 51.98472888 | E49: =IF(E$42>0.00399,EXP(5.2895-0.9341*E$42),EXP(6.3181-258.741*E$42)) -> 19.18732683 | F49: =IF(F$42>0.00399,EXP(5.8622-0.7645*F$42),EXP(6.8265-242.449*F$42)) -> 51.98472888 | G49: =IF(G$42>0.00399,EXP(5.2895-0.9341*G$42),EXP(6.3181-258.741*G$42)) -> 19.18732683 | H49: =IF(H$42>0.00399,EXP(5.8622-0.7645*H$42),EXP(6.8265-242.449*H$42)) -> 51.98472888 | I49: =IF(I$42>0.00399,EXP(5.2895-0.9341*I$42),EXP(6.3181-258.741*I$42)) -> 19.18732683 | J49: =IF(J$42>0.00399,EXP(5.8622-0.7645*J$42),EXP(6.8265-242.449*J$42)) -> 51.98472888 | K49: =IF(K$42>0.00399,EXP(5.2895-0.9341*K$42),EXP(6.3181-258.741*K$42)) -> 93.89902474 | L49: =IF(L$42>0.00399,EXP(5.2895-0.9341*L$42),EXP(6.3181-258.741*L$42)) -> 93.89902474 | M49: =IF(M$42>0.00399,EXP(5.2895-0.9341*M$42),EXP(6.3181-258.741*M$42)) -> 93.89902474 | N49: =IF(N$42>0.00399,EXP(5.2895-0.9341*N$42),EXP(6.3181-258.741*N$42)) -> 93.89902474
A50: Zn | B50: mg/L | C50: =IF(C$42>0.0147,EXP(4.61-0.4424*C$42),EXP(5.5439-63.9761*C$42))/1000 -> 0.03324817904 | D50: =IF(D$42>0.0147,EXP(5.1995-0.531*D$42),EXP(6.1534-65.4251*D$42))/1000 -> 0.0480383668 | E50: =IF(E$42>0.0147,EXP(4.61-0.4424*E$42),EXP(5.5439-63.9761*E$42))/1000 -> 0.03324817904 | F50: =IF(F$42>0.0147,EXP(5.1995-0.531*F$42),EXP(6.1534-65.4251*F$42))/1000 -> 0.0480383668 | G50: =IF(G$42>0.0147,EXP(4.61-0.4424*G$42),EXP(5.5439-63.9761*G$42))/1000 -> 0.03324817904 | H50: =IF(H$42>0.0147,EXP(5.1995-0.531*H$42),EXP(6.1534-65.4251*H$42))/1000 -> 0.0480383668 | I50: =IF(I$42>0.0147,EXP(4.61-0.4424*I$42),EXP(5.5439-63.9761*I$42))/1000 -> 0.03324817904 | J50: =IF(J$42>0.0147,EXP(5.1995-0.531*J$42),EXP(6.1534-65.4251*J$42))/1000 -> 0.0480383668 | K50: =IF(K$42>0.0147,EXP(4.61-0.4424*K$42),EXP(5.5439-63.9761*K$42))/1000 -> 0.07053295166 | L50: =IF(L$42>0.0147,EXP(4.61-0.4424*L$42),EXP(5.5439-63.9761*L$42))/1000 -> 0.07053295166 | M50: =IF(M$42>0.0147,EXP(4.61-0.4424*M$42),EXP(5.5439-63.9761*M$42))/1000 -> 0.07053295166 | N50: =IF(N$42>0.0147,EXP(4.61-0.4424*N$42),EXP(5.5439-63.9761*N$42))/1000 -> 0.07053295166
C51: *CM-14-10, "Offline" uses 80th pct, "online" uses 90th pct regressions
A54: CALCULATE: RUNOFF
C55: Drainage Area A | D55: Drainage Area B | E55: Drainage Area C | F55: Drainage Area D
B56: Analyze? | C56: 1 | D56: =IF(n_DA>1,1,0) -> 0 | E56: =IF(n_DA>2,1,0) -> 0 | F56: =IF(n_DA>3,1,0) -> 0
B57: Drainage Area (Ac) | C57: =DA_A -> 1 | D57: =DA_B -> 1 | E57: =DA_C -> 1 | F57: =DA_D -> 1
A58: Existing | B58: IC % | C58: =ICA_b -> 0 | D58: =ICB_b -> 0 | E58: =ICC_b -> 0 | F58: =ICD_b -> 0
B59: Rv (Runoff Coeff) | C59: =0.7162*C58/100+0.0644 -> 0.0644 | D59: =0.7162*D58/100+0.0644 -> 0.0644 | E59: =0.7162*E58/100+0.0644 -> 0.0644 | F59: =0.7162*F58/100+0.0644 -> 0.0644
B60: Sd (Dep Storage) | C60: =0.2181*EXP(-1.9456*C58/100) -> 0.2181 | D60: =0.2181*EXP(-1.9456*D58/100) -> 0.2181 | E60: =0.2181*EXP(-1.9456*E58/100) -> 0.2181 | F60: =0.2181*EXP(-1.9456*F58/100) -> 0.2181
B61: Runoff (in/yr) | C61: =C$56*$A$7*C59*EXP(-$A$8/$A$7*C60) -> 1.3026685 | D61: =D$56*$A$7*D59*EXP(-$A$8/$A$7*D60) -> 0 | E61: =E$56*$A$7*E59*EXP(-$A$8/$A$7*E60) -> 0 | F61: =F$56*$A$7*F59*EXP(-$A$8/$A$7*F60) -> 0
B62: Runoff (Ac-in/yr) | C62: =C57*C61 -> 1.3026685 | D62: =D57*D61 -> 0 | E62: 0 | F62: 0
A63: Developed | B63: IC % | C63: =ICA_d -> 50 | D63: =ICB_d -> 50 | E63: =ICC_d -> 50 | F63: =ICD_d -> 50
B64: Rv (Runoff Coeff) | C64: =0.7162*C63/100+0.0644 -> 0.4225 | D64: =0.7162*D63/100+0.0644 -> 0.4225 | E64: =0.7162*E63/100+0.0644 -> 0.4225 | F64: =0.7162*F63/100+0.0644 -> 0.4225
B65: Sd (Dep Storage) | C65: =0.2181*EXP(-1.9456*C63/100) -> 0.08244683598 | D65: =0.2181*EXP(-1.9456*D63/100) -> 0.08244683598 | E65: =0.2181*EXP(-1.9456*E63/100) -> 0.08244683598 | F65: =0.2181*EXP(-1.9456*F63/100) -> 0.08244683598
B66: Runoff (in/yr) | C66: =C$56*$A$7*C64*EXP(-$A$8/$A$7*C65) -> 11.67455532 | D66: =D$56*$A$7*D64*EXP(-$A$8/$A$7*D65) -> 0 | E66: =E$56*$A$7*E64*EXP(-$A$8/$A$7*E65) -> 0 | F66: =F$56*$A$7*F64*EXP(-$A$8/$A$7*F65) -> 0
B67: Runoff (Ac-in/yr) | C67: =C57*C66 -> 11.67455532 | D67: =D57*D66 -> 0 | E67: 0 | F67: 0
A69: CALCULATE: '1/2" PLUS' (MINIMUM) WATER QUALITY VOLUME
C70: Drainage Area A | D70: Drainage Area B | E70: Drainage Area C | F70: Drainage Area D
B71: WQV (in) | C71: =MAX(0.5,0.5+(ICA_d-20)/100) -> 0.8 | D71: =MAX(0.5,0.5+(ICB_d-20)/100) -> 0.8 | E71: =MAX(0.5,0.5+(ICC_d-20)/100) -> 0.8 | F71: =MAX(0.5,0.5+(ICD_d-20)/100) -> 0.8
A74: CALCULATE: Effluent Concentrations For Each SCM
C75: SCM A.1 | D75: SCM B.1 | E75: SCM C.1 | F75: SCM D.1
A76: Pollutant | B76: Units | C76: ='1. ENTER DATA'!F24 -> Retention Basin | D76: ='1. ENTER DATA'!G24 -> Retention Basin | E76: ='1. ENTER DATA'!H24 -> Retention Basin | F76: ='1. ENTER DATA'!I24 -> Retention Basin
A77: COD | B77: mg/L | C77: =IF(C$76="None",I18,MIN(IF(C$76="Alternative",'1. ENTER DATA'!F53,LOOKUP(C$76,$C$28:$G$28,$C29:$G29)),I18)) -> 43.79 | D77: =IF(D$76="None",J18,MIN(IF(D$76="Alternative",'1. ENTER DATA'!G53,LOOKUP(D$76,$C$28:$G$28,$C29:$G29)),J18)) -> 43.79 | E77: =IF(E$76="None",K18,MIN(IF(E$76="Alternative",'1. ENTER DATA'!H53,LOOKUP(E$76,$C$28:$G$28,$C29:$G29)),K18)) -> 43.79 | F77: =IF(F$76="None",L18,MIN(IF(F$76="Alternative",'1. ENTER DATA'!I53,LOOKUP(F$76,$C$28:$G$28,$C29:$G29)),L18)) -> 43.79
A78: E. coli | B78: CFU/100mL | C78: =IF(C$76="None",I19,MIN(IF(C$76="Alternative",'1. ENTER DATA'!F54,LOOKUP(C$76,$C$28:$G$28,$C30:$G30)),I19)) -> 11065 | D78: =IF(D$76="None",J19,MIN(IF(D$76="Alternative",'1. ENTER DATA'!G54,LOOKUP(D$76,$C$28:$G$28,$C30:$G30)),J19)) -> 11065 | E78: =IF(E$76="None",K19,MIN(IF(E$76="Alternative",'1. ENTER DATA'!H54,LOOKUP(E$76,$C$28:$G$28,$C30:$G30)),K19)) -> 11065 | F78: =IF(F$76="None",L19,MIN(IF(F$76="Alternative",'1. ENTER DATA'!I54,LOOKUP(F$76,$C$28:$G$28,$C30:$G30)),L19)) -> 11065
A79: Pb | B79: mg/L | C79: =IF(C$76="None",I20,MIN(IF(C$76="Alternative",'1. ENTER DATA'!F55,LOOKUP(C$76,$C$28:$G$28,$C31:$G31)),I20)) -> 0.00831 | D79: =IF(D$76="None",J20,MIN(IF(D$76="Alternative",'1. ENTER DATA'!G55,LOOKUP(D$76,$C$28:$G$28,$C31:$G31)),J20)) -> 0.00831 | E79: =IF(E$76="None",K20,MIN(IF(E$76="Alternative",'1. ENTER DATA'!H55,LOOKUP(E$76,$C$28:$G$28,$C31:$G31)),K20)) -> 0.00831 | F79: =IF(F$76="None",L20,MIN(IF(F$76="Alternative",'1. ENTER DATA'!I55,LOOKUP(F$76,$C$28:$G$28,$C31:$G31)),L20)) -> 0.00831
A80: TN | B80: mg/L | C80: =IF(C$76="None",I21,MIN(IF(C$76="Alternative",'1. ENTER DATA'!F56,LOOKUP(C$76,$C$28:$G$28,$C32:$G32)),I21)) -> 1.42 | D80: =IF(D$76="None",J21,MIN(IF(D$76="Alternative",'1. ENTER DATA'!G56,LOOKUP(D$76,$C$28:$G$28,$C32:$G32)),J21)) -> 1.42 | E80: =IF(E$76="None",K21,MIN(IF(E$76="Alternative",'1. ENTER DATA'!H56,LOOKUP(E$76,$C$28:$G$28,$C32:$G32)),K21)) -> 1.42 | F80: =IF(F$76="None",L21,MIN(IF(F$76="Alternative",'1. ENTER DATA'!I56,LOOKUP(F$76,$C$28:$G$28,$C32:$G32)),L21)) -> 1.42
A81: TP | B81: mg/L | C81: =IF(C$76="None",I22,MIN(IF(C$76="Alternative",'1. ENTER DATA'!F57,LOOKUP(C$76,$C$28:$G$28,$C33:$G33)),I22)) -> 0.224 | D81: =IF(D$76="None",J22,MIN(IF(D$76="Alternative",'1. ENTER DATA'!G57,LOOKUP(D$76,$C$28:$G$28,$C33:$G33)),J22)) -> 0.224 | E81: =IF(E$76="None",K22,MIN(IF(E$76="Alternative",'1. ENTER DATA'!H57,LOOKUP(E$76,$C$28:$G$28,$C33:$G33)),K22)) -> 0.224 | F81: =IF(F$76="None",L22,MIN(IF(F$76="Alternative",'1. ENTER DATA'!I57,LOOKUP(F$76,$C$28:$G$28,$C33:$G33)),L22)) -> 0.224
A82: TSS | B82: mg/L | C82: =IF(C$76="None",I23,MIN(IF(C$76="Alternative",'1. ENTER DATA'!F58,LOOKUP(C$76,$C$28:$G$28,$C34:$G34)),I23)) -> 133.8 | D82: =IF(D$76="None",J23,MIN(IF(D$76="Alternative",'1. ENTER DATA'!G58,LOOKUP(D$76,$C$28:$G$28,$C34:$G34)),J23)) -> 133.8 | E82: =IF(E$76="None",K23,MIN(IF(E$76="Alternative",'1. ENTER DATA'!H58,LOOKUP(E$76,$C$28:$G$28,$C34:$G34)),K23)) -> 133.8 | F82: =IF(F$76="None",L23,MIN(IF(F$76="Alternative",'1. ENTER DATA'!I58,LOOKUP(F$76,$C$28:$G$28,$C34:$G34)),L23)) -> 133.8
A83: Zn | B83: mg/L | C83: =IF(C$76="None",I24,MIN(IF(C$76="Alternative",'1. ENTER DATA'!F59,LOOKUP(C$76,$C$28:$G$28,$C35:$G35)),I24)) -> 0.0453 | D83: =IF(D$76="None",J24,MIN(IF(D$76="Alternative",'1. ENTER DATA'!G59,LOOKUP(D$76,$C$28:$G$28,$C35:$G35)),J24)) -> 0.0453 | E83: =IF(E$76="None",K24,MIN(IF(E$76="Alternative",'1. ENTER DATA'!H59,LOOKUP(E$76,$C$28:$G$28,$C35:$G35)),K24)) -> 0.0453 | F83: =IF(F$76="None",L24,MIN(IF(F$76="Alternative",'1. ENTER DATA'!I59,LOOKUP(F$76,$C$28:$G$28,$C35:$G35)),L24)) -> 0.0453
C84: SCM A.2 | D84: SCM B.2 | E84: SCM C.2 | F84: SCM D.2
A85: Pollutant | B85: Units | C85: =IF(OR(WQV_A1=0,'1. ENTER DATA'!F24="None"),"None",'1. ENTER DATA'!F41) -> Infiltration Field | D85: =IF(OR(WQV_B1=0,'1. ENTER DATA'!G24="None"),"None",'1. ENTER DATA'!G41) -> Infiltration Field | E85: =IF(OR(WQV_C1=0,'1. ENTER DATA'!H24="None"),"None",'1. ENTER DATA'!H41) -> Infiltration Field | F85: =IF(OR(WQV_D1=0,'1. ENTER DATA'!I24="None"),"None",'1. ENTER DATA'!I41) -> Infiltration Field
A86: COD | B86: mg/L | C86: =MIN(IF(C$85="Alternative",'1. ENTER DATA'!F62,IF(OR(C$85="Infiltration Field",C$85="None",C$85="Beneficial Use"),C77,LOOKUP(C$85,$C$28:$G$28,$C29:$G29))),C77) -> 43.79 | D86: =MIN(IF(D$85="Alternative",'1. ENTER DATA'!G62,IF(OR(D$85="Infiltration Field",D$85="None",D$85="Beneficial Use"),D77,LOOKUP(D$85,$C$28:$G$28,$C29:$G29))),D77) -> 43.79 | E86: =MIN(IF(E$85="Alternative",'1. ENTER DATA'!H62,IF(OR(E$85="Infiltration Field",E$85="None",E$85="Beneficial Use"),E77,LOOKUP(E$85,$C$28:$G$28,$C29:$G29))),E77) -> 43.79 | F86: =MIN(IF(F$85="Alternative",'1. ENTER DATA'!I62,IF(OR(F$85="Infiltration Field",F$85="None",F$85="Beneficial Use"),F77,LOOKUP(F$85,$C$28:$G$28,$C29:$G29))),F77) -> 43.79
A87: E. coli | B87: CFU/100mL | C87: =MIN(IF(C$85="Alternative",'1. ENTER DATA'!F63,IF(OR(C$85="Infiltration Field",C$85="None",C$85="Beneficial Use"),C78,LOOKUP(C$85,$C$28:$G$28,$C30:$G30))),C78) -> 11065 | D87: =MIN(IF(D$85="Alternative",'1. ENTER DATA'!G63,IF(OR(D$85="Infiltration Field",D$85="None",D$85="Beneficial Use"),D78,LOOKUP(D$85,$C$28:$G$28,$C30:$G30))),D78) -> 11065 | E87: =MIN(IF(E$85="Alternative",'1. ENTER DATA'!H63,IF(OR(E$85="Infiltration Field",E$85="None",E$85="Beneficial Use"),E78,LOOKUP(E$85,$C$28:$G$28,$C30:$G30))),E78) -> 11065 | F87: =MIN(IF(F$85="Alternative",'1. ENTER DATA'!I63,IF(OR(F$85="Infiltration Field",F$85="None",F$85="Beneficial Use"),F78,LOOKUP(F$85,$C$28:$G$28,$C30:$G30))),F78) -> 11065
A88: Pb | B88: mg/L | C88: =MIN(IF(C$85="Alternative",'1. ENTER DATA'!F64,IF(OR(C$85="Infiltration Field",C$85="None",C$85="Beneficial Use"),C79,LOOKUP(C$85,$C$28:$G$28,$C31:$G31))),C79) -> 0.00831 | D88: =MIN(IF(D$85="Alternative",'1. ENTER DATA'!G64,IF(OR(D$85="Infiltration Field",D$85="None",D$85="Beneficial Use"),D79,LOOKUP(D$85,$C$28:$G$28,$C31:$G31))),D79) -> 0.00831 | E88: =MIN(IF(E$85="Alternative",'1. ENTER DATA'!H64,IF(OR(E$85="Infiltration Field",E$85="None",E$85="Beneficial Use"),E79,LOOKUP(E$85,$C$28:$G$28,$C31:$G31))),E79) -> 0.00831 | F88: =MIN(IF(F$85="Alternative",'1. ENTER DATA'!I64,IF(OR(F$85="Infiltration Field",F$85="None",F$85="Beneficial Use"),F79,LOOKUP(F$85,$C$28:$G$28,$C31:$G31))),F79) -> 0.00831
A89: TN | B89: mg/L | C89: =MIN(IF(C$85="Alternative",'1. ENTER DATA'!F65,IF(OR(C$85="Infiltration Field",C$85="None",C$85="Beneficial Use"),C80,LOOKUP(C$85,$C$28:$G$28,$C32:$G32))),C80) -> 1.42 | D89: =MIN(IF(D$85="Alternative",'1. ENTER DATA'!G65,IF(OR(D$85="Infiltration Field",D$85="None",D$85="Beneficial Use"),D80,LOOKUP(D$85,$C$28:$G$28,$C32:$G32))),D80) -> 1.42 | E89: =MIN(IF(E$85="Alternative",'1. ENTER DATA'!H65,IF(OR(E$85="Infiltration Field",E$85="None",E$85="Beneficial Use"),E80,LOOKUP(E$85,$C$28:$G$28,$C32:$G32))),E80) -> 1.42 | F89: =MIN(IF(F$85="Alternative",'1. ENTER DATA'!I65,IF(OR(F$85="Infiltration Field",F$85="None",F$85="Beneficial Use"),F80,LOOKUP(F$85,$C$28:$G$28,$C32:$G32))),F80) -> 1.42
A90: TP | B90: mg/L | C90: =MIN(IF(C$85="Alternative",'1. ENTER DATA'!F66,IF(OR(C$85="Infiltration Field",C$85="None",C$85="Beneficial Use"),C81,LOOKUP(C$85,$C$28:$G$28,$C33:$G33))),C81) -> 0.224 | D90: =MIN(IF(D$85="Alternative",'1. ENTER DATA'!G66,IF(OR(D$85="Infiltration Field",D$85="None",D$85="Beneficial Use"),D81,LOOKUP(D$85,$C$28:$G$28,$C33:$G33))),D81) -> 0.224 | E90: =MIN(IF(E$85="Alternative",'1. ENTER DATA'!H66,IF(OR(E$85="Infiltration Field",E$85="None",E$85="Beneficial Use"),E81,LOOKUP(E$85,$C$28:$G$28,$C33:$G33))),E81) -> 0.224 | F90: =MIN(IF(F$85="Alternative",'1. ENTER DATA'!I66,IF(OR(F$85="Infiltration Field",F$85="None",F$85="Beneficial Use"),F81,LOOKUP(F$85,$C$28:$G$28,$C33:$G33))),F81) -> 0.224
A91: TSS | B91: mg/L | C91: =MIN(IF(C$85="Alternative",'1. ENTER DATA'!F67,IF(OR(C$85="Infiltration Field",C$85="None",C$85="Beneficial Use"),C82,LOOKUP(C$85,$C$28:$G$28,$C34:$G34))),C82) -> 133.8 | D91: =MIN(IF(D$85="Alternative",'1. ENTER DATA'!G67,IF(OR(D$85="Infiltration Field",D$85="None",D$85="Beneficial Use"),D82,LOOKUP(D$85,$C$28:$G$28,$C34:$G34))),D82) -> 133.8 | E91: =MIN(IF(E$85="Alternative",'1. ENTER DATA'!H67,IF(OR(E$85="Infiltration Field",E$85="None",E$85="Beneficial Use"),E82,LOOKUP(E$85,$C$28:$G$28,$C34:$G34))),E82) -> 133.8 | F91: =MIN(IF(F$85="Alternative",'1. ENTER DATA'!I67,IF(OR(F$85="Infiltration Field",F$85="None",F$85="Beneficial Use"),F82,LOOKUP(F$85,$C$28:$G$28,$C34:$G34))),F82) -> 133.8
A92: Zn | B92: mg/L | C92: =MIN(IF(C$85="Alternative",'1. ENTER DATA'!F68,IF(OR(C$85="Infiltration Field",C$85="None",C$85="Beneficial Use"),C83,LOOKUP(C$85,$C$28:$G$28,$C35:$G35))),C83) -> 0.0453 | D92: =MIN(IF(D$85="Alternative",'1. ENTER DATA'!G68,IF(OR(D$85="Infiltration Field",D$85="None",D$85="Beneficial Use"),D83,LOOKUP(D$85,$C$28:$G$28,$C35:$G35))),D83) -> 0.0453 | E92: =MIN(IF(E$85="Alternative",'1. ENTER DATA'!H68,IF(OR(E$85="Infiltration Field",E$85="None",E$85="Beneficial Use"),E83,LOOKUP(E$85,$C$28:$G$28,$C35:$G35))),E83) -> 0.0453 | F92: =MIN(IF(F$85="Alternative",'1. ENTER DATA'!I68,IF(OR(F$85="Infiltration Field",F$85="None",F$85="Beneficial Use"),F83,LOOKUP(F$85,$C$28:$G$28,$C35:$G35))),F83) -> 0.0453
A94: CALCULATE: Bypass Concentrations For Each SCM
C95: Drainage Area A | D95: Drainage Area B | E95: Drainage Area C | F95: Drainage Area D
C96: SCM A.1 | D96: SCM B.1 | E96: SCM C.1 | F96: SCM D.1
A97: Pollutant | B97: Units | C97: ='1. ENTER DATA'!F52 -> Retention Basin | D97: ='1. ENTER DATA'!G52 -> Retention Basin | E97: ='1. ENTER DATA'!H52 -> Retention Basin | F97: ='1. ENTER DATA'!I52 -> Retention Basin
A98: COD | B98: mg/L | C98: =IF(C$97="None",I18,MIN(I18,IF('1. ENTER DATA'!F$25="Yes (Off-Line)",C44,D44))) -> 24.95314833 | D98: =IF(D$97="None",J18,MIN(J18,IF('1. ENTER DATA'!G$25="Yes (Off-Line)",E44,F44))) -> 24.95314833 | E98: =IF(E$97="None",K18,MIN(K18,IF('1. ENTER DATA'!H$25="Yes (Off-Line)",G44,H44))) -> 24.95314833 | F98: =IF(F$97="None",L18,MIN(L18,IF('1. ENTER DATA'!I$25="Yes (Off-Line)",I44,J44))) -> 24.95314833
A99: E. coli | B99: CFU/100mL | C99: =IF(C$97="None",I19,MIN(I19,IF('1. ENTER DATA'!F$25="Yes (Off-Line)",C45,D45))) -> 8229.248687 | D99: =IF(D$97="None",J19,MIN(J19,IF('1. ENTER DATA'!G$25="Yes (Off-Line)",E45,F45))) -> 8229.248687 | E99: =IF(E$97="None",K19,MIN(K19,IF('1. ENTER DATA'!H$25="Yes (Off-Line)",G45,H45))) -> 8229.248687 | F99: =IF(F$97="None",L19,MIN(L19,IF('1. ENTER DATA'!I$25="Yes (Off-Line)",I45,J45))) -> 8229.248687
A100: Pb | B100: mg/L | C100: =IF(C$97="None",I20,MIN(I20,IF('1. ENTER DATA'!F$25="Yes (Off-Line)",C46,D46))) -> 0.005253266113 | D100: =IF(D$97="None",J20,MIN(J20,IF('1. ENTER DATA'!G$25="Yes (Off-Line)",E46,F46))) -> 0.005253266113 | E100: =IF(E$97="None",K20,MIN(K20,IF('1. ENTER DATA'!H$25="Yes (Off-Line)",G46,H46))) -> 0.005253266113 | F100: =IF(F$97="None",L20,MIN(L20,IF('1. ENTER DATA'!I$25="Yes (Off-Line)",I46,J46))) -> 0.005253266113
A101: TN | B101: mg/L | C101: =IF(C$97="None",I21,MIN(I21,IF('1. ENTER DATA'!F$25="Yes (Off-Line)",C47,D47))) -> 1.336293852 | D101: =IF(D$97="None",J21,MIN(J21,IF('1. ENTER DATA'!G$25="Yes (Off-Line)",E47,F47))) -> 1.336293852 | E101: =IF(E$97="None",K21,MIN(K21,IF('1. ENTER DATA'!H$25="Yes (Off-Line)",G47,H47))) -> 1.336293852 | F101: =IF(F$97="None",L21,MIN(L21,IF('1. ENTER DATA'!I$25="Yes (Off-Line)",I47,J47))) -> 1.336293852
A102: TP | B102: mg/L | C102: =IF(C$97="None",I22,MIN(I22,IF('1. ENTER DATA'!F$25="Yes (Off-Line)",C48,D48))) -> 0.1675204241 | D102: =IF(D$97="None",J22,MIN(J22,IF('1. ENTER DATA'!G$25="Yes (Off-Line)",E48,F48))) -> 0.1675204241 | E102: =IF(E$97="None",K22,MIN(K22,IF('1. ENTER DATA'!H$25="Yes (Off-Line)",G48,H48))) -> 0.1675204241 | F102: =IF(F$97="None",L22,MIN(L22,IF('1. ENTER DATA'!I$25="Yes (Off-Line)",I48,J48))) -> 0.1675204241
A103: TSS | B103: mg/L | C103: =IF(C$97="None",I23,MIN(I23,IF('1. ENTER DATA'!F$25="Yes (Off-Line)",C49,D49))) -> 19.18732683 | D103: =IF(D$97="None",J23,MIN(J23,IF('1. ENTER DATA'!G$25="Yes (Off-Line)",E49,F49))) -> 19.18732683 | E103: =IF(E$97="None",K23,MIN(K23,IF('1. ENTER DATA'!H$25="Yes (Off-Line)",G49,H49))) -> 19.18732683 | F103: =IF(F$97="None",L23,MIN(L23,IF('1. ENTER DATA'!I$25="Yes (Off-Line)",I49,J49))) -> 19.18732683
A104: Zn | B104: mg/L | C104: =IF(C$97="None",I24,MIN(I24,IF('1. ENTER DATA'!F$25="Yes (Off-Line)",C50,D50))) -> 0.03324817904 | D104: =IF(D$97="None",J24,MIN(J24,IF('1. ENTER DATA'!G$25="Yes (Off-Line)",E50,F50))) -> 0.03324817904 | E104: =IF(E$97="None",K24,MIN(K24,IF('1. ENTER DATA'!H$25="Yes (Off-Line)",G50,H50))) -> 0.03324817904 | F104: =IF(F$97="None",L24,MIN(L24,IF('1. ENTER DATA'!I$25="Yes (Off-Line)",I50,J50))) -> 0.03324817904
C105: SCM A.2 | D105: SCM B.2 | E105: SCM C.2 | F105: SCM D.2
A106: Pollutant | B106: Units | C106: =C85 -> Infiltration Field | D106: =D85 -> Infiltration Field | E106: Infiltration Field | F106: Infiltration Field
A107: COD | B107: mg/L | C107: =C77 -> 43.79 | D107: 43.79 | E107: 43.79 | F107: 43.79
A108: E. coli | B108: CFU/100mL | C108: 11065 | D108: 11065 | E108: 11065 | F108: 11065
A109: Pb | B109: mg/L | C109: 0.00831 | D109: 0.00831 | E109: 0.00831 | F109: 0.00831
A110: TN | B110: mg/L | C110: 1.42 | D110: 1.42 | E110: 1.42 | F110: 1.42
A111: TP | B111: mg/L | C111: 0.224 | D111: 0.224 | E111: 0.224 | F111: 0.224
A112: TSS | B112: mg/L | C112: 133.8 | D112: 133.8 | E112: 133.8 | F112: 133.8
A113: Zn | B113: mg/L | C113: 0.0453 | D113: 0.0453 | E113: 0.0453 | F113: 0.0453
A115: CLASSIFY: SCM Volumes Calculation Method
G116: PERMUTATIONS FOR VOLUME CALCULATIONS
C117: SCM A | D117: SCM B | E117: SCM C | F117: SCM D | G117: METHOD NO. | H117: SCM 1 | I117: SCM 2
C118: =IF(AND('1. ENTER DATA'!F$33="No",'1. ENTER DATA'!F$42="No; infiltrate all routed water"),1,0) -> 1 | D118: =IF(AND('1. ENTER DATA'!G$33="No",'1. ENTER DATA'!G$42="No; infiltrate all routed water"),1,0) -> 1 | E118: =IF(AND('1. ENTER DATA'!H$33="No",'1. ENTER DATA'!H$42="No; infiltrate all routed water"),1,0) -> 1 | F118: =IF(AND('1. ENTER DATA'!I$33="No",'1. ENTER DATA'!I$42="No; infiltrate all routed water"),1,0) -> 1 | G118: 1 | H118: Don't know RCE | I118: all water inf | J118: (SLAT Default)
C119: =IF(AND('1. ENTER DATA'!F$33="No",'1. ENTER DATA'!F$42="Yes"),1,0) -> 0 | D119: =IF(AND('1. ENTER DATA'!G$33="No",'1. ENTER DATA'!G$42="Yes"),1,0) -> 0 | E119: =IF(AND('1. ENTER DATA'!H$33="No",'1. ENTER DATA'!H$42="Yes"),1,0) -> 0 | F119: =IF(AND('1. ENTER DATA'!I$33="No",'1. ENTER DATA'!I$42="Yes"),1,0) -> 0 | G119: 2 | H119: Don't know RCE | I119: all water NOT inf - give WQV
C120: =IF(AND('1. ENTER DATA'!F$33="Yes",'1. ENTER DATA'!F$42="No; infiltrate all routed water"),1,0) -> 0 | D120: =IF(AND('1. ENTER DATA'!G$33="Yes",'1. ENTER DATA'!G$42="No; infiltrate all routed water"),1,0) -> 0 | E120: =IF(AND('1. ENTER DATA'!H$33="Yes",'1. ENTER DATA'!H$42="No; infiltrate all routed water"),1,0) -> 0 | F120: =IF(AND('1. ENTER DATA'!I$33="Yes",'1. ENTER DATA'!I$42="No; infiltrate all routed water"),1,0) -> 0 | G120: 3 | H120: User override RCE | I120: all water inf
C121: =IF(AND('1. ENTER DATA'!F$33="Yes",'1. ENTER DATA'!F$42="Yes"),1,0) -> 0 | D121: =IF(AND('1. ENTER DATA'!G$33="Yes",'1. ENTER DATA'!G$42="Yes"),1,0) -> 0 | E121: =IF(AND('1. ENTER DATA'!H$33="Yes",'1. ENTER DATA'!H$42="Yes"),1,0) -> 0 | F121: =IF(AND('1. ENTER DATA'!I$33="Yes",'1. ENTER DATA'!I$42="Yes"),1,0) -> 0 | G121: 4 | H121: User override RCE | I121: all water NOT inf - give RCE
A123: CALCULATE: SCM Volumes
C124: SCM A.1 | D124: SCM B.1 | E124: SCM C.1 | F124: SCM D.1
A125: Control is not "None"? | C125: =IF('1. ENTER DATA'!F24<>"None",1,0)*C56 -> 1 | D125: =IF('1. ENTER DATA'!G24<>"None",1,0)*D56 -> 0 | E125: =IF('1. ENTER DATA'!H24<>"None",1,0)*E56 -> 0 | F125: =IF('1. ENTER DATA'!I24<>"None",1,0)*F56 -> 0
A126: Calculation Method Classification | C126: =INDEX($G$118:$G$121,MATCH(1,C$118:C$121,0)) -> 1 | D126: =INDEX($G$118:$G$121,MATCH(1,D$118:D$121,0)) -> 1 | E126: =INDEX($G$118:$G$121,MATCH(1,E$118:E$121,0)) -> 1 | F126: =INDEX($G$118:$G$121,MATCH(1,F$118:F$121,0)) -> 1
A127: RCE of SCM 1 | C127: =IF(C126>2,'1. ENTER DATA'!F34/100,RCE_A1_AP)*C125 -> 0.9810534515 | D127: =IF(D126>2,'1. ENTER DATA'!G34/100,RCE_B1_AP)*D125 -> 0 | E127: =IF(E126>2,'1. ENTER DATA'!H34/100,RCE_C1_AP)*E125 -> 0 | F127: =IF(F126>2,'1. ENTER DATA'!I34/100,RCE_D1_AP)*F125 -> 0
A128: Volume treated by SCM 1 (in/yr) | C128: =RCE_A1*'3. CALCS_Loads'!C$66 -> 11.45336279 | D128: =RCE_B1*'3. CALCS_Loads'!D$66 -> 0 | E128: =RCE_C1*'3. CALCS_Loads'!E$66 -> 0 | F128: =RCE_D1*'3. CALCS_Loads'!F$66 -> 0
A129: Volume treated by SCM 1 (Ac-in/yr) | C129: =RCE_A1*'3. CALCS_Loads'!C$67 -> 11.45336279 | D129: =RCE_B1*'3. CALCS_Loads'!D$67 -> 0 | E129: =RCE_C1*'3. CALCS_Loads'!E$67 -> 0 | F129: =RCE_D1*'3. CALCS_Loads'!F$67 -> 0
A130: Bypass Volume (in/yr) | C130: ='3. CALCS_Loads'!C66-C128 -> 0.2211925281 | D130: ='3. CALCS_Loads'!D66-D128 -> 0 | E130: ='3. CALCS_Loads'!E66-E128 -> 0 | F130: ='3. CALCS_Loads'!F66-F128 -> 0
A131: Bypass Volume (Ac-in/yr) | C131: ='3. CALCS_Loads'!C67-C129 -> 0.2211925281 | D131: ='3. CALCS_Loads'!D67-D129 -> 0 | E131: ='3. CALCS_Loads'!E67-E129 -> 0 | F131: ='3. CALCS_Loads'!F67-F129 -> 0
C132: SCM A.2 | D132: SCM B.2 | E132: SCM C.2 | F132: SCM D.2
A133: Control is not "None"? | C133: =IF(AND('1. ENTER DATA'!F41<>"None",WQV_A1<>0),1,0)*C56 -> 1 | D133: =IF(AND('1. ENTER DATA'!G41<>"None",WQV_B1<>0),1,0)*D56 -> 0 | E133: =IF(AND('1. ENTER DATA'!H41<>"None",WQV_C1<>0),1,0)*E56 -> 0 | F133: =IF(AND('1. ENTER DATA'!I41<>"None",WQV_D1<>0),1,0)*F56 -> 0
A134: WQV Routed to SCM 2 (in) | C134: =C$133*C$125*IF(C$126<=2,WQV_A1,#N/A) -> 2.5 | D134: =D$133*D$125*IF(D$126<=2,WQV_B1,#N/A) -> 0 | E134: =E$133*E$125*IF(E$126<=2,WQV_C1,#N/A) -> 0 | F134: =F$133*F$125*IF(F$126<=2,WQV_D1,#N/A) -> 0
A135: RCE Routed to SCM 2 | C135: =C$133*C$125*IF(C$126<=2,'5.CALCS_Adams&Papa'!B49,'1. ENTER DATA'!F$34/100) -> 0.9810534515 | D135: =D$133*D$125*IF(D$126<=2,'5.CALCS_Adams&Papa'!C49,'1. ENTER DATA'!G$34/100) -> 0 | E135: =E$133*E$125*IF(E$126<=2,'5.CALCS_Adams&Papa'!D49,'1. ENTER DATA'!H$34/100) -> 0 | F135: =F$133*F$125*IF(F$126<=2,'5.CALCS_Adams&Papa'!E49,'1. ENTER DATA'!I$34/100) -> 0
A136: Volume routed to SCM 2 (in/yr) | C136: =C135*'3. CALCS_Loads'!C$66 -> 11.45336279 | D136: =D135*'3. CALCS_Loads'!D$66 -> 0 | E136: =E135*'3. CALCS_Loads'!E$66 -> 0 | F136: =F135*'3. CALCS_Loads'!F$66 -> 0
A137: Volume routed to SCM 2 (Ac-in/yr) | C137: =C135*'3. CALCS_Loads'!C$67 -> 11.45336279 | D137: =D135*'3. CALCS_Loads'!D$67 -> 0 | E137: =E135*'3. CALCS_Loads'!E$67 -> 0 | F137: =F135*'3. CALCS_Loads'!F$67 -> 0
A138: WQV Infiltrated/reused (in) | C138: =C$133*C$125*IF(C$126=1,WQV_A1,IF(C$126=2,'1. ENTER DATA'!F43,#N/A)) -> 2.5 | D138: =D$133*D$125*IF(D$126=1,WQV_B1,IF(D$126=2,'1. ENTER DATA'!G43,#N/A)) -> 0 | E138: =E$133*E$125*IF(E$126=1,WQV_C1,IF(E$126=2,'1. ENTER DATA'!H43,#N/A)) -> 0 | F138: =F$133*F$125*IF(F$126=1,WQV_D1,IF(F$126=2,'1. ENTER DATA'!I43,#N/A)) -> 0
A139: RCE Infiltrated | C139: =C$133*C$125*IF(C$126=3,'1. ENTER DATA'!F34/100,IF(C$126=4,'1. ENTER DATA'!F44/100,'5.CALCS_Adams&Papa'!B58)) -> 0.9810534515 | D139: =D$133*D$125*IF(D$126=3,'1. ENTER DATA'!G34/100,IF(D$126=4,'1. ENTER DATA'!G44/100,'5.CALCS_Adams&Papa'!C58)) -> 0 | E139: =E$133*E$125*IF(E$126=3,'1. ENTER DATA'!H34/100,IF(E$126=4,'1. ENTER DATA'!H44/100,'5.CALCS_Adams&Papa'!D58)) -> 0 | F139: =F$133*F$125*IF(F$126=3,'1. ENTER DATA'!I34/100,IF(F$126=4,'1. ENTER DATA'!I44/100,'5.CALCS_Adams&Papa'!E58)) -> 0
A140: Infiltrated Volume (in/yr) | C140: =C139*'3. CALCS_Loads'!C$66 -> 11.45336279 | D140: =D139*'3. CALCS_Loads'!D$66 -> 0 | E140: =E139*'3. CALCS_Loads'!E$66 -> 0 | F140: =F139*'3. CALCS_Loads'!F$66 -> 0
A141: Infiltrated Volume (Ac-in/yr) - for calcs | C141: =C139*'3. CALCS_Loads'!C$67 -> 11.45336279 | D141: =D139*'3. CALCS_Loads'!D$67 -> 0 | E141: =E139*'3. CALCS_Loads'!E$67 -> 0 | F141: =F139*'3. CALCS_Loads'!F$67 -> 0
A142: Non-infiltrated Volume Treated by SCM 2 (in/yr) | C142: =(C136-C140)*C133*C125 -> 0 | D142: =(D136-D140)*D133*D125 -> 0 | E142: =(E136-E140)*E133*E125 -> 0 | F142: =(F136-F140)*F133*F125 -> 0
A143: Non-infiltrated Volume Treated by SCM 2 (Acre-in/yr) | C143: =C57*C142 -> 0 | D143: =D57*D142 -> 0 | E143: =E57*E142 -> 0 | F143: =F57*F142 -> 0
A144: Volume treated by only SCM 1 (bypasses SCM 2) (in/yr) | C144: =('3. CALCS_Loads'!C128-'3. CALCS_Loads'!C136)*C125 -> 0 | D144: =('3. CALCS_Loads'!D128-'3. CALCS_Loads'!D136)*D125 -> 0 | E144: =('3. CALCS_Loads'!E128-'3. CALCS_Loads'!E136)*E125 -> 0 | F144: =('3. CALCS_Loads'!F128-'3. CALCS_Loads'!F136)*F125 -> 0
A145: Volume treated by only SCM 1 (bypasses SCM 2) (Acre-in/yr) | C145: =('3. CALCS_Loads'!C129-'3. CALCS_Loads'!C137)*C125 -> 0 | D145: =('3. CALCS_Loads'!D129-'3. CALCS_Loads'!D137)*D125 -> 0 | E145: =('3. CALCS_Loads'!E129-'3. CALCS_Loads'!E137)*E125 -> 0 | F145: =('3. CALCS_Loads'!F129-'3. CALCS_Loads'!F137)*F125 -> 0
A146: Error? | C146: =IF(OR(C139>C135,C135>RCE_A1),1,0) -> 0 | D146: =IF(OR(D139>D135,D135>RCE_B1),1,0) -> 0 | E146: =IF(OR(E139>E135,E135>RCE_C1),1,0) -> 0 | F146: =IF(OR(F139>F135,F135>RCE_D1),1,0) -> 0
A149: CALCULATE: Developed, Existing, and Sed/Fil Loadings - For Results Table
B150: POLLUTANT EFFLUENT LOADS, lb/(yr) or 10^6 MPN/(yr) | AH150: Total Site EXISTING Load, L_ex | AI150: Total Site SED/FIL Load, L_sf | AJ150: Total Site BYPASSED Load, L_un | AK150: Total Site DEVELOPED, TREATED Load, L_out | AL150: Compliance Factor | AM150: Compliance Factor | AN150: BSZ COMPLIANT? Is L_out<L_base? | AO150: Non-BSZ COMPLIANT? Is L_out<L_sf?
B151: SCM 1 All Effluent | F151: SCM 1 Effluent that Bypasses SCM 2 | J151: SCM 2 Effluent | N151: Bypasses Both SCMs | R151: Existing | V151: Sed/Fil Equivalent | Z151: Developed (Untreated/Without Controls) Load | AD151: Developed (Treated) Load
A152: POLLUTANT | B152: SCM A1 | C152: SCM B1 | D152: SCM C1 | E152: SCM D1 | F152: SCM A1 | G152: SCM B1 | H152: SCM C1 | I152: SCM D1 | J152: SCM A2 | K152: SCM B2 | L152: SCM C2 | M152: SCM D1 | N152: Drainage Area A | O152: Drainage Area B | P152: Drainage Area C | Q152: Drainage Area D | R152: Drainage Area A | S152: Drainage Area B | T152: Drainage Area C | U152: Drainage Area D | V152: Drainage Area A | W152: Drainage Area B | X152: Drainage Area C | Y152: Drainage Area D | Z152: Drainage Area A | AA152: Drainage Area B | AB152: Drainage Area C | AC152: Drainage Area D | AD152: Drainage Area A | AE152: Drainage Area B | AF152: Drainage Area C | AG152: Drainage Area D | AH152: lb/(yr) or 10^6 MPN/(yr) | AI152: lb/(yr) or 10^6 MPN/(yr) | AJ152: lb/(yr) or 10^6 MPN/(yr) | AK152: lb/(yr) or 10^6 MPN/(yr) | AL152: Compare to Existing | AM152: Compare to Sed/Fil
A153: COD | B153: ='3. CALCS_Loads'!C$129*'3. CALCS_Loads'!C77*IF(LOOKUP($A153,'3. CALCS_Loads'!$A$18:$A$24,'3. CALCS_Loads'!$C$18:$C$24)="CF_1",CF_1,CF_2) -> 113.6997429 | C153: ='3. CALCS_Loads'!D$129*'3. CALCS_Loads'!D77*IF(LOOKUP($A153,'3. CALCS_Loads'!$A$18:$A$24,'3. CALCS_Loads'!$C$18:$C$24)="CF_1",CF_1,CF_2) -> 0 | D153: ='3. CALCS_Loads'!E$129*'3. CALCS_Loads'!E77*IF(LOOKUP($A153,'3. CALCS_Loads'!$A$18:$A$24,'3. CALCS_Loads'!$C$18:$C$24)="CF_1",CF_1,CF_2) -> 0 | E153: ='3. CALCS_Loads'!F$129*'3. CALCS_Loads'!F77*IF(LOOKUP($A153,'3. CALCS_Loads'!$A$18:$A$24,'3. CALCS_Loads'!$C$18:$C$24)="CF_1",CF_1,CF_2) -> 0 | F153: ='3. CALCS_Loads'!C$145*'3. CALCS_Loads'!C107*IF(LOOKUP($A153,'3. CALCS_Loads'!$A$18:$A$24,'3. CALCS_Loads'!$C$18:$C$24)="CF_1",CF_1,CF_2) -> 0 | G153: ='3. CALCS_Loads'!D$145*'3. CALCS_Loads'!D107*IF(LOOKUP($A153,'3. CALCS_Loads'!$A$18:$A$24,'3. CALCS_Loads'!$C$18:$C$24)="CF_1",CF_1,CF_2) -> 0 | H153: ='3. CALCS_Loads'!E$145*'3. CALCS_Loads'!E107*IF(LOOKUP($A153,'3. CALCS_Loads'!$A$18:$A$24,'3. CALCS_Loads'!$C$18:$C$24)="CF_1",CF_1,CF_2) -> 0 | I153: ='3. CALCS_Loads'!F$145*'3. CALCS_Loads'!F107*IF(LOOKUP($A153,'3. CALCS_Loads'!$A$18:$A$24,'3. CALCS_Loads'!$C$18:$C$24)="CF_1",CF_1,CF_2) -> 0 | J153: ='3. CALCS_Loads'!C$143*'3. CALCS_Loads'!C86*IF(LOOKUP($A153,'3. CALCS_Loads'!$A$18:$A$24,'3. CALCS_Loads'!$C$18:$C$24)="CF_1",CF_1,CF_2) -> 0 | K153: ='3. CALCS_Loads'!D$143*'3. CALCS_Loads'!D86*IF(LOOKUP($A153,'3. CALCS_Loads'!$A$18:$A$24,'3. CALCS_Loads'!$C$18:$C$24)="CF_1",CF_1,CF_2) -> 0 | L153: ='3. CALCS_Loads'!E$143*'3. CALCS_Loads'!E86*IF(LOOKUP($A153,'3. CALCS_Loads'!$A$18:$A$24,'3. CALCS_Loads'!$C$18:$C$24)="CF_1",CF_1,CF_2) -> 0 | M153: ='3. CALCS_Loads'!F$143*'3. CALCS_Loads'!F86*IF(LOOKUP($A153,'3. CALCS_Loads'!$A$18:$A$24,'3. CALCS_Loads'!$C$18:$C$24)="CF_1",CF_1,CF_2) -> 0 | N153: ='3. CALCS_Loads'!C$131*'3. CALCS_Loads'!C98*IF(LOOKUP($A153,'3. CALCS_Loads'!$A$18:$A$24,'3. CALCS_Loads'!$C$18:$C$24)="CF_1",CF_1,CF_2) -> 1.251259307 | O153: ='3. CALCS_Loads'!D$131*'3. CALCS_Loads'!D98*IF(LOOKUP($A153,'3. CALCS_Loads'!$A$18:$A$24,'3. CALCS_Loads'!$C$18:$C$24)="CF_1",CF_1,CF_2) -> 0 | P153: ='3. CALCS_Loads'!E$131*'3. CALCS_Loads'!E98*IF(LOOKUP($A153,'3. CALCS_Loads'!$A$18:$A$24,'3. CALCS_Loads'!$C$18:$C$24)="CF_1",CF_1,CF_2) -> 0 | Q153: ='3. CALCS_Loads'!F$131*'3. CALCS_Loads'!F98*IF(LOOKUP($A153,'3. CALCS_Loads'!$A$18:$A$24,'3. CALCS_Loads'!$C$18:$C$24)="CF_1",CF_1,CF_2) -> 0 | R153: ='3. CALCS_Loads'!E18*C$62*IF(LOOKUP($A153,'3. CALCS_Loads'!$A$18:$A$24,'3. CALCS_Loads'!$C$18:$C$24)="CF_1",CF_1,CF_2) -> 11.48775151 | S153: ='3. CALCS_Loads'!F18*D$62*IF(LOOKUP($A153,'3. CALCS_Loads'!$A$18:$A$24,'3. CALCS_Loads'!$C$18:$C$24)="CF_1",CF_1,CF_2) -> 0 | T153: ='3. CALCS_Loads'!G18*E$62*IF(LOOKUP($A153,'3. CALCS_Loads'!$A$18:$A$24,'3. CALCS_Loads'!$C$18:$C$24)="CF_1",CF_1,CF_2) -> 0 | U153: ='3. CALCS_Loads'!H18*F$62*IF(LOOKUP($A153,'3. CALCS_Loads'!$A$18:$A$24,'3. CALCS_Loads'!$C$18:$C$24)="CF_1",CF_1,CF_2) -> 0 | V153: =('5.CALCS_Adams&Papa'!G$40*'3. CALCS_Loads'!$F29+'5.CALCS_Adams&Papa'!G$41*'3. CALCS_Loads'!K44)*IF(LOOKUP($A153,'3. CALCS_Loads'!$A$18:$A$24,'3. CALCS_Loads'!$C$18:$C$24)="CF_1",CF_1,CF_2)*C$56 -> 64.87382071 | W153: =('5.CALCS_Adams&Papa'!H$40*'3. CALCS_Loads'!$F29+'5.CALCS_Adams&Papa'!H$41*'3. CALCS_Loads'!L44)*IF(LOOKUP($A153,'3. CALCS_Loads'!$A$18:$A$24,'3. CALCS_Loads'!$C$18:$C$24)="CF_1",CF_1,CF_2)*D$56 -> 0 | X153: =('5.CALCS_Adams&Papa'!I$40*'3. CALCS_Loads'!$F29+'5.CALCS_Adams&Papa'!I$41*'3. CALCS_Loads'!M44)*IF(LOOKUP($A153,'3. CALCS_Loads'!$A$18:$A$24,'3. CALCS_Loads'!$C$18:$C$24)="CF_1",CF_1,CF_2)*E$56 -> 0 | Y153: =('5.CALCS_Adams&Papa'!J$40*'3. CALCS_Loads'!$F29+'5.CALCS_Adams&Papa'!J$41*'3. CALCS_Loads'!N44)*IF(LOOKUP($A153,'3. CALCS_Loads'!$A$18:$A$24,'3. CALCS_Loads'!$C$18:$C$24)="CF_1",CF_1,CF_2)*F$56 -> 0 | Z153: ='3. CALCS_Loads'!I18*C$67*IF(LOOKUP($A153,'3. CALCS_Loads'!$A$18:$A$24,'3. CALCS_Loads'!$C$18:$C$24)="CF_1",CF_1,CF_2) -> 191.0860861 | AA153: ='3. CALCS_Loads'!J18*D$67*IF(LOOKUP($A153,'3. CALCS_Loads'!$A$18:$A$24,'3. CALCS_Loads'!$C$18:$C$24)="CF_1",CF_1,CF_2) -> 0 | AB153: ='3. CALCS_Loads'!K18*E$67*IF(LOOKUP($A153,'3. CALCS_Loads'!$A$18:$A$24,'3. CALCS_Loads'!$C$18:$C$24)="CF_1",CF_1,CF_2) -> 0 | AC153: ='3. CALCS_Loads'!L18*F$67*IF(LOOKUP($A153,'3. CALCS_Loads'!$A$18:$A$24,'3. CALCS_Loads'!$C$18:$C$24)="CF_1",CF_1,CF_2) -> 0 | AD153: =F153+J153+N153 -> 1.251259307 | AE153: 0 | AF153: 0 | AG153: 0 | AH153: =SUM(R153:U153) -> 11.48775151 | AI153: =SUM(V153:Y153) -> 64.87382071 | AJ153: =SUM(N153:Q153) -> 1.251259307 | AK153: =SUM(AD153:AG153) -> 1.251259307 | AL153: =AK153/AH153 -> 0.1089211675 | AM153: =AK153/AI153 -> 0.01928758462 | AN153: =IF(AL153<=1,"YES","NO") -> YES | AO153: =IF(AM153<=1,"YES","NO") -> YES
A154: E. coli | B154: ='3. CALCS_Loads'!C$129*'3. CALCS_Loads'!C78*IF(LOOKUP($A154,'3. CALCS_Loads'!$A$18:$A$24,'3. CALCS_Loads'!$C$18:$C$24)="CF_1",CF_1,CF_2) -> 130267.267 | C154: ='3. CALCS_Loads'!D$129*'3. CALCS_Loads'!D78*IF(LOOKUP($A154,'3. CALCS_Loads'!$A$18:$A$24,'3. CALCS_Loads'!$C$18:$C$24)="CF_1",CF_1,CF_2) -> 0 | D154: ='3. CALCS_Loads'!E$129*'3. CALCS_Loads'!E78*IF(LOOKUP($A154,'3. CALCS_Loads'!$A$18:$A$24,'3. CALCS_Loads'!$C$18:$C$24)="CF_1",CF_1,CF_2) -> 0 | E154: ='3. CALCS_Loads'!F$129*'3. CALCS_Loads'!F78*IF(LOOKUP($A154,'3. CALCS_Loads'!$A$18:$A$24,'3. CALCS_Loads'!$C$18:$C$24)="CF_1",CF_1,CF_2) -> 0 | F154: ='3. CALCS_Loads'!C$145*'3. CALCS_Loads'!C108*IF(LOOKUP($A154,'3. CALCS_Loads'!$A$18:$A$24,'3. CALCS_Loads'!$C$18:$C$24)="CF_1",CF_1,CF_2) -> 0 | G154: ='3. CALCS_Loads'!D$145*'3. CALCS_Loads'!D108*IF(LOOKUP($A154,'3. CALCS_Loads'!$A$18:$A$24,'3. CALCS_Loads'!$C$18:$C$24)="CF_1",CF_1,CF_2) -> 0 | H154: ='3. CALCS_Loads'!E$145*'3. CALCS_Loads'!E108*IF(LOOKUP($A154,'3. CALCS_Loads'!$A$18:$A$24,'3. CALCS_Loads'!$C$18:$C$24)="CF_1",CF_1,CF_2) -> 0 | I154: ='3. CALCS_Loads'!F$145*'3. CALCS_Loads'!F108*IF(LOOKUP($A154,'3. CALCS_Loads'!$A$18:$A$24,'3. CALCS_Loads'!$C$18:$C$24)="CF_1",CF_1,CF_2) -> 0 | J154: ='3. CALCS_Loads'!C$143*'3. CALCS_Loads'!C87*IF(LOOKUP($A154,'3. CALCS_Loads'!$A$18:$A$24,'3. CALCS_Loads'!$C$18:$C$24)="CF_1",CF_1,CF_2) -> 0 | K154: ='3. CALCS_Loads'!D$143*'3. CALCS_Loads'!D87*IF(LOOKUP($A154,'3. CALCS_Loads'!$A$18:$A$24,'3. CALCS_Loads'!$C$18:$C$24)="CF_1",CF_1,CF_2) -> 0 | L154: ='3. CALCS_Loads'!E$143*'3. CALCS_Loads'!E87*IF(LOOKUP($A154,'3. CALCS_Loads'!$A$18:$A$24,'3. CALCS_Loads'!$C$18:$C$24)="CF_1",CF_1,CF_2) -> 0 | M154: ='3. CALCS_Loads'!F$143*'3. CALCS_Loads'!F87*IF(LOOKUP($A154,'3. CALCS_Loads'!$A$18:$A$24,'3. CALCS_Loads'!$C$18:$C$24)="CF_1",CF_1,CF_2) -> 0 | N154: ='3. CALCS_Loads'!C$131*'3. CALCS_Loads'!C99*IF(LOOKUP($A154,'3. CALCS_Loads'!$A$18:$A$24,'3. CALCS_Loads'!$C$18:$C$24)="CF_1",CF_1,CF_2) -> 1871.03325 | O154: ='3. CALCS_Loads'!D$131*'3. CALCS_Loads'!D99*IF(LOOKUP($A154,'3. CALCS_Loads'!$A$18:$A$24,'3. CALCS_Loads'!$C$18:$C$24)="CF_1",CF_1,CF_2) -> 0 | P154: ='3. CALCS_Loads'!E$131*'3. CALCS_Loads'!E99*IF(LOOKUP($A154,'3. CALCS_Loads'!$A$18:$A$24,'3. CALCS_Loads'!$C$18:$C$24)="CF_1",CF_1,CF_2) -> 0 | Q154: ='3. CALCS_Loads'!F$131*'3. CALCS_Loads'!F99*IF(LOOKUP($A154,'3. CALCS_Loads'!$A$18:$A$24,'3. CALCS_Loads'!$C$18:$C$24)="CF_1",CF_1,CF_2) -> 0 | R154: ='3. CALCS_Loads'!E19*C$62*IF(LOOKUP($A154,'3. CALCS_Loads'!$A$18:$A$24,'3. CALCS_Loads'!$C$18:$C$24)="CF_1",CF_1,CF_2) -> 11210.21643 | S154: ='3. CALCS_Loads'!F19*D$62*IF(LOOKUP($A154,'3. CALCS_Loads'!$A$18:$A$24,'3. CALCS_Loads'!$C$18:$C$24)="CF_1",CF_1,CF_2) -> 0 | T154: ='3. CALCS_Loads'!G19*E$62*IF(LOOKUP($A154,'3. CALCS_Loads'!$A$18:$A$24,'3. CALCS_Loads'!$C$18:$C$24)="CF_1",CF_1,CF_2) -> 0 | U154: ='3. CALCS_Loads'!H19*F$62*IF(LOOKUP($A154,'3. CALCS_Loads'!$A$18:$A$24,'3. CALCS_Loads'!$C$18:$C$24)="CF_1",CF_1,CF_2) -> 0 | V154: =('5.CALCS_Adams&Papa'!G$40*'3. CALCS_Loads'!$F30+'5.CALCS_Adams&Papa'!G$41*'3. CALCS_Loads'!K45)*IF(LOOKUP($A154,'3. CALCS_Loads'!$A$18:$A$24,'3. CALCS_Loads'!$C$18:$C$24)="CF_1",CF_1,CF_2)*C$56 -> 67720.46615 | W154: =('5.CALCS_Adams&Papa'!H$40*'3. CALCS_Loads'!$F30+'5.CALCS_Adams&Papa'!H$41*'3. CALCS_Loads'!L45)*IF(LOOKUP($A154,'3. CALCS_Loads'!$A$18:$A$24,'3. CALCS_Loads'!$C$18:$C$24)="CF_1",CF_1,CF_2)*D$56 -> 0 | X154: =('5.CALCS_Adams&Papa'!I$40*'3. CALCS_Loads'!$F30+'5.CALCS_Adams&Papa'!I$41*'3. CALCS_Loads'!M45)*IF(LOOKUP($A154,'3. CALCS_Loads'!$A$18:$A$24,'3. CALCS_Loads'!$C$18:$C$24)="CF_1",CF_1,CF_2)*E$56 -> 0 | Y154: =('5.CALCS_Adams&Papa'!J$40*'3. CALCS_Loads'!$F30+'5.CALCS_Adams&Papa'!J$41*'3. CALCS_Loads'!N45)*IF(LOOKUP($A154,'3. CALCS_Loads'!$A$18:$A$24,'3. CALCS_Loads'!$C$18:$C$24)="CF_1",CF_1,CF_2)*F$56 -> 0 | Z154: ='3. CALCS_Loads'!I19*C$67*IF(LOOKUP($A154,'3. CALCS_Loads'!$A$18:$A$24,'3. CALCS_Loads'!$C$18:$C$24)="CF_1",CF_1,CF_2) -> 299562.8751 | AA154: ='3. CALCS_Loads'!J19*D$67*IF(LOOKUP($A154,'3. CALCS_Loads'!$A$18:$A$24,'3. CALCS_Loads'!$C$18:$C$24)="CF_1",CF_1,CF_2) -> 0 | AB154: ='3. CALCS_Loads'!K19*E$67*IF(LOOKUP($A154,'3. CALCS_Loads'!$A$18:$A$24,'3. CALCS_Loads'!$C$18:$C$24)="CF_1",CF_1,CF_2) -> 0 | AC154: ='3. CALCS_Loads'!L19*F$67*IF(LOOKUP($A154,'3. CALCS_Loads'!$A$18:$A$24,'3. CALCS_Loads'!$C$18:$C$24)="CF_1",CF_1,CF_2) -> 0 | AD154: 1871.03325 | AE154: 0 | AF154: 0 | AG154: 0 | AH154: 11210.21643 | AI154: 67720.46615 | AJ154: 1871.03325 | AK154: 1871.03325 | AL154: 0.1669042932 | AM154: 0.02762877097 | AN154: =IF(AL154<=1,"YES","NO") -> YES | AO154: =IF(AM154<=1,"YES","NO") -> YES
A155: Pb | B155: ='3. CALCS_Loads'!C$129*'3. CALCS_Loads'!C79*IF(LOOKUP($A155,'3. CALCS_Loads'!$A$18:$A$24,'3. CALCS_Loads'!$C$18:$C$24)="CF_1",CF_1,CF_2) -> 0.02157672673 | C155: ='3. CALCS_Loads'!D$129*'3. CALCS_Loads'!D79*IF(LOOKUP($A155,'3. CALCS_Loads'!$A$18:$A$24,'3. CALCS_Loads'!$C$18:$C$24)="CF_1",CF_1,CF_2) -> 0 | D155: ='3. CALCS_Loads'!E$129*'3. CALCS_Loads'!E79*IF(LOOKUP($A155,'3. CALCS_Loads'!$A$18:$A$24,'3. CALCS_Loads'!$C$18:$C$24)="CF_1",CF_1,CF_2) -> 0 | E155: ='3. CALCS_Loads'!F$129*'3. CALCS_Loads'!F79*IF(LOOKUP($A155,'3. CALCS_Loads'!$A$18:$A$24,'3. CALCS_Loads'!$C$18:$C$24)="CF_1",CF_1,CF_2) -> 0 | F155: ='3. CALCS_Loads'!C$145*'3. CALCS_Loads'!C109*IF(LOOKUP($A155,'3. CALCS_Loads'!$A$18:$A$24,'3. CALCS_Loads'!$C$18:$C$24)="CF_1",CF_1,CF_2) -> 0 | G155: ='3. CALCS_Loads'!D$145*'3. CALCS_Loads'!D109*IF(LOOKUP($A155,'3. CALCS_Loads'!$A$18:$A$24,'3. CALCS_Loads'!$C$18:$C$24)="CF_1",CF_1,CF_2) -> 0 | H155: ='3. CALCS_Loads'!E$145*'3. CALCS_Loads'!E109*IF(LOOKUP($A155,'3. CALCS_Loads'!$A$18:$A$24,'3. CALCS_Loads'!$C$18:$C$24)="CF_1",CF_1,CF_2) -> 0 | I155: ='3. CALCS_Loads'!F$145*'3. CALCS_Loads'!F109*IF(LOOKUP($A155,'3. CALCS_Loads'!$A$18:$A$24,'3. CALCS_Loads'!$C$18:$C$24)="CF_1",CF_1,CF_2) -> 0 | J155: ='3. CALCS_Loads'!C$143*'3. CALCS_Loads'!C88*IF(LOOKUP($A155,'3. CALCS_Loads'!$A$18:$A$24,'3. CALCS_Loads'!$C$18:$C$24)="CF_1",CF_1,CF_2) -> 0 | K155: ='3. CALCS_Loads'!D$143*'3. CALCS_Loads'!D88*IF(LOOKUP($A155,'3. CALCS_Loads'!$A$18:$A$24,'3. CALCS_Loads'!$C$18:$C$24)="CF_1",CF_1,CF_2) -> 0 | L155: ='3. CALCS_Loads'!E$143*'3. CALCS_Loads'!E88*IF(LOOKUP($A155,'3. CALCS_Loads'!$A$18:$A$24,'3. CALCS_Loads'!$C$18:$C$24)="CF_1",CF_1,CF_2) -> 0 | M155: ='3. CALCS_Loads'!F$143*'3. CALCS_Loads'!F88*IF(LOOKUP($A155,'3. CALCS_Loads'!$A$18:$A$24,'3. CALCS_Loads'!$C$18:$C$24)="CF_1",CF_1,CF_2) -> 0 | N155: ='3. CALCS_Loads'!C$131*'3. CALCS_Loads'!C100*IF(LOOKUP($A155,'3. CALCS_Loads'!$A$18:$A$24,'3. CALCS_Loads'!$C$18:$C$24)="CF_1",CF_1,CF_2) -> 0.0002634215942 | O155: ='3. CALCS_Loads'!D$131*'3. CALCS_Loads'!D100*IF(LOOKUP($A155,'3. CALCS_Loads'!$A$18:$A$24,'3. CALCS_Loads'!$C$18:$C$24)="CF_1",CF_1,CF_2) -> 0 | P155: ='3. CALCS_Loads'!E$131*'3. CALCS_Loads'!E100*IF(LOOKUP($A155,'3. CALCS_Loads'!$A$18:$A$24,'3. CALCS_Loads'!$C$18:$C$24)="CF_1",CF_1,CF_2) -> 0 | Q155: ='3. CALCS_Loads'!F$131*'3. CALCS_Loads'!F100*IF(LOOKUP($A155,'3. CALCS_Loads'!$A$18:$A$24,'3. CALCS_Loads'!$C$18:$C$24)="CF_1",CF_1,CF_2) -> 0 | R155: ='3. CALCS_Loads'!E20*C$62*IF(LOOKUP($A155,'3. CALCS_Loads'!$A$18:$A$24,'3. CALCS_Loads'!$C$18:$C$24)="CF_1",CF_1,CF_2) -> 0.001264833926 | S155: ='3. CALCS_Loads'!F20*D$62*IF(LOOKUP($A155,'3. CALCS_Loads'!$A$18:$A$24,'3. CALCS_Loads'!$C$18:$C$24)="CF_1",CF_1,CF_2) -> 0 | T155: ='3. CALCS_Loads'!G20*E$62*IF(LOOKUP($A155,'3. CALCS_Loads'!$A$18:$A$24,'3. CALCS_Loads'!$C$18:$C$24)="CF_1",CF_1,CF_2) -> 0 | U155: ='3. CALCS_Loads'!H20*F$62*IF(LOOKUP($A155,'3. CALCS_Loads'!$A$18:$A$24,'3. CALCS_Loads'!$C$18:$C$24)="CF_1",CF_1,CF_2) -> 0 | V155: =('5.CALCS_Adams&Papa'!G$40*'3. CALCS_Loads'!$F31+'5.CALCS_Adams&Papa'!G$41*'3. CALCS_Loads'!K46)*IF(LOOKUP($A155,'3. CALCS_Loads'!$A$18:$A$24,'3. CALCS_Loads'!$C$18:$C$24)="CF_1",CF_1,CF_2)*C$56 -> 0.01615829127 | W155: =('5.CALCS_Adams&Papa'!H$40*'3. CALCS_Loads'!$F31+'5.CALCS_Adams&Papa'!H$41*'3. CALCS_Loads'!L46)*IF(LOOKUP($A155,'3. CALCS_Loads'!$A$18:$A$24,'3. CALCS_Loads'!$C$18:$C$24)="CF_1",CF_1,CF_2)*D$56 -> 0 | X155: =('5.CALCS_Adams&Papa'!I$40*'3. CALCS_Loads'!$F31+'5.CALCS_Adams&Papa'!I$41*'3. CALCS_Loads'!M46)*IF(LOOKUP($A155,'3. CALCS_Loads'!$A$18:$A$24,'3. CALCS_Loads'!$C$18:$C$24)="CF_1",CF_1,CF_2)*E$56 -> 0 | Y155: =('5.CALCS_Adams&Papa'!J$40*'3. CALCS_Loads'!$F31+'5.CALCS_Adams&Papa'!J$41*'3. CALCS_Loads'!N46)*IF(LOOKUP($A155,'3. CALCS_Loads'!$A$18:$A$24,'3. CALCS_Loads'!$C$18:$C$24)="CF_1",CF_1,CF_2)*F$56 -> 0 | Z155: ='3. CALCS_Loads'!I20*C$67*IF(LOOKUP($A155,'3. CALCS_Loads'!$A$18:$A$24,'3. CALCS_Loads'!$C$18:$C$24)="CF_1",CF_1,CF_2) -> 0.03808946336 | AA155: ='3. CALCS_Loads'!J20*D$67*IF(LOOKUP($A155,'3. CALCS_Loads'!$A$18:$A$24,'3. CALCS_Loads'!$C$18:$C$24)="CF_1",CF_1,CF_2) -> 0 | AB155: ='3. CALCS_Loads'!K20*E$67*IF(LOOKUP($A155,'3. CALCS_Loads'!$A$18:$A$24,'3. CALCS_Loads'!$C$18:$C$24)="CF_1",CF_1,CF_2) -> 0 | AC155: ='3. CALCS_Loads'!L20*F$67*IF(LOOKUP($A155,'3. CALCS_Loads'!$A$18:$A$24,'3. CALCS_Loads'!$C$18:$C$24)="CF_1",CF_1,CF_2) -> 0 | AD155: 0.0002634215942 | AE155: 0 | AF155: 0 | AG155: 0 | AH155: 0.001264833926 | AI155: 0.01615829127 | AJ155: 0.0002634215942 | AK155: 0.0002634215942 | AL155: 0.2082657563 | AM155: 0.01630256503 | AN155: YES | AO155: YES
A156: TN | B156: ='3. CALCS_Loads'!C$129*'3. CALCS_Loads'!C80*IF(LOOKUP($A156,'3. CALCS_Loads'!$A$18:$A$24,'3. CALCS_Loads'!$C$18:$C$24)="CF_1",CF_1,CF_2) -> 3.686997829 | C156: ='3. CALCS_Loads'!D$129*'3. CALCS_Loads'!D80*IF(LOOKUP($A156,'3. CALCS_Loads'!$A$18:$A$24,'3. CALCS_Loads'!$C$18:$C$24)="CF_1",CF_1,CF_2) -> 0 | D156: ='3. CALCS_Loads'!E$129*'3. CALCS_Loads'!E80*IF(LOOKUP($A156,'3. CALCS_Loads'!$A$18:$A$24,'3. CALCS_Loads'!$C$18:$C$24)="CF_1",CF_1,CF_2) -> 0 | E156: ='3. CALCS_Loads'!F$129*'3. CALCS_Loads'!F80*IF(LOOKUP($A156,'3. CALCS_Loads'!$A$18:$A$24,'3. CALCS_Loads'!$C$18:$C$24)="CF_1",CF_1,CF_2) -> 0 | F156: ='3. CALCS_Loads'!C$145*'3. CALCS_Loads'!C110*IF(LOOKUP($A156,'3. CALCS_Loads'!$A$18:$A$24,'3. CALCS_Loads'!$C$18:$C$24)="CF_1",CF_1,CF_2) -> 0 | G156: ='3. CALCS_Loads'!D$145*'3. CALCS_Loads'!D110*IF(LOOKUP($A156,'3. CALCS_Loads'!$A$18:$A$24,'3. CALCS_Loads'!$C$18:$C$24)="CF_1",CF_1,CF_2) -> 0 | H156: ='3. CALCS_Loads'!E$145*'3. CALCS_Loads'!E110*IF(LOOKUP($A156,'3. CALCS_Loads'!$A$18:$A$24,'3. CALCS_Loads'!$C$18:$C$24)="CF_1",CF_1,CF_2) -> 0 | I156: ='3. CALCS_Loads'!F$145*'3. CALCS_Loads'!F110*IF(LOOKUP($A156,'3. CALCS_Loads'!$A$18:$A$24,'3. CALCS_Loads'!$C$18:$C$24)="CF_1",CF_1,CF_2) -> 0 | J156: ='3. CALCS_Loads'!C$143*'3. CALCS_Loads'!C89*IF(LOOKUP($A156,'3. CALCS_Loads'!$A$18:$A$24,'3. CALCS_Loads'!$C$18:$C$24)="CF_1",CF_1,CF_2) -> 0 | K156: ='3. CALCS_Loads'!D$143*'3. CALCS_Loads'!D89*IF(LOOKUP($A156,'3. CALCS_Loads'!$A$18:$A$24,'3. CALCS_Loads'!$C$18:$C$24)="CF_1",CF_1,CF_2) -> 0 | L156: ='3. CALCS_Loads'!E$143*'3. CALCS_Loads'!E89*IF(LOOKUP($A156,'3. CALCS_Loads'!$A$18:$A$24,'3. CALCS_Loads'!$C$18:$C$24)="CF_1",CF_1,CF_2) -> 0 | M156: ='3. CALCS_Loads'!F$143*'3. CALCS_Loads'!F89*IF(LOOKUP($A156,'3. CALCS_Loads'!$A$18:$A$24,'3. CALCS_Loads'!$C$18:$C$24)="CF_1",CF_1,CF_2) -> 0 | N156: ='3. CALCS_Loads'!C$131*'3. CALCS_Loads'!C101*IF(LOOKUP($A156,'3. CALCS_Loads'!$A$18:$A$24,'3. CALCS_Loads'!$C$18:$C$24)="CF_1",CF_1,CF_2) -> 0.06700758142 | O156: ='3. CALCS_Loads'!D$131*'3. CALCS_Loads'!D101*IF(LOOKUP($A156,'3. CALCS_Loads'!$A$18:$A$24,'3. CALCS_Loads'!$C$18:$C$24)="CF_1",CF_1,CF_2) -> 0 | P156: ='3. CALCS_Loads'!E$131*'3. CALCS_Loads'!E101*IF(LOOKUP($A156,'3. CALCS_Loads'!$A$18:$A$24,'3. CALCS_Loads'!$C$18:$C$24)="CF_1",CF_1,CF_2) -> 0 | Q156: ='3. CALCS_Loads'!F$131*'3. CALCS_Loads'!F101*IF(LOOKUP($A156,'3. CALCS_Loads'!$A$18:$A$24,'3. CALCS_Loads'!$C$18:$C$24)="CF_1",CF_1,CF_2) -> 0 | R156: ='3. CALCS_Loads'!E21*C$62*IF(LOOKUP($A156,'3. CALCS_Loads'!$A$18:$A$24,'3. CALCS_Loads'!$C$18:$C$24)="CF_1",CF_1,CF_2) -> 0.3514247893 | S156: ='3. CALCS_Loads'!F21*D$62*IF(LOOKUP($A156,'3. CALCS_Loads'!$A$18:$A$24,'3. CALCS_Loads'!$C$18:$C$24)="CF_1",CF_1,CF_2) -> 0 | T156: ='3. CALCS_Loads'!G21*E$62*IF(LOOKUP($A156,'3. CALCS_Loads'!$A$18:$A$24,'3. CALCS_Loads'!$C$18:$C$24)="CF_1",CF_1,CF_2) -> 0 | U156: ='3. CALCS_Loads'!H21*F$62*IF(LOOKUP($A156,'3. CALCS_Loads'!$A$18:$A$24,'3. CALCS_Loads'!$C$18:$C$24)="CF_1",CF_1,CF_2) -> 0 | V156: =('5.CALCS_Adams&Papa'!G$40*'3. CALCS_Loads'!$F32+'5.CALCS_Adams&Papa'!G$41*'3. CALCS_Loads'!K47)*IF(LOOKUP($A156,'3. CALCS_Loads'!$A$18:$A$24,'3. CALCS_Loads'!$C$18:$C$24)="CF_1",CF_1,CF_2)*C$56 -> 2.990569152 | W156: =('5.CALCS_Adams&Papa'!H$40*'3. CALCS_Loads'!$F32+'5.CALCS_Adams&Papa'!H$41*'3. CALCS_Loads'!L47)*IF(LOOKUP($A156,'3. CALCS_Loads'!$A$18:$A$24,'3. CALCS_Loads'!$C$18:$C$24)="CF_1",CF_1,CF_2)*D$56 -> 0 | X156: =('5.CALCS_Adams&Papa'!I$40*'3. CALCS_Loads'!$F32+'5.CALCS_Adams&Papa'!I$41*'3. CALCS_Loads'!M47)*IF(LOOKUP($A156,'3. CALCS_Loads'!$A$18:$A$24,'3. CALCS_Loads'!$C$18:$C$24)="CF_1",CF_1,CF_2)*E$56 -> 0 | Y156: =('5.CALCS_Adams&Papa'!J$40*'3. CALCS_Loads'!$F32+'5.CALCS_Adams&Papa'!J$41*'3. CALCS_Loads'!N47)*IF(LOOKUP($A156,'3. CALCS_Loads'!$A$18:$A$24,'3. CALCS_Loads'!$C$18:$C$24)="CF_1",CF_1,CF_2)*F$56 -> 0 | Z156: ='3. CALCS_Loads'!I21*C$67*IF(LOOKUP($A156,'3. CALCS_Loads'!$A$18:$A$24,'3. CALCS_Loads'!$C$18:$C$24)="CF_1",CF_1,CF_2) -> 5.875500153 | AA156: ='3. CALCS_Loads'!J21*D$67*IF(LOOKUP($A156,'3. CALCS_Loads'!$A$18:$A$24,'3. CALCS_Loads'!$C$18:$C$24)="CF_1",CF_1,CF_2) -> 0 | AB156: ='3. CALCS_Loads'!K21*E$67*IF(LOOKUP($A156,'3. CALCS_Loads'!$A$18:$A$24,'3. CALCS_Loads'!$C$18:$C$24)="CF_1",CF_1,CF_2) -> 0 | AC156: ='3. CALCS_Loads'!L21*F$67*IF(LOOKUP($A156,'3. CALCS_Loads'!$A$18:$A$24,'3. CALCS_Loads'!$C$18:$C$24)="CF_1",CF_1,CF_2) -> 0 | AD156: 0.06700758142 | AE156: 0 | AF156: 0 | AG156: 0 | AH156: 0.3514247893 | AI156: 2.990569152 | AJ156: 0.06700758142 | AK156: 0.06700758142 | AL156: 0.1906740317 | AM156: 0.02240629727 | AN156: YES | AO156: YES
A157: TP | B157: ='3. CALCS_Loads'!C$129*'3. CALCS_Loads'!C81*IF(LOOKUP($A157,'3. CALCS_Loads'!$A$18:$A$24,'3. CALCS_Loads'!$C$18:$C$24)="CF_1",CF_1,CF_2) -> 0.5816109252 | C157: ='3. CALCS_Loads'!D$129*'3. CALCS_Loads'!D81*IF(LOOKUP($A157,'3. CALCS_Loads'!$A$18:$A$24,'3. CALCS_Loads'!$C$18:$C$24)="CF_1",CF_1,CF_2) -> 0 | D157: ='3. CALCS_Loads'!E$129*'3. CALCS_Loads'!E81*IF(LOOKUP($A157,'3. CALCS_Loads'!$A$18:$A$24,'3. CALCS_Loads'!$C$18:$C$24)="CF_1",CF_1,CF_2) -> 0 | E157: ='3. CALCS_Loads'!F$129*'3. CALCS_Loads'!F81*IF(LOOKUP($A157,'3. CALCS_Loads'!$A$18:$A$24,'3. CALCS_Loads'!$C$18:$C$24)="CF_1",CF_1,CF_2) -> 0 | F157: ='3. CALCS_Loads'!C$145*'3. CALCS_Loads'!C111*IF(LOOKUP($A157,'3. CALCS_Loads'!$A$18:$A$24,'3. CALCS_Loads'!$C$18:$C$24)="CF_1",CF_1,CF_2) -> 0 | G157: ='3. CALCS_Loads'!D$145*'3. CALCS_Loads'!D111*IF(LOOKUP($A157,'3. CALCS_Loads'!$A$18:$A$24,'3. CALCS_Loads'!$C$18:$C$24)="CF_1",CF_1,CF_2) -> 0 | H157: ='3. CALCS_Loads'!E$145*'3. CALCS_Loads'!E111*IF(LOOKUP($A157,'3. CALCS_Loads'!$A$18:$A$24,'3. CALCS_Loads'!$C$18:$C$24)="CF_1",CF_1,CF_2) -> 0 | I157: ='3. CALCS_Loads'!F$145*'3. CALCS_Loads'!F111*IF(LOOKUP($A157,'3. CALCS_Loads'!$A$18:$A$24,'3. CALCS_Loads'!$C$18:$C$24)="CF_1",CF_1,CF_2) -> 0 | J157: ='3. CALCS_Loads'!C$143*'3. CALCS_Loads'!C90*IF(LOOKUP($A157,'3. CALCS_Loads'!$A$18:$A$24,'3. CALCS_Loads'!$C$18:$C$24)="CF_1",CF_1,CF_2) -> 0 | K157: ='3. CALCS_Loads'!D$143*'3. CALCS_Loads'!D90*IF(LOOKUP($A157,'3. CALCS_Loads'!$A$18:$A$24,'3. CALCS_Loads'!$C$18:$C$24)="CF_1",CF_1,CF_2) -> 0 | L157: ='3. CALCS_Loads'!E$143*'3. CALCS_Loads'!E90*IF(LOOKUP($A157,'3. CALCS_Loads'!$A$18:$A$24,'3. CALCS_Loads'!$C$18:$C$24)="CF_1",CF_1,CF_2) -> 0 | M157: ='3. CALCS_Loads'!F$143*'3. CALCS_Loads'!F90*IF(LOOKUP($A157,'3. CALCS_Loads'!$A$18:$A$24,'3. CALCS_Loads'!$C$18:$C$24)="CF_1",CF_1,CF_2) -> 0 | N157: ='3. CALCS_Loads'!C$131*'3. CALCS_Loads'!C102*IF(LOOKUP($A157,'3. CALCS_Loads'!$A$18:$A$24,'3. CALCS_Loads'!$C$18:$C$24)="CF_1",CF_1,CF_2) -> 0.008400202129 | O157: ='3. CALCS_Loads'!D$131*'3. CALCS_Loads'!D102*IF(LOOKUP($A157,'3. CALCS_Loads'!$A$18:$A$24,'3. CALCS_Loads'!$C$18:$C$24)="CF_1",CF_1,CF_2) -> 0 | P157: ='3. CALCS_Loads'!E$131*'3. CALCS_Loads'!E102*IF(LOOKUP($A157,'3. CALCS_Loads'!$A$18:$A$24,'3. CALCS_Loads'!$C$18:$C$24)="CF_1",CF_1,CF_2) -> 0 | Q157: ='3. CALCS_Loads'!F$131*'3. CALCS_Loads'!F102*IF(LOOKUP($A157,'3. CALCS_Loads'!$A$18:$A$24,'3. CALCS_Loads'!$C$18:$C$24)="CF_1",CF_1,CF_2) -> 0 | R157: ='3. CALCS_Loads'!E22*C$62*IF(LOOKUP($A157,'3. CALCS_Loads'!$A$18:$A$24,'3. CALCS_Loads'!$C$18:$C$24)="CF_1",CF_1,CF_2) -> 0.03661905367 | S157: ='3. CALCS_Loads'!F22*D$62*IF(LOOKUP($A157,'3. CALCS_Loads'!$A$18:$A$24,'3. CALCS_Loads'!$C$18:$C$24)="CF_1",CF_1,CF_2) -> 0 | T157: ='3. CALCS_Loads'!G22*E$62*IF(LOOKUP($A157,'3. CALCS_Loads'!$A$18:$A$24,'3. CALCS_Loads'!$C$18:$C$24)="CF_1",CF_1,CF_2) -> 0 | U157: ='3. CALCS_Loads'!H22*F$62*IF(LOOKUP($A157,'3. CALCS_Loads'!$A$18:$A$24,'3. CALCS_Loads'!$C$18:$C$24)="CF_1",CF_1,CF_2) -> 0 | V157: =('5.CALCS_Adams&Papa'!G$40*'3. CALCS_Loads'!$F33+'5.CALCS_Adams&Papa'!G$41*'3. CALCS_Loads'!K48)*IF(LOOKUP($A157,'3. CALCS_Loads'!$A$18:$A$24,'3. CALCS_Loads'!$C$18:$C$24)="CF_1",CF_1,CF_2)*C$56 -> 0.3028470203 | W157: =('5.CALCS_Adams&Papa'!H$40*'3. CALCS_Loads'!$F33+'5.CALCS_Adams&Papa'!H$41*'3. CALCS_Loads'!L48)*IF(LOOKUP($A157,'3. CALCS_Loads'!$A$18:$A$24,'3. CALCS_Loads'!$C$18:$C$24)="CF_1",CF_1,CF_2)*D$56 -> 0 | X157: =('5.CALCS_Adams&Papa'!I$40*'3. CALCS_Loads'!$F33+'5.CALCS_Adams&Papa'!I$41*'3. CALCS_Loads'!M48)*IF(LOOKUP($A157,'3. CALCS_Loads'!$A$18:$A$24,'3. CALCS_Loads'!$C$18:$C$24)="CF_1",CF_1,CF_2)*E$56 -> 0 | Y157: =('5.CALCS_Adams&Papa'!J$40*'3. CALCS_Loads'!$F33+'5.CALCS_Adams&Papa'!J$41*'3. CALCS_Loads'!N48)*IF(LOOKUP($A157,'3. CALCS_Loads'!$A$18:$A$24,'3. CALCS_Loads'!$C$18:$C$24)="CF_1",CF_1,CF_2)*F$56 -> 0 | Z157: ='3. CALCS_Loads'!I22*C$67*IF(LOOKUP($A157,'3. CALCS_Loads'!$A$18:$A$24,'3. CALCS_Loads'!$C$18:$C$24)="CF_1",CF_1,CF_2) -> 1.048062189 | AA157: ='3. CALCS_Loads'!J22*D$67*IF(LOOKUP($A157,'3. CALCS_Loads'!$A$18:$A$24,'3. CALCS_Loads'!$C$18:$C$24)="CF_1",CF_1,CF_2) -> 0 | AB157: ='3. CALCS_Loads'!K22*E$67*IF(LOOKUP($A157,'3. CALCS_Loads'!$A$18:$A$24,'3. CALCS_Loads'!$C$18:$C$24)="CF_1",CF_1,CF_2) -> 0 | AC157: ='3. CALCS_Loads'!L22*F$67*IF(LOOKUP($A157,'3. CALCS_Loads'!$A$18:$A$24,'3. CALCS_Loads'!$C$18:$C$24)="CF_1",CF_1,CF_2) -> 0 | AD157: 0.008400202129 | AE157: 0 | AF157: 0 | AG157: 0 | AH157: 0.03661905367 | AI157: 0.3028470203 | AJ157: 0.008400202129 | AK157: 0.008400202129 | AL157: 0.2293942985 | AM157: 0.02773744354 | AN157: YES | AO157: YES
A158: TSS | B158: ='3. CALCS_Loads'!C$129*'3. CALCS_Loads'!C82*IF(LOOKUP($A158,'3. CALCS_Loads'!$A$18:$A$24,'3. CALCS_Loads'!$C$18:$C$24)="CF_1",CF_1,CF_2) -> 347.4086687 | C158: ='3. CALCS_Loads'!D$129*'3. CALCS_Loads'!D82*IF(LOOKUP($A158,'3. CALCS_Loads'!$A$18:$A$24,'3. CALCS_Loads'!$C$18:$C$24)="CF_1",CF_1,CF_2) -> 0 | D158: ='3. CALCS_Loads'!E$129*'3. CALCS_Loads'!E82*IF(LOOKUP($A158,'3. CALCS_Loads'!$A$18:$A$24,'3. CALCS_Loads'!$C$18:$C$24)="CF_1",CF_1,CF_2) -> 0 | E158: ='3. CALCS_Loads'!F$129*'3. CALCS_Loads'!F82*IF(LOOKUP($A158,'3. CALCS_Loads'!$A$18:$A$24,'3. CALCS_Loads'!$C$18:$C$24)="CF_1",CF_1,CF_2) -> 0 | F158: ='3. CALCS_Loads'!C$145*'3. CALCS_Loads'!C112*IF(LOOKUP($A158,'3. CALCS_Loads'!$A$18:$A$24,'3. CALCS_Loads'!$C$18:$C$24)="CF_1",CF_1,CF_2) -> 0 | G158: ='3. CALCS_Loads'!D$145*'3. CALCS_Loads'!D112*IF(LOOKUP($A158,'3. CALCS_Loads'!$A$18:$A$24,'3. CALCS_Loads'!$C$18:$C$24)="CF_1",CF_1,CF_2) -> 0 | H158: ='3. CALCS_Loads'!E$145*'3. CALCS_Loads'!E112*IF(LOOKUP($A158,'3. CALCS_Loads'!$A$18:$A$24,'3. CALCS_Loads'!$C$18:$C$24)="CF_1",CF_1,CF_2) -> 0 | I158: ='3. CALCS_Loads'!F$145*'3. CALCS_Loads'!F112*IF(LOOKUP($A158,'3. CALCS_Loads'!$A$18:$A$24,'3. CALCS_Loads'!$C$18:$C$24)="CF_1",CF_1,CF_2) -> 0 | J158: ='3. CALCS_Loads'!C$143*'3. CALCS_Loads'!C91*IF(LOOKUP($A158,'3. CALCS_Loads'!$A$18:$A$24,'3. CALCS_Loads'!$C$18:$C$24)="CF_1",CF_1,CF_2) -> 0 | K158: ='3. CALCS_Loads'!D$143*'3. CALCS_Loads'!D91*IF(LOOKUP($A158,'3. CALCS_Loads'!$A$18:$A$24,'3. CALCS_Loads'!$C$18:$C$24)="CF_1",CF_1,CF_2) -> 0 | L158: ='3. CALCS_Loads'!E$143*'3. CALCS_Loads'!E91*IF(LOOKUP($A158,'3. CALCS_Loads'!$A$18:$A$24,'3. CALCS_Loads'!$C$18:$C$24)="CF_1",CF_1,CF_2) -> 0 | M158: ='3. CALCS_Loads'!F$143*'3. CALCS_Loads'!F91*IF(LOOKUP($A158,'3. CALCS_Loads'!$A$18:$A$24,'3. CALCS_Loads'!$C$18:$C$24)="CF_1",CF_1,CF_2) -> 0 | N158: ='3. CALCS_Loads'!C$131*'3. CALCS_Loads'!C103*IF(LOOKUP($A158,'3. CALCS_Loads'!$A$18:$A$24,'3. CALCS_Loads'!$C$18:$C$24)="CF_1",CF_1,CF_2) -> 0.9621359574 | O158: ='3. CALCS_Loads'!D$131*'3. CALCS_Loads'!D103*IF(LOOKUP($A158,'3. CALCS_Loads'!$A$18:$A$24,'3. CALCS_Loads'!$C$18:$C$24)="CF_1",CF_1,CF_2) -> 0 | P158: ='3. CALCS_Loads'!E$131*'3. CALCS_Loads'!E103*IF(LOOKUP($A158,'3. CALCS_Loads'!$A$18:$A$24,'3. CALCS_Loads'!$C$18:$C$24)="CF_1",CF_1,CF_2) -> 0 | Q158: ='3. CALCS_Loads'!F$131*'3. CALCS_Loads'!F103*IF(LOOKUP($A158,'3. CALCS_Loads'!$A$18:$A$24,'3. CALCS_Loads'!$C$18:$C$24)="CF_1",CF_1,CF_2) -> 0 | R158: ='3. CALCS_Loads'!E23*C$62*IF(LOOKUP($A158,'3. CALCS_Loads'!$A$18:$A$24,'3. CALCS_Loads'!$C$18:$C$24)="CF_1",CF_1,CF_2) -> 49.02228153 | S158: ='3. CALCS_Loads'!F23*D$62*IF(LOOKUP($A158,'3. CALCS_Loads'!$A$18:$A$24,'3. CALCS_Loads'!$C$18:$C$24)="CF_1",CF_1,CF_2) -> 0 | T158: ='3. CALCS_Loads'!G23*E$62*IF(LOOKUP($A158,'3. CALCS_Loads'!$A$18:$A$24,'3. CALCS_Loads'!$C$18:$C$24)="CF_1",CF_1,CF_2) -> 0 | U158: ='3. CALCS_Loads'!H23*F$62*IF(LOOKUP($A158,'3. CALCS_Loads'!$A$18:$A$24,'3. CALCS_Loads'!$C$18:$C$24)="CF_1",CF_1,CF_2) -> 0 | V158: =('5.CALCS_Adams&Papa'!G$40*'3. CALCS_Loads'!$F34+'5.CALCS_Adams&Papa'!G$41*'3. CALCS_Loads'!K49)*IF(LOOKUP($A158,'3. CALCS_Loads'!$A$18:$A$24,'3. CALCS_Loads'!$C$18:$C$24)="CF_1",CF_1,CF_2)*C$56 -> 65.49837123 | W158: =('5.CALCS_Adams&Papa'!H$40*'3. CALCS_Loads'!$F34+'5.CALCS_Adams&Papa'!H$41*'3. CALCS_Loads'!L49)*IF(LOOKUP($A158,'3. CALCS_Loads'!$A$18:$A$24,'3. CALCS_Loads'!$C$18:$C$24)="CF_1",CF_1,CF_2)*D$56 -> 0 | X158: =('5.CALCS_Adams&Papa'!I$40*'3. CALCS_Loads'!$F34+'5.CALCS_Adams&Papa'!I$41*'3. CALCS_Loads'!M49)*IF(LOOKUP($A158,'3. CALCS_Loads'!$A$18:$A$24,'3. CALCS_Loads'!$C$18:$C$24)="CF_1",CF_1,CF_2)*E$56 -> 0 | Y158: =('5.CALCS_Adams&Papa'!J$40*'3. CALCS_Loads'!$F34+'5.CALCS_Adams&Papa'!J$41*'3. CALCS_Loads'!N49)*IF(LOOKUP($A158,'3. CALCS_Loads'!$A$18:$A$24,'3. CALCS_Loads'!$C$18:$C$24)="CF_1",CF_1,CF_2)*F$56 -> 0 | Z158: ='3. CALCS_Loads'!I23*C$67*IF(LOOKUP($A158,'3. CALCS_Loads'!$A$18:$A$24,'3. CALCS_Loads'!$C$18:$C$24)="CF_1",CF_1,CF_2) -> 439.3392006 | AA158: ='3. CALCS_Loads'!J23*D$67*IF(LOOKUP($A158,'3. CALCS_Loads'!$A$18:$A$24,'3. CALCS_Loads'!$C$18:$C$24)="CF_1",CF_1,CF_2) -> 0 | AB158: ='3. CALCS_Loads'!K23*E$67*IF(LOOKUP($A158,'3. CALCS_Loads'!$A$18:$A$24,'3. CALCS_Loads'!$C$18:$C$24)="CF_1",CF_1,CF_2) -> 0 | AC158: ='3. CALCS_Loads'!L23*F$67*IF(LOOKUP($A158,'3. CALCS_Loads'!$A$18:$A$24,'3. CALCS_Loads'!$C$18:$C$24)="CF_1",CF_1,CF_2) -> 0 | AD158: 0.9621359574 | AE158: 0 | AF158: 0 | AG158: 0 | AH158: 49.02228153 | AI158: 65.49837123 | AJ158: 0.9621359574 | AK158: 0.9621359574 | AL158: 0.01962650304 | AM158: 0.01468946387 | AN158: YES | AO158: YES
A159: Zn | B159: ='3. CALCS_Loads'!C$129*'3. CALCS_Loads'!C83*IF(LOOKUP($A159,'3. CALCS_Loads'!$A$18:$A$24,'3. CALCS_Loads'!$C$18:$C$24)="CF_1",CF_1,CF_2) -> 0.1176204237 | C159: ='3. CALCS_Loads'!D$129*'3. CALCS_Loads'!D83*IF(LOOKUP($A159,'3. CALCS_Loads'!$A$18:$A$24,'3. CALCS_Loads'!$C$18:$C$24)="CF_1",CF_1,CF_2) -> 0 | D159: ='3. CALCS_Loads'!E$129*'3. CALCS_Loads'!E83*IF(LOOKUP($A159,'3. CALCS_Loads'!$A$18:$A$24,'3. CALCS_Loads'!$C$18:$C$24)="CF_1",CF_1,CF_2) -> 0 | E159: ='3. CALCS_Loads'!F$129*'3. CALCS_Loads'!F83*IF(LOOKUP($A159,'3. CALCS_Loads'!$A$18:$A$24,'3. CALCS_Loads'!$C$18:$C$24)="CF_1",CF_1,CF_2) -> 0 | F159: ='3. CALCS_Loads'!C$145*'3. CALCS_Loads'!C113*IF(LOOKUP($A159,'3. CALCS_Loads'!$A$18:$A$24,'3. CALCS_Loads'!$C$18:$C$24)="CF_1",CF_1,CF_2) -> 0 | G159: ='3. CALCS_Loads'!D$145*'3. CALCS_Loads'!D113*IF(LOOKUP($A159,'3. CALCS_Loads'!$A$18:$A$24,'3. CALCS_Loads'!$C$18:$C$24)="CF_1",CF_1,CF_2) -> 0 | H159: ='3. CALCS_Loads'!E$145*'3. CALCS_Loads'!E113*IF(LOOKUP($A159,'3. CALCS_Loads'!$A$18:$A$24,'3. CALCS_Loads'!$C$18:$C$24)="CF_1",CF_1,CF_2) -> 0 | I159: ='3. CALCS_Loads'!F$145*'3. CALCS_Loads'!F113*IF(LOOKUP($A159,'3. CALCS_Loads'!$A$18:$A$24,'3. CALCS_Loads'!$C$18:$C$24)="CF_1",CF_1,CF_2) -> 0 | J159: ='3. CALCS_Loads'!C$143*'3. CALCS_Loads'!C92*IF(LOOKUP($A159,'3. CALCS_Loads'!$A$18:$A$24,'3. CALCS_Loads'!$C$18:$C$24)="CF_1",CF_1,CF_2) -> 0 | K159: ='3. CALCS_Loads'!D$143*'3. CALCS_Loads'!D92*IF(LOOKUP($A159,'3. CALCS_Loads'!$A$18:$A$24,'3. CALCS_Loads'!$C$18:$C$24)="CF_1",CF_1,CF_2) -> 0 | L159: ='3. CALCS_Loads'!E$143*'3. CALCS_Loads'!E92*IF(LOOKUP($A159,'3. CALCS_Loads'!$A$18:$A$24,'3. CALCS_Loads'!$C$18:$C$24)="CF_1",CF_1,CF_2) -> 0 | M159: ='3. CALCS_Loads'!F$143*'3. CALCS_Loads'!F92*IF(LOOKUP($A159,'3. CALCS_Loads'!$A$18:$A$24,'3. CALCS_Loads'!$C$18:$C$24)="CF_1",CF_1,CF_2) -> 0 | N159: ='3. CALCS_Loads'!C$131*'3. CALCS_Loads'!C104*IF(LOOKUP($A159,'3. CALCS_Loads'!$A$18:$A$24,'3. CALCS_Loads'!$C$18:$C$24)="CF_1",CF_1,CF_2) -> 0.001667208198 | O159: ='3. CALCS_Loads'!D$131*'3. CALCS_Loads'!D104*IF(LOOKUP($A159,'3. CALCS_Loads'!$A$18:$A$24,'3. CALCS_Loads'!$C$18:$C$24)="CF_1",CF_1,CF_2) -> 0 | P159: ='3. CALCS_Loads'!E$131*'3. CALCS_Loads'!E104*IF(LOOKUP($A159,'3. CALCS_Loads'!$A$18:$A$24,'3. CALCS_Loads'!$C$18:$C$24)="CF_1",CF_1,CF_2) -> 0 | Q159: ='3. CALCS_Loads'!F$131*'3. CALCS_Loads'!F104*IF(LOOKUP($A159,'3. CALCS_Loads'!$A$18:$A$24,'3. CALCS_Loads'!$C$18:$C$24)="CF_1",CF_1,CF_2) -> 0 | R159: ='3. CALCS_Loads'!E24*C$62*IF(LOOKUP($A159,'3. CALCS_Loads'!$A$18:$A$24,'3. CALCS_Loads'!$C$18:$C$24)="CF_1",CF_1,CF_2) -> 0.006959096772 | S159: ='3. CALCS_Loads'!F24*D$62*IF(LOOKUP($A159,'3. CALCS_Loads'!$A$18:$A$24,'3. CALCS_Loads'!$C$18:$C$24)="CF_1",CF_1,CF_2) -> 0 | T159: ='3. CALCS_Loads'!G24*E$62*IF(LOOKUP($A159,'3. CALCS_Loads'!$A$18:$A$24,'3. CALCS_Loads'!$C$18:$C$24)="CF_1",CF_1,CF_2) -> 0 | U159: ='3. CALCS_Loads'!H24*F$62*IF(LOOKUP($A159,'3. CALCS_Loads'!$A$18:$A$24,'3. CALCS_Loads'!$C$18:$C$24)="CF_1",CF_1,CF_2) -> 0 | V159: =('5.CALCS_Adams&Papa'!G$40*'3. CALCS_Loads'!$F35+'5.CALCS_Adams&Papa'!G$41*'3. CALCS_Loads'!K50)*IF(LOOKUP($A159,'3. CALCS_Loads'!$A$18:$A$24,'3. CALCS_Loads'!$C$18:$C$24)="CF_1",CF_1,CF_2)*C$56 -> 0.06801497844 | W159: =('5.CALCS_Adams&Papa'!H$40*'3. CALCS_Loads'!$F35+'5.CALCS_Adams&Papa'!H$41*'3. CALCS_Loads'!L50)*IF(LOOKUP($A159,'3. CALCS_Loads'!$A$18:$A$24,'3. CALCS_Loads'!$C$18:$C$24)="CF_1",CF_1,CF_2)*D$56 -> 0 | X159: =('5.CALCS_Adams&Papa'!I$40*'3. CALCS_Loads'!$F35+'5.CALCS_Adams&Papa'!I$41*'3. CALCS_Loads'!M50)*IF(LOOKUP($A159,'3. CALCS_Loads'!$A$18:$A$24,'3. CALCS_Loads'!$C$18:$C$24)="CF_1",CF_1,CF_2)*E$56 -> 0 | Y159: =('5.CALCS_Adams&Papa'!J$40*'3. CALCS_Loads'!$F35+'5.CALCS_Adams&Papa'!J$41*'3. CALCS_Loads'!N50)*IF(LOOKUP($A159,'3. CALCS_Loads'!$A$18:$A$24,'3. CALCS_Loads'!$C$18:$C$24)="CF_1",CF_1,CF_2)*F$56 -> 0 | Z159: ='3. CALCS_Loads'!I24*C$67*IF(LOOKUP($A159,'3. CALCS_Loads'!$A$18:$A$24,'3. CALCS_Loads'!$C$18:$C$24)="CF_1",CF_1,CF_2) -> 0.185405729 | AA159: ='3. CALCS_Loads'!J24*D$67*IF(LOOKUP($A159,'3. CALCS_Loads'!$A$18:$A$24,'3. CALCS_Loads'!$C$18:$C$24)="CF_1",CF_1,CF_2) -> 0 | AB159: ='3. CALCS_Loads'!K24*E$67*IF(LOOKUP($A159,'3. CALCS_Loads'!$A$18:$A$24,'3. CALCS_Loads'!$C$18:$C$24)="CF_1",CF_1,CF_2) -> 0 | AC159: ='3. CALCS_Loads'!L24*F$67*IF(LOOKUP($A159,'3. CALCS_Loads'!$A$18:$A$24,'3. CALCS_Loads'!$C$18:$C$24)="CF_1",CF_1,CF_2) -> 0 | AD159: 0.001667208198 | AE159: 0 | AF159: 0 | AG159: 0 | AH159: 0.006959096772 | AI159: 0.06801497844 | AJ159: 0.001667208198 | AK159: 0.001667208198 | AL159: 0.239572498 | AM159: 0.02451236824 | AN159: YES | AO159: YES
A161: PLOT: Developed, Existing, and Sed/Fil Loadings
A162: POLLUTANT | B162: =IF('1. ENTER DATA'!$F$14="Yes","Drainage Area A - Existing","Drainage Area A - Sed/Fil") -> Drainage Area A - Existing | C162: =IF('1. ENTER DATA'!$F$14="Yes","Drainage Area B - Existing","Drainage Area B - Sed/Fil") -> Drainage Area B - Existing | D162: =IF('1. ENTER DATA'!$F$14="Yes","Drainage Area C - Existing","Drainage Area C - Sed/Fil") -> Drainage Area C - Existing | E162: =IF('1. ENTER DATA'!$F$14="Yes","Drainage Area D - Existing","Drainage Area D- Sed/Fil") -> Drainage Area D - Existing | F162: Drainage Area A Developed (Treated) Load | G162: Drainage Area B Developed (Treated) Load | H162: Drainage Area C Developed (Treated) Load | I162: Drainage Area D Developed (Treated) Load
A163: COD | B163: =IF('1. ENTER DATA'!$F$14="Yes",'3. CALCS_Loads'!R153,'3. CALCS_Loads'!V153) -> 11.48775151 | C163: =IF('1. ENTER DATA'!$F$14="Yes",'3. CALCS_Loads'!S153,'3. CALCS_Loads'!W153) -> 0 | D163: =IF('1. ENTER DATA'!$F$14="Yes",'3. CALCS_Loads'!T153,'3. CALCS_Loads'!X153) -> 0 | E163: =IF('1. ENTER DATA'!$F$14="Yes",'3. CALCS_Loads'!U153,'3. CALCS_Loads'!Y153) -> 0 | F163: =AD153 -> 1.251259307 | G163: 0 | H163: 0 | I163: 0
A164: E. coli | B164: =IF('1. ENTER DATA'!$F$14="Yes",'3. CALCS_Loads'!R154,'3. CALCS_Loads'!V154) -> 11210.21643 | C164: =IF('1. ENTER DATA'!$F$14="Yes",'3. CALCS_Loads'!S154,'3. CALCS_Loads'!W154) -> 0 | D164: =IF('1. ENTER DATA'!$F$14="Yes",'3. CALCS_Loads'!T154,'3. CALCS_Loads'!X154) -> 0 | E164: =IF('1. ENTER DATA'!$F$14="Yes",'3. CALCS_Loads'!U154,'3. CALCS_Loads'!Y154) -> 0 | F164: 1871.03325 | G164: 0 | H164: 0 | I164: 0
A165: Pb | B165: =IF('1. ENTER DATA'!$F$14="Yes",'3. CALCS_Loads'!R155,'3. CALCS_Loads'!V155) -> 0.001264833926 | C165: =IF('1. ENTER DATA'!$F$14="Yes",'3. CALCS_Loads'!S155,'3. CALCS_Loads'!W155) -> 0 | D165: =IF('1. ENTER DATA'!$F$14="Yes",'3. CALCS_Loads'!T155,'3. CALCS_Loads'!X155) -> 0 | E165: =IF('1. ENTER DATA'!$F$14="Yes",'3. CALCS_Loads'!U155,'3. CALCS_Loads'!Y155) -> 0 | F165: 0.0002634215942 | G165: 0 | H165: 0 | I165: 0
A166: TN | B166: =IF('1. ENTER DATA'!$F$14="Yes",'3. CALCS_Loads'!R156,'3. CALCS_Loads'!V156) -> 0.3514247893 | C166: =IF('1. ENTER DATA'!$F$14="Yes",'3. CALCS_Loads'!S156,'3. CALCS_Loads'!W156) -> 0 | D166: =IF('1. ENTER DATA'!$F$14="Yes",'3. CALCS_Loads'!T156,'3. CALCS_Loads'!X156) -> 0 | E166: =IF('1. ENTER DATA'!$F$14="Yes",'3. CALCS_Loads'!U156,'3. CALCS_Loads'!Y156) -> 0 | F166: 0.06700758142 | G166: 0 | H166: 0 | I166: 0
A167: TP | B167: =IF('1. ENTER DATA'!$F$14="Yes",'3. CALCS_Loads'!R157,'3. CALCS_Loads'!V157) -> 0.03661905367 | C167: =IF('1. ENTER DATA'!$F$14="Yes",'3. CALCS_Loads'!S157,'3. CALCS_Loads'!W157) -> 0 | D167: =IF('1. ENTER DATA'!$F$14="Yes",'3. CALCS_Loads'!T157,'3. CALCS_Loads'!X157) -> 0 | E167: =IF('1. ENTER DATA'!$F$14="Yes",'3. CALCS_Loads'!U157,'3. CALCS_Loads'!Y157) -> 0 | F167: =AD157 -> 0.008400202129 | G167: 0 | H167: 0 | I167: 0
A168: TSS | B168: =IF('1. ENTER DATA'!$F$14="Yes",'3. CALCS_Loads'!R158,'3. CALCS_Loads'!V158) -> 49.02228153 | C168: =IF('1. ENTER DATA'!$F$14="Yes",'3. CALCS_Loads'!S158,'3. CALCS_Loads'!W158) -> 0 | D168: =IF('1. ENTER DATA'!$F$14="Yes",'3. CALCS_Loads'!T158,'3. CALCS_Loads'!X158) -> 0 | E168: =IF('1. ENTER DATA'!$F$14="Yes",'3. CALCS_Loads'!U158,'3. CALCS_Loads'!Y158) -> 0 | F168: 0.9621359574 | G168: 0 | H168: 0 | I168: 0
A169: Zn | B169: =IF('1. ENTER DATA'!$F$14="Yes",'3. CALCS_Loads'!R159,'3. CALCS_Loads'!V159) -> 0.006959096772 | C169: =IF('1. ENTER DATA'!$F$14="Yes",'3. CALCS_Loads'!S159,'3. CALCS_Loads'!W159) -> 0 | D169: =IF('1. ENTER DATA'!$F$14="Yes",'3. CALCS_Loads'!T159,'3. CALCS_Loads'!X159) -> 0 | E169: =IF('1. ENTER DATA'!$F$14="Yes",'3. CALCS_Loads'!U159,'3. CALCS_Loads'!Y159) -> 0 | F169: 0.001667208198 | G169: 0 | H169: 0 | I169: 0
A171: PLOT: Load Equivalency Factor (LEF)
A172: POLLUTANT | B172: RED | C172: GREEN
B173: >1 | C173: <=1
A174: COD | B174: =IF(IF('1. ENTER DATA'!$F$14="No",LOOKUP($A174,'3. CALCS_Loads'!$A$153:$A$159,'3. CALCS_Loads'!$AM$153:$AM$159),LOOKUP('3. CALCS_Loads'!$A174,'3. CALCS_Loads'!$A$153:$A$159,'3. CALCS_Loads'!$AL$153:$AL$159))>1,IF('1. ENTER DATA'!$F$14="No",LOOKUP($A174,'3. CALCS_Loads'!$A$153:$A$159,'3. CALCS_Loads'!$AM$153:$AM$159),LOOKUP('3. CALCS_Loads'!$A174,'3. CALCS_Loads'!$A$153:$A$159,'3. CALCS_Loads'!$AL$153:$AL$159)),#N/A) ->  | C174: =IF(IF('1. ENTER DATA'!$F$14="No",LOOKUP($A174,'3. CALCS_Loads'!$A$153:$A$159,'3. CALCS_Loads'!$AM$153:$AM$159),LOOKUP('3. CALCS_Loads'!$A174,'3. CALCS_Loads'!$A$153:$A$159,'3. CALCS_Loads'!$AL$153:$AL$159))<=1,IF('1. ENTER DATA'!$F$14="No",LOOKUP($A174,'3. CALCS_Loads'!$A$153:$A$159,'3. CALCS_Loads'!$AM$153:$AM$159),LOOKUP('3. CALCS_Loads'!$A174,'3. CALCS_Loads'!$A$153:$A$159,'3. CALCS_Loads'!$AL$153:$AL$159)),#N/A) -> 0.1089211675
A175: E. coli | B175: =IF(IF('1. ENTER DATA'!$F$14="No",LOOKUP($A175,'3. CALCS_Loads'!$A$153:$A$159,'3. CALCS_Loads'!$AM$153:$AM$159),LOOKUP('3. CALCS_Loads'!$A175,'3. CALCS_Loads'!$A$153:$A$159,'3. CALCS_Loads'!$AL$153:$AL$159))>1,IF('1. ENTER DATA'!$F$14="No",LOOKUP($A175,'3. CALCS_Loads'!$A$153:$A$159,'3. CALCS_Loads'!$AM$153:$AM$159),LOOKUP('3. CALCS_Loads'!$A175,'3. CALCS_Loads'!$A$153:$A$159,'3. CALCS_Loads'!$AL$153:$AL$159)),#N/A) ->  | C175: =IF(IF('1. ENTER DATA'!$F$14="No",LOOKUP($A175,'3. CALCS_Loads'!$A$153:$A$159,'3. CALCS_Loads'!$AM$153:$AM$159),LOOKUP('3. CALCS_Loads'!$A175,'3. CALCS_Loads'!$A$153:$A$159,'3. CALCS_Loads'!$AL$153:$AL$159))<=1,IF('1. ENTER DATA'!$F$14="No",LOOKUP($A175,'3. CALCS_Loads'!$A$153:$A$159,'3. CALCS_Loads'!$AM$153:$AM$159),LOOKUP('3. CALCS_Loads'!$A175,'3. CALCS_Loads'!$A$153:$A$159,'3. CALCS_Loads'!$AL$153:$AL$159)),#N/A) -> 0.1669042932
A176: Pb | B176: =IF(IF('1. ENTER DATA'!$F$14="No",LOOKUP($A176,'3. CALCS_Loads'!$A$153:$A$159,'3. CALCS_Loads'!$AM$153:$AM$159),LOOKUP('3. CALCS_Loads'!$A176,'3. CALCS_Loads'!$A$153:$A$159,'3. CALCS_Loads'!$AL$153:$AL$159))>1,IF('1. ENTER DATA'!$F$14="No",LOOKUP($A176,'3. CALCS_Loads'!$A$153:$A$159,'3. CALCS_Loads'!$AM$153:$AM$159),LOOKUP('3. CALCS_Loads'!$A176,'3. CALCS_Loads'!$A$153:$A$159,'3. CALCS_Loads'!$AL$153:$AL$159)),#N/A) ->  | C176: =IF(IF('1. ENTER DATA'!$F$14="No",LOOKUP($A176,'3. CALCS_Loads'!$A$153:$A$159,'3. CALCS_Loads'!$AM$153:$AM$159),LOOKUP('3. CALCS_Loads'!$A176,'3. CALCS_Loads'!$A$153:$A$159,'3. CALCS_Loads'!$AL$153:$AL$159))<=1,IF('1. ENTER DATA'!$F$14="No",LOOKUP($A176,'3. CALCS_Loads'!$A$153:$A$159,'3. CALCS_Loads'!$AM$153:$AM$159),LOOKUP('3. CALCS_Loads'!$A176,'3. CALCS_Loads'!$A$153:$A$159,'3. CALCS_Loads'!$AL$153:$AL$159)),#N/A) -> 0.2082657563
A177: TN | B177: =IF(IF('1. ENTER DATA'!$F$14="No",LOOKUP($A177,'3. CALCS_Loads'!$A$153:$A$159,'3. CALCS_Loads'!$AM$153:$AM$159),LOOKUP('3. CALCS_Loads'!$A177,'3. CALCS_Loads'!$A$153:$A$159,'3. CALCS_Loads'!$AL$153:$AL$159))>1,IF('1. ENTER DATA'!$F$14="No",LOOKUP($A177,'3. CALCS_Loads'!$A$153:$A$159,'3. CALCS_Loads'!$AM$153:$AM$159),LOOKUP('3. CALCS_Loads'!$A177,'3. CALCS_Loads'!$A$153:$A$159,'3. CALCS_Loads'!$AL$153:$AL$159)),#N/A) ->  | C177: =IF(IF('1. ENTER DATA'!$F$14="No",LOOKUP($A177,'3. CALCS_Loads'!$A$153:$A$159,'3. CALCS_Loads'!$AM$153:$AM$159),LOOKUP('3. CALCS_Loads'!$A177,'3. CALCS_Loads'!$A$153:$A$159,'3. CALCS_Loads'!$AL$153:$AL$159))<=1,IF('1. ENTER DATA'!$F$14="No",LOOKUP($A177,'3. CALCS_Loads'!$A$153:$A$159,'3. CALCS_Loads'!$AM$153:$AM$159),LOOKUP('3. CALCS_Loads'!$A177,'3. CALCS_Loads'!$A$153:$A$159,'3. CALCS_Loads'!$AL$153:$AL$159)),#N/A) -> 0.1906740317
A178: TP | B178: =IF(IF('1. ENTER DATA'!$F$14="No",LOOKUP($A178,'3. CALCS_Loads'!$A$153:$A$159,'3. CALCS_Loads'!$AM$153:$AM$159),LOOKUP('3. CALCS_Loads'!$A178,'3. CALCS_Loads'!$A$153:$A$159,'3. CALCS_Loads'!$AL$153:$AL$159))>1,IF('1. ENTER DATA'!$F$14="No",LOOKUP($A178,'3. CALCS_Loads'!$A$153:$A$159,'3. CALCS_Loads'!$AM$153:$AM$159),LOOKUP('3. CALCS_Loads'!$A178,'3. CALCS_Loads'!$A$153:$A$159,'3. CALCS_Loads'!$AL$153:$AL$159)),#N/A) ->  | C178: =IF(IF('1. ENTER DATA'!$F$14="No",LOOKUP($A178,'3. CALCS_Loads'!$A$153:$A$159,'3. CALCS_Loads'!$AM$153:$AM$159),LOOKUP('3. CALCS_Loads'!$A178,'3. CALCS_Loads'!$A$153:$A$159,'3. CALCS_Loads'!$AL$153:$AL$159))<=1,IF('1. ENTER DATA'!$F$14="No",LOOKUP($A178,'3. CALCS_Loads'!$A$153:$A$159,'3. CALCS_Loads'!$AM$153:$AM$159),LOOKUP('3. CALCS_Loads'!$A178,'3. CALCS_Loads'!$A$153:$A$159,'3. CALCS_Loads'!$AL$153:$AL$159)),#N/A) -> 0.2293942985
A179: TSS | B179: =IF(IF('1. ENTER DATA'!$F$14="No",LOOKUP($A179,'3. CALCS_Loads'!$A$153:$A$159,'3. CALCS_Loads'!$AM$153:$AM$159),LOOKUP('3. CALCS_Loads'!$A179,'3. CALCS_Loads'!$A$153:$A$159,'3. CALCS_Loads'!$AL$153:$AL$159))>1,IF('1. ENTER DATA'!$F$14="No",LOOKUP($A179,'3. CALCS_Loads'!$A$153:$A$159,'3. CALCS_Loads'!$AM$153:$AM$159),LOOKUP('3. CALCS_Loads'!$A179,'3. CALCS_Loads'!$A$153:$A$159,'3. CALCS_Loads'!$AL$153:$AL$159)),#N/A) ->  | C179: =IF(IF('1. ENTER DATA'!$F$14="No",LOOKUP($A179,'3. CALCS_Loads'!$A$153:$A$159,'3. CALCS_Loads'!$AM$153:$AM$159),LOOKUP('3. CALCS_Loads'!$A179,'3. CALCS_Loads'!$A$153:$A$159,'3. CALCS_Loads'!$AL$153:$AL$159))<=1,IF('1. ENTER DATA'!$F$14="No",LOOKUP($A179,'3. CALCS_Loads'!$A$153:$A$159,'3. CALCS_Loads'!$AM$153:$AM$159),LOOKUP('3. CALCS_Loads'!$A179,'3. CALCS_Loads'!$A$153:$A$159,'3. CALCS_Loads'!$AL$153:$AL$159)),#N/A) -> 0.01962650304
A180: Zn | B180: =IF(IF('1. ENTER DATA'!$F$14="No",LOOKUP($A180,'3. CALCS_Loads'!$A$153:$A$159,'3. CALCS_Loads'!$AM$153:$AM$159),LOOKUP('3. CALCS_Loads'!$A180,'3. CALCS_Loads'!$A$153:$A$159,'3. CALCS_Loads'!$AL$153:$AL$159))>1,IF('1. ENTER DATA'!$F$14="No",LOOKUP($A180,'3. CALCS_Loads'!$A$153:$A$159,'3. CALCS_Loads'!$AM$153:$AM$159),LOOKUP('3. CALCS_Loads'!$A180,'3. CALCS_Loads'!$A$153:$A$159,'3. CALCS_Loads'!$AL$153:$AL$159)),#N/A) ->  | C180: =IF(IF('1. ENTER DATA'!$F$14="No",LOOKUP($A180,'3. CALCS_Loads'!$A$153:$A$159,'3. CALCS_Loads'!$AM$153:$AM$159),LOOKUP('3. CALCS_Loads'!$A180,'3. CALCS_Loads'!$A$153:$A$159,'3. CALCS_Loads'!$AL$153:$AL$159))<=1,IF('1. ENTER DATA'!$F$14="No",LOOKUP($A180,'3. CALCS_Loads'!$A$153:$A$159,'3. CALCS_Loads'!$AM$153:$AM$159),LOOKUP('3. CALCS_Loads'!$A180,'3. CALCS_Loads'!$A$153:$A$159,'3. CALCS_Loads'!$AL$153:$AL$159)),#N/A) -> 0.239572498
A183: RESULTS: LOAD REMOVED TABLE
A185: POLLUTANT | C185: LOAD REMOVED | H185: PERCENT LOAD REMOVED
C186: Drainage Area A | D186: Drainage Area B | E186: Drainage Area C | F186: Drainage Area D | G186: TOTAL | H186: Drainage Area A | I186: Drainage Area B | J186: Drainage Area C | K186: Drainage Area D | L186: TOTAL
A187: COD | B187: lbs/yr | C187: ='3. CALCS_Loads'!Z153-'3. CALCS_Loads'!AD153 -> 189.8348268 | D187: ='3. CALCS_Loads'!AA153-'3. CALCS_Loads'!AE153 -> 0 | E187: ='3. CALCS_Loads'!AB153-'3. CALCS_Loads'!AF153 -> 0 | F187: ='3. CALCS_Loads'!AC153-'3. CALCS_Loads'!AG153 -> 0 | G187: =SUM(C187:F187) -> 189.8348268 | H187: =IF(C187<>0,C187/(C187+'3. CALCS_Loads'!AD153),"-") -> 0.9934518555 | I187: =IF(D187<>0,D187/(D187+'3. CALCS_Loads'!AE153),"-") -> - | J187: =IF(E187<>0,E187/(E187+'3. CALCS_Loads'!AF153),"-") -> - | K187: =IF(F187<>0,F187/(F187+'3. CALCS_Loads'!AG153),"-") -> - | L187: =IF(G187<>0,G187/(G187+'2. RESULTS'!G8),"-") -> 0.9934518555
A188: E. coli | B188: 10^6 MPN/yr | C188: ='3. CALCS_Loads'!Z154-'3. CALCS_Loads'!AD154 -> 297691.8418 | D188: ='3. CALCS_Loads'!AA154-'3. CALCS_Loads'!AE154 -> 0 | E188: ='3. CALCS_Loads'!AB154-'3. CALCS_Loads'!AF154 -> 0 | F188: ='3. CALCS_Loads'!AC154-'3. CALCS_Loads'!AG154 -> 0 | G188: =SUM(C188:F188) -> 297691.8418 | H188: =IF(C188<>0,C188/(C188+'3. CALCS_Loads'!AD154),"-") -> 0.9937541217 | I188: =IF(D188<>0,D188/(D188+'3. CALCS_Loads'!AE154),"-") -> - | J188: =IF(E188<>0,E188/(E188+'3. CALCS_Loads'!AF154),"-") -> - | K188: =IF(F188<>0,F188/(F188+'3. CALCS_Loads'!AG154),"-") -> - | L188: =IF(G188<>0,G188/(G188+'2. RESULTS'!G9),"-") -> 0.9937541217
A189: Pb | B189: lbs/yr | C189: ='3. CALCS_Loads'!Z155-'3. CALCS_Loads'!AD155 -> 0.03782604176 | D189: ='3. CALCS_Loads'!AA155-'3. CALCS_Loads'!AE155 -> 0 | E189: ='3. CALCS_Loads'!AB155-'3. CALCS_Loads'!AF155 -> 0 | F189: ='3. CALCS_Loads'!AC155-'3. CALCS_Loads'!AG155 -> 0 | G189: 0.03782604176 | H189: =IF(C189<>0,C189/(C189+'3. CALCS_Loads'!AD155),"-") -> 0.9930841348 | I189: =IF(D189<>0,D189/(D189+'3. CALCS_Loads'!AE155),"-") -> - | J189: =IF(E189<>0,E189/(E189+'3. CALCS_Loads'!AF155),"-") -> - | K189: =IF(F189<>0,F189/(F189+'3. CALCS_Loads'!AG155),"-") -> - | L189: =IF(G189<>0,G189/(G189+'2. RESULTS'!G10),"-") -> 0.9930841348
A190: TN | B190: lbs/yr | C190: ='3. CALCS_Loads'!Z156-'3. CALCS_Loads'!AD156 -> 5.808492572 | D190: ='3. CALCS_Loads'!AA156-'3. CALCS_Loads'!AE156 -> 0 | E190: ='3. CALCS_Loads'!AB156-'3. CALCS_Loads'!AF156 -> 0 | F190: ='3. CALCS_Loads'!AC156-'3. CALCS_Loads'!AG156 -> 0 | G190: 5.808492572 | H190: =IF(C190<>0,C190/(C190+'3. CALCS_Loads'!AD156),"-") -> 0.9885954251 | I190: =IF(D190<>0,D190/(D190+'3. CALCS_Loads'!AE156),"-") -> - | J190: =IF(E190<>0,E190/(E190+'3. CALCS_Loads'!AF156),"-") -> - | K190: =IF(F190<>0,F190/(F190+'3. CALCS_Loads'!AG156),"-") -> - | L190: =IF(G190<>0,G190/(G190+'2. RESULTS'!G11),"-") -> 0.9885954251
A191: TP | B191: lbs/yr | C191: ='3. CALCS_Loads'!Z157-'3. CALCS_Loads'!AD157 -> 1.039661987 | D191: ='3. CALCS_Loads'!AA157-'3. CALCS_Loads'!AE157 -> 0 | E191: ='3. CALCS_Loads'!AB157-'3. CALCS_Loads'!AF157 -> 0 | F191: ='3. CALCS_Loads'!AC157-'3. CALCS_Loads'!AG157 -> 0 | G191: 1.039661987 | H191: =IF(C191<>0,C191/(C191+'3. CALCS_Loads'!AD157),"-") -> 0.9919850156 | I191: =IF(D191<>0,D191/(D191+'3. CALCS_Loads'!AE157),"-") -> - | J191: =IF(E191<>0,E191/(E191+'3. CALCS_Loads'!AF157),"-") -> - | K191: =IF(F191<>0,F191/(F191+'3. CALCS_Loads'!AG157),"-") -> - | L191: =IF(G191<>0,G191/(G191+'2. RESULTS'!G12),"-") -> 0.9919850156
A192: TSS | B192: lbs/yr | C192: ='3. CALCS_Loads'!Z158-'3. CALCS_Loads'!AD158 -> 438.3770647 | D192: ='3. CALCS_Loads'!AA158-'3. CALCS_Loads'!AE158 -> 0 | E192: ='3. CALCS_Loads'!AB158-'3. CALCS_Loads'!AF158 -> 0 | F192: ='3. CALCS_Loads'!AC158-'3. CALCS_Loads'!AG158 -> 0 | G192: 438.3770647 | H192: =IF(C192<>0,C192/(C192+'3. CALCS_Loads'!AD158),"-") -> 0.9978100384 | I192: =IF(D192<>0,D192/(D192+'3. CALCS_Loads'!AE158),"-") -> - | J192: =IF(E192<>0,E192/(E192+'3. CALCS_Loads'!AF158),"-") -> - | K192: =IF(F192<>0,F192/(F192+'3. CALCS_Loads'!AG158),"-") -> - | L192: =IF(G192<>0,G192/(G192+'2. RESULTS'!G13),"-") -> 0.9978100384
A193: Zn | B193: lbs/yr | C193: ='3. CALCS_Loads'!Z159-'3. CALCS_Loads'!AD159 -> 0.1837385208 | D193: ='3. CALCS_Loads'!AA159-'3. CALCS_Loads'!AE159 -> 0 | E193: ='3. CALCS_Loads'!AB159-'3. CALCS_Loads'!AF159 -> 0 | F193: ='3. CALCS_Loads'!AC159-'3. CALCS_Loads'!AG159 -> 0 | G193: 0.1837385208 | H193: =IF(C193<>0,C193/(C193+'3. CALCS_Loads'!AD159),"-") -> 0.9910077849 | I193: =IF(D193<>0,D193/(D193+'3. CALCS_Loads'!AE159),"-") -> - | J193: =IF(E193<>0,E193/(E193+'3. CALCS_Loads'!AF159),"-") -> - | K193: =IF(F193<>0,F193/(F193+'3. CALCS_Loads'!AG159),"-") -> - | L193: =IF(G193<>0,G193/(G193+'2. RESULTS'!G14),"-") -> 0.9910077849

Sheet 4. CALCS_Infiltration
A1: SIZING INFILTRATION FIELDS
A3: LOOK UP… | C3: SCM A2 | D3: SCM B2 | E3: SCM C2 | F3: SCM D2
A4: Drainage Area | B4: Ac | C4: =DA_A -> 1 | D4: =DA_B -> 1 | E4: =DA_C -> 1 | F4: =DA_D -> 1
A5: Total water application time | B5: hrs | C5: ='5.CALCS_Adams&Papa'!B25/'5.CALCS_Adams&Papa'!B28 -> 60 | D5: ='5.CALCS_Adams&Papa'!C25/'5.CALCS_Adams&Papa'!C28 -> 60 | E5: ='5.CALCS_Adams&Papa'!D25/'5.CALCS_Adams&Papa'!D28 -> 60 | F5: ='5.CALCS_Adams&Papa'!E25/'5.CALCS_Adams&Papa'!E28 -> 60
A6: Soil Infiltration Rate (permeability) | B6: in/hr | C6: ='1. ENTER DATA'!F45 -> 0.1 | D6: ='1. ENTER DATA'!G45 -> 0.1 | E6: ='1. ENTER DATA'!H45 -> 0.1 | F6: ='1. ENTER DATA'!I45 -> 0.1
A7: Number of Application Zones | C7: ='1. ENTER DATA'!F46 -> 2 | D7: ='1. ENTER DATA'!G46 -> 2 | E7: ='1. ENTER DATA'!H46 -> 2 | F7: ='1. ENTER DATA'!I46 -> 2
A9: 1. WQV_inf Known, Calculate Area
A10: Is this the scenario? | B10: Yes = 1, No = 0 | C10: =IF('1. ENTER DATA'!F33="Yes",0,1) -> 1 | D10: =IF('1. ENTER DATA'!G33="Yes",0,1) -> 1 | E10: =IF('1. ENTER DATA'!H33="Yes",0,1) -> 1 | F10: =IF('1. ENTER DATA'!I33="Yes",0,1) -> 1
A11: WQV infiltrated | B11: in | C11: =IF('1. ENTER DATA'!F42="Yes",'1. ENTER DATA'!F43,'3. CALCS_Loads'!C134)*C10 -> 2.5 | D11: =IF('1. ENTER DATA'!G42="Yes",'1. ENTER DATA'!G43,'3. CALCS_Loads'!D134)*D10 -> 0 | E11: =IF('1. ENTER DATA'!H42="Yes",'1. ENTER DATA'!H43,'3. CALCS_Loads'!E134)*E10 -> 0 | F11: =IF('1. ENTER DATA'!I42="Yes",'1. ENTER DATA'!I43,'3. CALCS_Loads'!F134)*F10 -> 0
A12: Field Area | B12: Acres | C12: =IF(C7=1,2*C11*C7/(C6*C5)*C4,C11*C7/(C6*C5)*C4) -> 0.8333333333 | D12: =IF(D7=1,2*D11*D7/(D6*D5)*D4,D11*D7/(D6*D5)*D4) -> 0 | E12: 0 | F12: 0
A13: Application Rate | B13: gpm | C13: =IF(C7=1,2*C11*C$4/C$5*452.5,C11*C$4/C$5*452.5) -> 18.85416667 | D13: =D11*D$4/D$5*452.5 -> 0 | E13: 0 | F13: 0
A16: 2. RCE_inf Known, Calculate Area
A17: Is this the scenario? | B17: Yes = 1, No = 0 | C17: =IF('1. ENTER DATA'!F33="Yes",1,0) -> 0 | D17: =IF('1. ENTER DATA'!G33="Yes",1,0) -> 0 | E17: =IF('1. ENTER DATA'!H33="Yes",1,0) -> 0 | F17: =IF('1. ENTER DATA'!I33="Yes",1,0) -> 0
A18: RCE infiltrated | B18: % | C18: ='3. CALCS_Loads'!C139 -> 0.9810534515 | D18: ='3. CALCS_Loads'!D139 -> 0 | E18: ='3. CALCS_Loads'!E139 -> 0 | F18: ='3. CALCS_Loads'!F139 -> 0
A19: WQV infiltrated | B19: inches | C19: ='5.CALCS_Adams&Papa'!B63 -> 2.501 | D19: ='5.CALCS_Adams&Papa'!C63 -> 0.001 | E19: ='5.CALCS_Adams&Papa'!D63 -> 0.001 | F19: ='5.CALCS_Adams&Papa'!E63 -> 0.001
A20: Field Area | B20: Acres | C20: =IF(C7=1,2*C19*C7/(C6*C5)*C4,C19*C7/(C6*C5)*C4) -> 0.8336666667 | D20: =IF(D7=1,2*D19*D7/(D6*D5)*D4,D19*D7/(D6*D5)*D4) -> 0.0003333333333 | E20: 0.0003333333333 | F20: 0.0003333333333
A21: Application Rate | B21: gpm | C21: =IF(C7=1,2*C19*C$4/C$5*452.5,C19*C$4/C$5*452.5) -> 18.86170833 | D21: =D19*D$4/D$5*452.5 -> 0.007541666667 | E21: 0.007541666667 | F21: 0.007541666667
A24: 3. Values for Use in Calculator | C24: SCM A2 | D24: SCM B2 | E24: SCM C2 | F24: SCM D2
A25: Field Area to Use (Ac) | C25: =IF(C10=1,C12,C20) -> 0.8333333333 | D25: =IF(D10=1,D12,D20) -> 0 | E25: =IF(E10=1,E12,E20) -> 0 | F25: =IF(F10=1,F12,F20) -> 0
A26: WQV_inf to Use (in) | C26: =IF(C$10=1,C11,C19) -> 2.5 | D26: =IF(D$10=1,D11,D19) -> 0 | E26: 0 | F26: 0
A27: Yearly Volume Infiltrated (in/yr) | C27: =IF(C17=1,C18*'3. CALCS_Loads'!C66,'5.CALCS_Adams&Papa'!B59) -> 11.47857852 | D27: =IF(D17=1,D18*'3. CALCS_Loads'!D66,'5.CALCS_Adams&Papa'!C59) -> 0 | E27: =IF(E17=1,E18*'3. CALCS_Loads'!E66,'5.CALCS_Adams&Papa'!D59) -> 0 | F27: =IF(F17=1,F18*'3. CALCS_Loads'!F66,'5.CALCS_Adams&Papa'!E59) -> 0
A28: Application Rate (gpm) | C28: =IF(C$10=1,C13,C21) -> 18.85416667 | D28: =IF(D$10=1,D13,D21) -> 0 | E28: 0 | F28: 0

Sheet 5.CALCS_Adams&Papa
A1: ADAMS & PAPA FOR VOLUMETRIC STORMWATER CONTROL MEASURE
A3: Rainfall Statistics | D3: Based on 2017 WPD Report Updating the City of Austin Rainfall Period of Record Timeseries and Statistics. Uses 2004-2013 Camp Mabry rainfall data.
A4: Parameter | B4: Symbol | C4: Value
A5: Mean annual rainfall event volume (in.) | B5: v | C5: 0.44
A6: Mean annual rainfall event duration (hr) | B6: t | C6: 5.66
A7: Mean annual rainfall event intensity (in/hr) | B7: i | C7: 0.077
A8: Delta = Time interval between storm event midpoints (hr) | B8: Δ | C8: 114.2
A9: Interevent time, b (hr) - Figure 4.2 in A&P | B9: b | C9: =$C$8-$C$6 -> 108.54
A10: Minimum Interevent Time (hr) | B10: IETD | C10: 6
A11: Psi = 1/(b - IETD) but using simpler 1/b (1/hr) | B11: y | C11: =1/C9 -> 0.009213193293
A12: Theta = avg. annual number of rainfall events | B12: θ | C12: ='3. CALCS_Loads'!A8 -> 76.8
A13: Average Annual total rainfall (in.) | B13: P | C13: ='3. CALCS_Loads'!A7 -> 33.4
A14: Zeta = 1/mean rainfall event volume (1/in) | B14: z | C14: =1/v -> 2.272727273
A15: Lambda = 1/mean rainfall event duration (1/hr) | B15: l | C15: =1/t -> 0.1766784452
B17: Drainage Area A | C17: Drainage Area B | D17: Drainage Area C | E17: Drainage Area D | G17: Drainage Area A | H17: Drainage Area B | I17: Drainage Area C | J17: Drainage Area D
A18: DRAINAGE AREA CHARACTERISTICS
A19: Drainage Area (acres) DA | B19: ='1. ENTER DATA'!F17 -> 1 | C19: ='1. ENTER DATA'!G17 -> 1 | D19: ='1. ENTER DATA'!H17 -> 1 | E19: ='1. ENTER DATA'!I17 -> 1 | G19: =DA_A -> 1 | H19: =DA_B -> 1 | I19: =DA_C -> 1 | J19: =DA_D -> 1
A20: Runoff Coefficient Rv | B20: =RvA_d -> 0.4225 | C20: =RvB_d -> 0.4225 | D20: =RvC_d -> 0.4225 | E20: =RvD_d -> 0.4225 | G20: =RvA_d -> 0.4225 | H20: =RvB_d -> 0.4225 | I20: =RvC_d -> 0.4225 | J20: =RvD_d -> 0.4225
A21: Depression Storage, Sd (in.) | B21: =SdA_d -> 0.08244683598 | C21: =SdB_d -> 0.08244683598 | D21: =SdC_d -> 0.08244683598 | E21: =SdD_d -> 0.08244683598 | G21: =SdA_d -> 0.08244683598 | H21: =SdB_d -> 0.08244683598 | I21: =SdC_d -> 0.08244683598 | J21: =SdD_d -> 0.08244683598
A23: SCM 1 (First in Series)
A24: SCM 1 Type | B24: ='1. ENTER DATA'!F24 -> Retention Basin | C24: ='1. ENTER DATA'!G24 -> Retention Basin | D24: ='1. ENTER DATA'!H24 -> Retention Basin | E24: ='1. ENTER DATA'!I24 -> Retention Basin | G24: Sed/Fil Std | H24: Sed/Fil Std | I24: Sed/Fil Std | J24: Sed/Fil Std
A25: Water Quality Volume (in.) | B25: =WQV_A1 -> 2.5 | C25: =WQV_B1 -> 2.5 | D25: =WQV_C1 -> 2.5 | E25: =WQV_D1 -> 2.5 | G25: ='3. CALCS_Loads'!C71 -> 0.8 | H25: ='3. CALCS_Loads'!D71 -> 0.8 | I25: ='3. CALCS_Loads'!E71 -> 0.8 | J25: ='3. CALCS_Loads'!F71 -> 0.8
A26: Design Drawdown Time (hr), DDT - or - | B26: =DDT_A1 -> 60 | C26: =DDT_B1 -> 60 | D26: =DDT_C1 -> 60 | E26: =DDT_D1 -> 60 | G26: 48 | H26: 48 | I26: 48 | J26: 48
A27: - or - Design Flow Rate | B27: ='1. ENTER DATA'!F31*0.00221/'5.CALCS_Adams&Papa'!B19 -> 0.0333268 | C27: ='1. ENTER DATA'!G31*0.00221/'5.CALCS_Adams&Papa'!C19 -> 0.0333268 | D27: ='1. ENTER DATA'!H31*0.00221/'5.CALCS_Adams&Papa'!D19 -> 0.0333268 | E27: ='1. ENTER DATA'!I31*0.00221/'5.CALCS_Adams&Papa'!E19 -> 0.0333268
A28: Design Treatment Rate (in/hr) | B28: =IF('1. ENTER DATA'!F29="Flow Rate",'5.CALCS_Adams&Papa'!B27,'5.CALCS_Adams&Papa'!B25/'5.CALCS_Adams&Papa'!B26) -> 0.04166666667 | C28: =IF('1. ENTER DATA'!G29="Flow Rate",'5.CALCS_Adams&Papa'!C27,'5.CALCS_Adams&Papa'!C25/'5.CALCS_Adams&Papa'!C26) -> 0.04166666667 | D28: =IF('1. ENTER DATA'!H29="Flow Rate",'5.CALCS_Adams&Papa'!D27,'5.CALCS_Adams&Papa'!D25/'5.CALCS_Adams&Papa'!D26) -> 0.04166666667 | E28: =IF('1. ENTER DATA'!I29="Flow Rate",'5.CALCS_Adams&Papa'!E27,'5.CALCS_Adams&Papa'!E25/'5.CALCS_Adams&Papa'!E26) -> 0.04166666667
A29: Average Flowrate (gpm) | B29: =B28*452.54*B19 -> 18.85583333 | C29: =C28*452.54*C19 -> 18.85583333 | D29: 18.85583333 | E29: 18.85583333
A30: Lag time before irrigation (hr) | B30: ='1. ENTER DATA'!F38 -> 12 | C30: ='1. ENTER DATA'!G38 -> 12 | D30: ='1. ENTER DATA'!H38 -> 12 | E30: ='1. ENTER DATA'!I38 -> 12 | G30: =G26 -> 48 | H30: =H26 -> 48 | I30: =I26 -> 48 | J30: =J26 -> 48
A31: Adjusted Treatment Rate, Ω (in/hr) | B31: =(1/B28+IF(B25<>0,B30/B25,0))^(-1) -> 0.03472222222 | C31: =(1/C28+IF(C25<>0,C30/C25,0))^(-1) -> 0.03472222222 | D31: 0.03472222222 | E31: 0.03472222222 | F31: *Includes lag time | G31: =G25/G30 -> 0.01666666667 | H31: =H25/H30 -> 0.01666666667 | I31: =I25/I30 -> 0.01666666667 | J31: =J25/J30 -> 0.01666666667
A33: AVERAGE ANNUAL RUNOFF CAPTURE ANALYSIS
A34: Avg. Annual Number of Runoff Events Eqn. 7.9 | B34: =THETA*EXP(-ZETA*B21) -> 63.67712975 | C34: =THETA*EXP(-ZETA*C21) -> 63.67712975 | D34: =THETA*EXP(-ZETA*D21) -> 63.67712975 | E34: =THETA*EXP(-ZETA*E21) -> 63.67712975 | G34: =THETA*EXP(-ZETA*G21) -> 63.67712975 | H34: =THETA*EXP(-ZETA*H21) -> 63.67712975 | I34: =THETA*EXP(-ZETA*I21) -> 63.67712975 | J34: =THETA*EXP(-ZETA*J21) -> 63.67712975
A35: Avg. Runoff Volume per event (in.) | B35: =$C$13/THETA*B20 -> 0.1837434896 | C35: =$C$13/THETA*C20 -> 0.1837434896 | D35: =$C$13/THETA*D20 -> 0.1837434896 | E35: =$C$13/THETA*E20 -> 0.1837434896 | G35: =$C$13/THETA*G20 -> 0.1837434896 | H35: =$C$13/THETA*H20 -> 0.1837434896 | I35: =$C$13/THETA*I20 -> 0.1837434896 | J35: =$C$13/THETA*J20 -> 0.1837434896
A36: R Average Annual Runoff Volume (in.) | B36: =B34*B35 -> 11.70025803 | C36: =C34*C35 -> 11.70025803 | D36: =D34*D35 -> 11.70025803 | E36: =E34*E35 -> 11.70025803 | G36: =G34*G35 -> 11.70025803 | H36: =H34*H35 -> 11.70025803 | I36: 11.70025803 | J36: =J34*J35 -> 11.70025803
A37: RCE Override by User? | B37: ='1. ENTER DATA'!F33 -> No | C37: ='1. ENTER DATA'!G33 -> No | D37: ='1. ENTER DATA'!H33 -> No | E37: ='1. ENTER DATA'!I33 -> No
A38: Average Annual Runoff Capture Efficiency RCE (%) | B38: =IF(B37="Yes",'1. ENTER DATA'!F34/100,IF(AND(B25=0,'1. ENTER DATA'!F29="Drawdown Time"),0,IF(B28=0,0,AdamsPapa_RCE(B25,B31,B20,B21)))) -> 0.9810534515 | C38: =IF(C37="Yes",'1. ENTER DATA'!G34/100,IF(AND(C25=0,'1. ENTER DATA'!G29="Drawdown Time"),0,IF(C28=0,0,AdamsPapa_RCE(C25,C31,C20,C21)))) -> 0.9810534515 | D38: =IF(D37="Yes",'1. ENTER DATA'!H34/100,IF(AND(D25=0,'1. ENTER DATA'!H29="Drawdown Time"),0,IF(D28=0,0,AdamsPapa_RCE(D25,D31,D20,D21)))) -> 0.9810534515 | E38: =IF(E37="Yes",'1. ENTER DATA'!I34/100,IF(AND(E25=0,'1. ENTER DATA'!I29="Drawdown Time"),0,IF(E28=0,0,AdamsPapa_RCE(E25,E31,E20,E21)))) -> 0.9810534515 | G38: =1-IF(G31=0,1,1-AdamsPapa_RCE(G25,G31,G20,G21)) -> 0.9444104141 | H38: =1-IF(H31=0,1,1-AdamsPapa_RCE(H25,H31,H20,H21)) -> 0.9444104141 | I38: =1-IF(I31=0,1,1-AdamsPapa_RCE(I25,I31,I20,I21)) -> 0.9444104141 | J38: =1-IF(J31=0,1,1-AdamsPapa_RCE(J25,J31,J20,J21)) -> 0.9444104141
A39: Avg. Annual Runoff Volume Treated RC (in/yr) | B39: =B$36*B38 -> 11.47857852 | C39: =C$36*C38 -> 11.47857852 | D39: 11.47857852 | E39: 11.47857852 | G39: =G36*G38 -> 11.04984553 | H39: =H36*H38 -> 11.04984553 | I39: =I36*I38 -> 11.04984553 | J39: =J36*J38 -> 11.04984553
A40: Volume treated (Acre-in/yr) | B40: =B39*B19 -> 11.47857852 | C40: =C39*C19 -> 11.47857852 | D40: =D39*D19 -> 11.47857852 | E40: =E39*E19 -> 11.47857852 | G40: =G39*G19 -> 11.04984553 | H40: =H39*H19 -> 11.04984553 | I40: =I39*I19 -> 11.04984553 | J40: =J39*J19 -> 11.04984553
G41: =(G36-G39)*G19 -> 0.6504124991 | H41: =(H36-H39)*H19 -> 0.6504124991 | I41: 0.6504124991 | J41: 0.6504124991
A43: SCM 2 (Second in Series) ROUTING
A44: SCM 2 Type | B44: ='1. ENTER DATA'!F41 -> Infiltration Field | C44: ='1. ENTER DATA'!G41 -> Infiltration Field | D44: ='1. ENTER DATA'!H41 -> Infiltration Field | E44: ='1. ENTER DATA'!I41 -> Infiltration Field
A45: Water Quality Volume (in.) Routed | B45: ='3. CALCS_Loads'!C134 -> 2.5 | C45: ='3. CALCS_Loads'!D134 -> 0 | D45: ='3. CALCS_Loads'!E134 -> 0 | E45: ='3. CALCS_Loads'!F134 -> 0
A46: Adjusted Treatment Rate, Ω (in/hr) | B46: =B31 -> 0.03472222222 | C46: =C31 -> 0.03472222222 | D46: =D31 -> 0.03472222222 | E46: =E31 -> 0.03472222222
A48: AVERAGE ANNUAL RUNOFF CAPTURE ANALYSIS
A49: Average Annual Runoff Capture Efficiency RCE (%) | B49: =IF(B45=0,0,IF(B28=0,0,AdamsPapa_RCE(B45,B46,B20,B21))) -> 0.9810534515 | C49: =IF(C45=0,0,IF(C28=0,0,AdamsPapa_RCE(C45,C46,C20,C21))) -> 0 | D49: =IF(D45=0,0,IF(D28=0,0,AdamsPapa_RCE(D45,D46,D20,D21))) -> 0 | E49: =IF(E45=0,0,IF(E28=0,0,AdamsPapa_RCE(E45,E46,E20,E21))) -> 0
A50: Avg. Annual Runoff Volume Captured RC (in/yr) | B50: =B$36*B49 -> 11.47857852 | C50: =C$36*C49 -> 0 | D50: 0 | E50: 0
A53: SCM 2 Infiltration or Reuse
A54: Infiltrated water quality volume (in) | B54: ='4. CALCS_Infiltration'!C26 -> 2.5 | C54: ='4. CALCS_Infiltration'!D26 -> 0 | D54: ='4. CALCS_Infiltration'!E26 -> 0 | E54: ='4. CALCS_Infiltration'!F26 -> 0
A55: Adjusted Treatment Rate, Ω (in/hr) | B55: =B46 -> 0.03472222222 | C55: =C46 -> 0.03472222222 | D55: =D46 -> 0.03472222222 | E55: =E46 -> 0.03472222222
A57: AVERAGE ANNUAL RUNOFF CAPTURE ANALYSIS
A58: Average Annual Runoff Capture Efficiency RCE (%) | B58: =IF(B54=0,0,IF(B28=0,0,AdamsPapa_RCE(B54,B55,B20,B21))) -> 0.9810534515 | C58: =IF(C54=0,0,IF(C28=0,0,AdamsPapa_RCE(C54,C55,C20,C21))) -> 0 | D58: =IF(D54=0,0,IF(D28=0,0,AdamsPapa_RCE(D54,D55,D20,D21))) -> 0 | E58: =IF(E54=0,0,IF(E28=0,0,AdamsPapa_RCE(E54,E55,E20,E21))) -> 0
A59: Avg. Annual Runoff Volume Captured RC (in/yr) | B59: =B$36*B58 -> 11.47857852 | C59: =C$36*C58 -> 0 | D59: =D$36*D58 -> 0 | E59: =E$36*E58 -> 0
A61: Back-calculate WQVinf from RCE (user input)
A62: User Input RCE | B62: ='3. CALCS_Loads'!C139 -> 0.9810534515 | C62: ='3. CALCS_Loads'!D139 -> 0 | D62: ='3. CALCS_Loads'!E139 -> 0 | E62: ='3. CALCS_Loads'!F139 -> 0
A63: Estimate WQVinf | B63: =WQV_from_RCE(B62,B26+B30,B20,B21) -> 2.501 | C63: =WQV_from_RCE(C62,C26+C30,C20,C21) -> 0.001 | D63: =WQV_from_RCE(D62,D26+D30,D20,D21) -> 0.001 | E63: =WQV_from_RCE(E62,E26+E30,E20,E21) -> 0.001

Sheet 6. Error Checking
A1: ERROR CHECK
B2: Error Checking On? | D2: Yes | O2: Yes
O3: No
F4: Analyze? | G4: =IF(n_DA>=1,1,0) -> 1 | H4: =IF(n_DA>=2,1,0) -> 0 | I4: =IF(n_DA>=3,1,0) -> 0 | J4: =IF(n_DA>=4,1,0) -> 0
B5: Make sure the following are TRUE: | G5: Drainage Area A | H5: Drainage Area B | I5: Drainage Area C | J5: Drainage Area D | K5: Error Message | L5: Print Error Message | M5: Reference Sheet | O5: 0 = false (error)
B6: Is RCE infiltrated <= RCE of SCM 1? | G6: =IF('3. CALCS_Loads'!C139<='3. CALCS_Loads'!C127,1,0) -> 1 | H6: =IF('3. CALCS_Loads'!D139<='3. CALCS_Loads'!D127,1,0) -> 1 | I6: =IF('3. CALCS_Loads'!E139<='3. CALCS_Loads'!E127,1,0) -> 1 | J6: =IF('3. CALCS_Loads'!F139<='3. CALCS_Loads'!F127,1,0) -> 1 | K6: Infiltrated runoff capture efficiency cannot be > capture efficiency of SCM 1. | L6: =IF(OR(AND(G$23>0,G6=0),AND(H$23>0,H6=0),AND(I$23>0,I6=0),AND(J$23>0,J6=0)),K6,"") ->  | M6: 1. Enter Data | O6: 1 = true (complies)
B7: Error found in volumes on Sheet 3? | G7: =IF('3. CALCS_Loads'!C146=1,0,1) -> 1 | H7: =IF('3. CALCS_Loads'!D146=1,0,1) -> 1 | I7: =IF('3. CALCS_Loads'!E146=1,0,1) -> 1 | J7: =IF('3. CALCS_Loads'!F146=1,0,1) -> 1 | K7: Volumes incompatible - check inputs.
B8: Is WQV proposed >= min. WQV? | G8: =IF(WQV_A1>='1. ENTER DATA'!F27,1,0) -> 1 | H8: =IF(WQV_B1>='1. ENTER DATA'!G27,1,0) -> 1 | I8: =IF(WQV_C1>='1. ENTER DATA'!H27,1,0) -> 1 | J8: =IF(WQV_D1>='1. ENTER DATA'!I27,1,0) -> 1 | K8: Water quality volume does not meet minimum.
B9: Is user-entered RCE for first control <= 1.0 (100%?) | G9: =IF('1. ENTER DATA'!F34<=100,1,0) -> 1 | H9: =IF('1. ENTER DATA'!G34<=100,1,0) -> 1 | I9: =IF('1. ENTER DATA'!H34<=100,1,0) -> 1 | J9: =IF('1. ENTER DATA'!I34<=100,1,0) -> 1 | K9: User entered RCE should not exceed 100%.
B10: If user input RCE for SCM 1, does not have user input WQV for SCM 2 | G10: =IF('1. ENTER DATA'!F33="Yes",IF('1. ENTER DATA'!F42<>"Yes; know WQV (in)",1,0),1) -> 1 | H10: =IF('1. ENTER DATA'!G33="Yes",IF('1. ENTER DATA'!G42<>"Yes; know WQV (in)",1,0),1) -> 1 | I10: =IF('1. ENTER DATA'!H33="Yes",IF('1. ENTER DATA'!H42<>"Yes; know WQV (in)",1,0),1) -> 1 | J10: =IF('1. ENTER DATA'!I33="Yes",IF('1. ENTER DATA'!I42<>"Yes; know WQV (in)",1,0),1) -> 1 | K10: If user input RCE for SCM 1, RCE must also be given for SCM 2.
B11: Only allow "flow rate" if alternative control | G11: =IF('1. ENTER DATA'!F29="Flow Rate",IF('1. ENTER DATA'!F24="Alternative",1,0),1) -> 1 | H11: =IF('1. ENTER DATA'!G29="Flow Rate",IF('1. ENTER DATA'!G24="Alternative",1,0),1) -> 1 | I11: =IF('1. ENTER DATA'!H29="Flow Rate",IF('1. ENTER DATA'!H24="Alternative",1,0),1) -> 1 | J11: =IF('1. ENTER DATA'!I29="Flow Rate",IF('1. ENTER DATA'!I24="Alternative",1,0),1) -> 1 | K11: Input FLOW RATE only if SCM 1 is alternative control.
B12: Is soil infiltration rate <= 0.2 in/hr when in BSZ? | G12: =IF('1. ENTER DATA'!F14="Yes",IF('1. ENTER DATA'!F45<=0.2,1,0),1) -> 1 | H12: =IF('1. ENTER DATA'!G14="Yes",IF('1. ENTER DATA'!G45<=0.2,1,0),1) -> 1 | I12: =IF('1. ENTER DATA'!H14="Yes",IF('1. ENTER DATA'!H45<=0.2,1,0),1) -> 1 | J12: =IF('1. ENTER DATA'!I14="Yes",IF('1. ENTER DATA'!I45<=0.2,1,0),1) -> 1 | K12: For BSZ, infiltration rate cannot exceed 0.2 in/hr.
B13: Is soil infiltration rate > 0? | G13: =IF('1. ENTER DATA'!F45>0,1,0) -> 1 | H13: =IF('1. ENTER DATA'!G45>0,1,0) -> 1 | I13: =IF('1. ENTER DATA'!H45>0,1,0) -> 1 | J13: =IF('1. ENTER DATA'!I45>0,1,0) -> 1 | K13: Infiltration rate must be greater than 0 in/hr.
B14: If pumped system, is # of irrigation zones >= 2? | G14: =IF('1. ENTER DATA'!F37="Pumped",IF('1. ENTER DATA'!F46>=2,1,0),1) -> 1 | H14: =IF('1. ENTER DATA'!G37="Pumped",IF('1. ENTER DATA'!G46>=2,1,0),1) -> 1 | I14: =IF('1. ENTER DATA'!H37="Pumped",IF('1. ENTER DATA'!H46>=2,1,0),1) -> 1 | J14: =IF('1. ENTER DATA'!I37="Pumped",IF('1. ENTER DATA'!I46>=2,1,0),1) -> 1 | K14: Must have at least 2 irrigation zones if pumped.
B15: If pumped system, is time delay 12 hours? | G15: =IF('1. ENTER DATA'!F37="Pumped",IF('1. ENTER DATA'!F38>=12,1,0),1) -> 1 | H15: =IF('1. ENTER DATA'!G37="Pumped",IF('1. ENTER DATA'!G38>=12,1,0),1) -> 1 | I15: =IF('1. ENTER DATA'!H37="Pumped",IF('1. ENTER DATA'!H38>=12,1,0),1) -> 1 | J15: =IF('1. ENTER DATA'!I37="Pumped",IF('1. ENTER DATA'!I38>=12,1,0),1) -> 1 | K15: Must have delay of 12 hours if pumped.
B16: If gravity drained and BSZ, is first control sed/fil? | G16: =IF(AND('1. ENTER DATA'!F37<>"Pumped",'1. ENTER DATA'!$F$14="Yes"),IF('1. ENTER DATA'!F24="Sedimentation/Filtration",1,0),1) -> 1 | H16: =IF(AND('1. ENTER DATA'!G37<>"Pumped",'1. ENTER DATA'!$F$14="Yes"),IF('1. ENTER DATA'!G24="Sedimentation/Filtration",1,0),1) -> 1 | I16: =IF(AND('1. ENTER DATA'!H37<>"Pumped",'1. ENTER DATA'!$F$14="Yes"),IF('1. ENTER DATA'!H24="Sedimentation/Filtration",1,0),1) -> 1 | J16: =IF(AND('1. ENTER DATA'!I37<>"Pumped",'1. ENTER DATA'!$F$14="Yes"),IF('1. ENTER DATA'!I24="Sedimentation/Filtration",1,0),1) -> 1 | K16: For BSZ, gravity drained allowed only if first control is sed/fil.
B17: If BSZ where pumped, infiltrates all water? | G17: =IF(AND('1. ENTER DATA'!$F$14="Yes",'1. ENTER DATA'!F37="Pumped"),IF('3. CALCS_Loads'!C139<>'3. CALCS_Loads'!C135,0,1),1) -> 1 | H17: =IF(AND('1. ENTER DATA'!$F$14="Yes",'1. ENTER DATA'!G37="Pumped"),IF('3. CALCS_Loads'!D139<>'3. CALCS_Loads'!D135,0,1),1) -> 1 | I17: =IF(AND('1. ENTER DATA'!$F$14="Yes",'1. ENTER DATA'!H37="Pumped"),IF('3. CALCS_Loads'!E139<>'3. CALCS_Loads'!E135,0,1),1) -> 1 | J17: =IF(AND('1. ENTER DATA'!$F$14="Yes",'1. ENTER DATA'!I37="Pumped"),IF('3. CALCS_Loads'!F139<>'3. CALCS_Loads'!F135,0,1),1) -> 1 | K17: For BSZ pumped systems, ALL captured water must be irrigated/infiltrated.
B18: If BSZ and SCM 1 is retention, should be off-line | G18: =IF('1. ENTER DATA'!$F$14="Yes",IF('1. ENTER DATA'!F24='1. ENTER DATA'!$T$7,IF('1. ENTER DATA'!F25='1. ENTER DATA'!$W$10,1,0),1),1) -> 1 | H18: =IF('1. ENTER DATA'!$F$14="Yes",IF('1. ENTER DATA'!G24='1. ENTER DATA'!$T$7,IF('1. ENTER DATA'!G25='1. ENTER DATA'!$W$10,1,0),1),1) -> 1 | I18: =IF('1. ENTER DATA'!$F$14="Yes",IF('1. ENTER DATA'!H24='1. ENTER DATA'!$T$7,IF('1. ENTER DATA'!H25='1. ENTER DATA'!$W$10,1,0),1),1) -> 1 | J18: =IF('1. ENTER DATA'!$F$14="Yes",IF('1. ENTER DATA'!I24='1. ENTER DATA'!$T$7,IF('1. ENTER DATA'!I25='1. ENTER DATA'!$W$10,1,0),1),1) -> 1 | K18: Retention basins must be offline.
B19: If BSZ and SCM is retention, does it have a 60-hour DDT? | G19: =IF('1. ENTER DATA'!$F$14="Yes",IF('1. ENTER DATA'!F24='1. ENTER DATA'!$T$7,IF(DDT_A1=60,1,0),1),1) -> 1 | H19: =IF('1. ENTER DATA'!$F$14="Yes",IF('1. ENTER DATA'!G24='1. ENTER DATA'!$T$7,IF(DDT_B1=60,1,0),1),1) -> 1 | I19: =IF('1. ENTER DATA'!$F$14="Yes",IF('1. ENTER DATA'!H24='1. ENTER DATA'!$T$7,IF(DDT_C1=60,1,0),1),1) -> 1 | J19: =IF('1. ENTER DATA'!$F$14="Yes",IF('1. ENTER DATA'!I24='1. ENTER DATA'!$T$7,IF(DDT_D1=60,1,0),1),1) -> 1 | K19: Retention/irrigation must have 60 hour drawdown time.
B20: If SCM 1 is alternative control, are all effluent concentrations entered? | G20: =IF('1. ENTER DATA'!F24="Alternative",IF(COUNTA('1. ENTER DATA'!F53:F59)=7,1,0),1) -> 1 | H20: =IF('1. ENTER DATA'!G24="Alternative",IF(COUNTA('1. ENTER DATA'!G53:G59)=7,1,0),1) -> 1 | I20: =IF('1. ENTER DATA'!H24="Alternative",IF(COUNTA('1. ENTER DATA'!H53:H59)=7,1,0),1) -> 1 | J20: =IF('1. ENTER DATA'!I24="Alternative",IF(COUNTA('1. ENTER DATA'!I53:I59)=7,1,0),1) -> 1 | K20: For alternative SCM 1, enter all effluent concentrations.
B21: If SCM 2 is alternative control, are all effluent concentrations entered? | G21: =IF('1. ENTER DATA'!F41="Alternative",IF(COUNTA('1. ENTER DATA'!F62:F68)=7,1,0),1) -> 1 | H21: =IF('1. ENTER DATA'!G41="Alternative",IF(COUNTA('1. ENTER DATA'!G62:G68)=7,1,0),1) -> 1 | I21: =IF('1. ENTER DATA'!H41="Alternative",IF(COUNTA('1. ENTER DATA'!H62:H68)=7,1,0),1) -> 1 | J21: =IF('1. ENTER DATA'!I41="Alternative",IF(COUNTA('1. ENTER DATA'!I62:I68)=7,1,0),1) -> 1 | K21: For alternative SCM 2, enter all effluent concentrations.
B23: Errors by Drainage Area | G23: =(COUNT(G6:G22)-SUM(G6:G22))*G4 -> 0 | H23: =(COUNT(H6:H22)-SUM(H6:H22))*H4 -> 0 | I23: =(COUNT(I6:I22)-SUM(I6:I22))*I4 -> 0 | J23: =(COUNT(J6:J22)-SUM(J6:J22))*J4 -> 0
B25: Overall Number of Errors | G25: =SUM(G23:J23) -> 0
B27: Error Check Override | G27: =IF(D2="No",0,G25) -> 0
B29: Error Condition | G29: =IF(D2="Yes",IF(G25>0,1,2),3) -> 2 | H29: 1 = ERRORS FOUND; ANALYSIS INCOMPLETE
H30: 2 = ERROR CHECK PASSED
H31: 3 = ERROR CHECK OFF
B33: Error Message | G33: =IF(G29=1,(TEXT(G25,"0")&" ERRORS FOUND; ANALYSIS INCOMPLETE"),IF(G29=2,"ERROR CHECK PASSED","ERROR CHECK OFF")) -> ERROR CHECK PASSED
B34: Error Message - Detailed | G34: =CONCATENATE(L6,L7,L8,L9,L10,L11,L12,L13,L14,L15,L16,L17,L18,L19,L20,L21,L22) ->  | J34: update formula if more rows added
